Workbook

Sheet Instructivo
C4: PLANTILLA - MODELO FINANCIERO
C5: Version 1.0
C6: El modelo financiero aquí presentado esta construido con bases en módulos interconectados, los cuales permiten tener una estructura ordenada que facilita el ingreso de la información y el posterior análisis
C9: INICIATIVA - PROYECTO
C10: -NOMBRE: | D10: Proyecto 1
C11: -INICIO(año): | D11: 2018
C12: -Impuestos asociados | E12: SI | F12: Valor | G12: 30%
C15: 1. Módulo macroeconómico
C16: Descripcion sobre ete modulo
A17: 1
C21: ver mas
C22: 2. Módulo de ingresos
C23: Descripcion sobre ete modulo
C28: ver mas
C29: 3. Módulo de costos y gastos
C30: Descripcion sobre ete modulo
C35: ver mas
C36: 4. Módulo de Inversiones
C37: Descripcion sobre ete modulo
C42: ver mas
C43: 5. Módulo de financiación
C44: Descripcion sobre ete modulo
C49: ver mas
C50: 6. Módulo financiero
C51: Descripcion sobre ete modulo
C56: ver mas
C57: 7. Módulo de evaluación
C58: Descripcion sobre ete modulo
C63: ver mas
C64: 8. Módulo de tablas y gráficos
C65: Descripcion sobre ete modulo
C70: ver mas

Sheet Mod.Macro
C3: MODULO MACROECONOMICO
C4: =Instructivo!C5 -> Version 1.0
C6: VARIABLE | D6: Ano
D7: 2012 | E7: 2013 | F7: 2014 | G7: 2015 | H7: 2016 | I7: 2017 | J7: 2018 | K7: 2019 | L7: 2020 | M7: 2021 | N7: =M7+1 -> 2022 | O7: =N7+1 -> 2023 | P7: 2024 | Q7: 2025
C8: Crecimiento del PIB (var.%anual) | D8: 4.00% | E8: 4.90% | F8: 4.70% | G8: 3.10% | H8: 2.00% | I8: 2.00% | J8: 2.80% | K8: 3.50% | L8: 4.20% | M8: 3.70% | N8: =M8 -> 3.70% | O8: =N8 -> 3.70% | P8: =O8 -> 3.70% | Q8: =P8 -> 3.70%
C9: Balance del Gobierno Nacional (%delPIB) | D9: -2.30% | E9: -2.40% | F9: -2.40% | G9: -3.00% | H9: -4.00% | I9: -3.70% | J9: -2.90% | K9: -3.10% | L9: -3.00% | M9: -2.70%
C10: Balance en cuenta corriente (%delPIB) | D10: -3.10% | E10: -3.20% | F10: -5.10% | G10: -6.50% | H10: -4.40% | I10: -3.80% | J10: -3.90% | K10: -4.10% | L10: -4.30% | M10: -4.10%
C11: Tasa de desempleo urbano (%delaPEA) | D11: 10.20% | E11: 9.70% | F11: 9.30% | G11: 9.80% | H11: 9.90% | I11: 10.30% | J11: 10.80% | K11: 10.80% | L11: 10.80% | M11: 11.40%
C12: Inflación al consumidor (var.%anual) | D12: 2.40% | E12: 1.90% | F12: 3.70% | G12: 6.77% | H12: 5.75% | I12: 4.20% | J12: 3.50% | K12: 3.60% | L12: 3.40% | M12: 3.20%
C13: Tasa de referencia BanRep (% anual, fin de año) | D13: 4.25% | E13: 3.25% | F13: 4.50% | G13: 5.75% | H13: 7.50% | I13: 5.75% | J13: 4.75% | K13: 4.75% | L13: 4.75% | M13: 4.75%
C14: DTF 90 Días (% anual.fin de año) | D14: 5.22% | E14: 4.06% | F14: 4.34% | G14: 5.25% | H14: 6.81% | I14: 6.00% | J14: 5.30% | K14: 5.00% | L14: 4.75% | M14: 4.80%
C15: IBR Overnight (% E.A. 365 días,fin de año) | D15: 4.24% | E15: 3.22% | F15: 4.52% | G15: 5.79% | H15: 7.51% | I15: 5.55% | J15: 4.60% | K15: 4.60% | L15: 4.60% | M15: 4.60%
C16: Tasa de cambio USD COP (promedio de año) | D16: 1798 | E16: 1869 | F16: 2000 | G16: 2743 | H16: 3051 | I16: 2900 | J16: 2880 | K16: 2880 | L16: 2810 | M16: 2760
C17: Tasa de cambio USDCOP (fin de año) | D17: 1772 | E17: 1923 | F17: 2392 | G17: 3147 | H17: 3001 | I17: 2980 | J17: 2710 | K17: 2650 | L17: 2600 | M17: 2580
C18: Devaluación nominal (% promedio año) | D18: -2.70% | E18: 4.00% | F18: 7.00% | G18: 37.10% | H18: 11.20% | I18: -4.90% | J18: -0.70% | K18: 0.00% | L18: -2.40% | M18: -1.80%
C19: Fuente : Proyecciones economicas de mediano plazo; Grupo Bancolombia
C21: Datos historicos
C22: Proyecciones Bancolombia
C23: Proyecciones Usuario

Sheet Mod.ingresos
C3: MODULO DE INGRESOS
C4: =Instructivo!C5 -> Version 1.0
C5: ="Evaluacion de ingresos para el proyecto "&Nom_proyecto &". Proyecto que inicia en el año "& Anio_proyecto&"." -> Evaluacion de ingresos para el proyecto Proyecto 1. Proyecto que inicia en el año 2018.
C6: * Special text
C8: 1. ANALISIS DE CANTIDAD
C10: MENSUAL ANIO 1 | E10: Ene | F10: Feb | G10: Mar | H10: Abr | I10: May | J10: Jun | K10: Jul | L10: Ago | M10: Sep | N10: Oct | O10: Nov | P10: Dic
C11: Cantidad -Producto(Servicio) 1 | E11: 0 | F11: 0 | G11: 0 | H11: 0 | I11: 0 | J11: 0 | K11: 0 | L11: 0 | M11: 0 | N11: 0 | O11: 0 | P11: 0
C12: Cantidad -Producto(Servicio) 2 | E12: 0 | F12: 0 | G12: 0 | H12: 0 | I12: 0 | J12: 0 | K12: 0 | L12: 0 | M12: 0 | N12: 0 | O12: 0 | P12: 0
C13: Cantidad -Producto(Servicio) 3 | E13: 0 | F13: 0 | G13: 0 | H13: 0 | I13: 0 | J13: 0 | K13: 0 | L13: 0 | M13: 0 | N13: 0 | O13: 0 | P13: 0
C15: Anual | E15: =Anio_proyecto -> 2018 | F15: =E15+1 -> 2019 | G15: =F15+1 -> 2020 | H15: 2021 | I15: 2022 | J15: 2023 | K15: 2024 | L15: 2025
C16: Cantidad -Producto(Servicio) 1 | E16: =SUM(E11:P11) -> 0 | F16: 0 | G16: 0 | H16: 0 | I16: 0 | J16: 0 | K16: 0 | L16: 0
C17: Cantidad -Producto(Servicio) 2 | E17: =SUM(E12:P12) -> 0 | F17: 0 | G17: 0 | H17: 0 | I17: 0 | J17: 0 | K17: 0 | L17: 0
C18: Cantidad -Producto(Servicio) 3 | E18: 0 | F18: 0 | G18: 0 | H18: 0 | I18: 0 | J18: 0 | K18: 0 | L18: 0
C22: 2. ANALISIS DE PRECIO | I22: `
C23: Precio base Producto(Servicio) 1 | E23: 0
C24: Precio base Producto(Servicio) 2 | E24: 0
C25: Precio base Producto(Servicio) 3 | E25: 0
C26: Criterio de Crecimeinto
E30: =E15 -> 2018 | F30: =F15 -> 2019 | G30: 2020 | H30: 2021 | I30: 2022 | J30: 2023 | K30: 2024 | L30: 2025
C31: Producto(Servicio) 1 | F31: 0% | G31: 0% | H31: 0% | I31: 0% | J31: 0% | K31: 0% | L31: 0%
C32: Producto(Servicio) 2 | F32: 0% | G32: 0% | H32: 0% | I32: 0% | J32: 0% | K32: 0% | L32: 0%
C33: Producto(Servicio) 3 | F33: 0% | G33: 0% | H33: 0% | I33: 0% | J33: 0% | K33: 0% | L33: 0%
C35: Precio Producto(Servicio) 1 | E35: =Proceso!C15 -> 0 | F35: =Proceso!D15 -> 0 | G35: =Proceso!E15 -> 0 | H35: =Proceso!F15 -> 0 | I35: =Proceso!G15 -> 0 | J35: =Proceso!H15 -> 0 | K35: =Proceso!I15 -> 0 | L35: =Proceso!J15 -> 0
C36: Precio Producto(Servicio) 2 | E36: =Proceso!C16 -> 0 | F36: =Proceso!D16 -> 0 | G36: =Proceso!E16 -> 0 | H36: =Proceso!F16 -> 0 | I36: =Proceso!G16 -> 0 | J36: =Proceso!H16 -> 0 | K36: =Proceso!I16 -> 0 | L36: =Proceso!J16 -> 0
C37: Precio Producto(Servicio) 3 | E37: =Proceso!C17 -> 0 | F37: =Proceso!D17 -> 0 | G37: =Proceso!E17 -> 0 | H37: =Proceso!F17 -> 0 | I37: =Proceso!G17 -> 0 | J37: =Proceso!H17 -> 0 | K37: =Proceso!I17 -> 0 | L37: =Proceso!J17 -> 0
E40: =E10 -> Ene | F40: =F10 -> Feb | G40: Mar | H40: Abr | I40: May | J40: Jun | K40: Jul | L40: Ago | M40: Sep | N40: Oct | O40: Nov | P40: Dic
C41: INGRESO PROYECTADOS-mensual | E41: =SUMPRODUCT(E11:E13,$E$23:$E$25) -> 0 | F41: =SUMPRODUCT(F11:F13,$E$23:$E$25) -> 0 | G41: 0 | H41: 0 | I41: 0 | J41: 0 | K41: 0 | L41: 0 | M41: 0 | N41: 0 | O41: 0 | P41: 0
E43: =E30 -> 2018 | F43: =F30 -> 2019 | G43: 2020 | H43: 2021 | I43: 2022 | J43: 2023 | K43: 2024 | L43: 2025
C44: INGRESO PROYECTADOS-anual | E44: =SUM(Ingresos_mensual) -> 0 | F44: =SUMPRODUCT(F16:F18,F35:F37) -> 0 | G44: =SUMPRODUCT(G16:G18,G35:G37) -> 0 | H44: 0 | I44: 0 | J44: 0 | K44: 0 | L44: 0
C47: 3. MANEJO DE CARTERA
C49: Politicas de cartera
C50: Dias | D50: %
C51: 30 | D51: 50%
C52: 60 | D52: 0%
C53: 180 | D53: 0%
E55: =E40 -> Ene | F55: =F40 -> Feb | G55: Mar | H55: Abr | I55: May | J55: Jun | K55: Jul | L55: Ago | M55: Sep | N55: Oct | O55: Nov | P55: Dic
C56: CXC-mensual | E56: =Proceso!D42 -> 0 | F56: =Proceso!E42 -> 0 | G56: =Proceso!F42 -> 0 | H56: =Proceso!G42 -> 0 | I56: =Proceso!H42 -> 0 | J56: =Proceso!I42 -> 0 | K56: =Proceso!J42 -> 0 | L56: =Proceso!K42 -> 0 | M56: =Proceso!L42 -> 0 | N56: =Proceso!M42 -> 0 | O56: =Proceso!N42 -> 0 | P56: =Proceso!O42 -> 0
C57: Recaudo mensual | E57: =Proceso!D44 -> 0 | F57: =Proceso!E44 -> 0 | G57: =Proceso!F44 -> 0 | H57: =Proceso!G44 -> 0 | I57: =Proceso!H44 -> 0 | J57: =Proceso!I44 -> 0 | K57: =Proceso!J44 -> 0 | L57: =Proceso!K44 -> 0 | M57: =Proceso!L44 -> 0 | N57: =Proceso!M44 -> 0 | O57: =Proceso!N44 -> 0 | P57: =Proceso!O44 -> 0
E59: =E43 -> 2018 | F59: =F43 -> 2019 | G59: 2020 | H59: 2021 | I59: 2022 | J59: 2023 | K59: 2024 | L59: 2025
C60: CXC-annual | E60: =Proceso!C43 -> 0 | F60: =Proceso!E47 -> 0 | G60: =Proceso!F47 -> 0 | H60: =Proceso!G47 -> 0 | I60: =Proceso!H47 -> 0 | J60: =Proceso!I47 -> 0 | K60: =Proceso!J47 -> 0 | L60: =Proceso!K47 -> 0
C61: Recaudo annual | E61: =Proceso!C45 -> 0 | F61: =Proceso!E48 -> 0 | G61: =Proceso!F48 -> 0 | H61: =Proceso!G48 -> 0 | I61: =Proceso!H48 -> 0 | J61: =Proceso!I48 -> 0 | K61: =Proceso!J48 -> 0 | L61: =Proceso!K48 -> 0

Sheet Mod.ctos&gtos
C3: MODULO DE COSTOS Y GASTOS
C4: =Instructivo!C5 -> Version 1.0
C5: ="Evaluacion de Costos y Gastos para el proyecto "&Nom_proyecto &". Proyecto que inicia en el año "& Anio_proyecto&"." -> Evaluacion de Costos y Gastos para el proyecto Proyecto 1. Proyecto que inicia en el año 2018.
C6: * Los ingresos son calculados siguiendo la dinamica del Cantidad y Precio.
C8: 1. ANALISIS DE COSTO
C10: Producto(Servicio) 1
C12: Insumos requeridos | D12: Catidad | E12: Valor
C13: Insumo 1 | D13: 0 | E13: 0
C14: Insumo 2 | D14: 0 | E14: 0
C15: Insumo 2 | D15: 0 | E15: 0
C16: ="Total Costos Unitario -"&C10 -> Total Costos Unitario -Producto(Servicio) 1 | E16: =SUMPRODUCT(D13:D15,E13:E15) -> 0
C21: Criterios propios | E21: =Mod.ingresos!E30 -> 2018 | F21: =Mod.ingresos!F30 -> 2019 | G21: =Mod.ingresos!G30 -> 2020 | H21: =Mod.ingresos!H30 -> 2021 | I21: =Mod.ingresos!I30 -> 2022 | J21: =Mod.ingresos!J30 -> 2023 | K21: =Mod.ingresos!K30 -> 2024 | L21: =Mod.ingresos!L30 -> 2025
C22: Producto(Servicio) 1 | F22: 0% | G22: 0% | H22: 0% | I22: 0% | J22: 0% | K22: 0% | L22: 0%
C26: ="COSTO MENSUAL-"&C10 -> COSTO MENSUAL-Producto(Servicio) 1 | E26: Ene | F26: Feb | G26: Mar | H26: Abr | I26: May | J26: Jun | K26: Jul | L26: Ago | M26: Sep | N26: Oct | O26: Nov | P26: Dic
C27: =Mod.ingresos!C11 -> Cantidad -Producto(Servicio) 1 | E27: =Mod.ingresos!E11 -> 0 | F27: =Mod.ingresos!F11 -> 0 | G27: =Mod.ingresos!G11 -> 0 | H27: =Mod.ingresos!H11 -> 0 | I27: =Mod.ingresos!I11 -> 0 | J27: =Mod.ingresos!J11 -> 0 | K27: =Mod.ingresos!K11 -> 0 | L27: =Mod.ingresos!L11 -> 0 | M27: =Mod.ingresos!M11 -> 0 | N27: =Mod.ingresos!N11 -> 0 | O27: =Mod.ingresos!O11 -> 0 | P27: =Mod.ingresos!P11 -> 0
C28: Costo Unitario | E28: =Costo1 -> 0 | F28: 0 | G28: 0 | H28: 0 | I28: 0 | J28: 0 | K28: 0 | L28: 0 | M28: 0 | N28: 0 | O28: 0 | P28: 0
C29: ="COSTO TOTAL-"&C10 -> COSTO TOTAL-Producto(Servicio) 1 | E29: =PRODUCT(E27,E28) -> 0 | F29: =PRODUCT(F27,F28) -> 0 | G29: 0 | H29: 0 | I29: 0 | J29: 0 | K29: 0 | L29: 0 | M29: 0 | N29: 0 | O29: 0 | P29: 0
C31: ="COSTO ANUAL-"&C10 -> COSTO ANUAL-Producto(Servicio) 1 | E31: =Mod.ingresos!E43 -> 2018 | F31: =Mod.ingresos!F43 -> 2019 | G31: =Mod.ingresos!G43 -> 2020 | H31: =Mod.ingresos!H43 -> 2021 | I31: =Mod.ingresos!I43 -> 2022 | J31: =Mod.ingresos!J43 -> 2023 | K31: =Mod.ingresos!K43 -> 2024 | L31: =Mod.ingresos!L43 -> 2025
C32: =C27 -> Cantidad -Producto(Servicio) 1 | E32: =Mod.ingresos!E16 -> 0 | F32: =Mod.ingresos!F16 -> 0 | G32: =Mod.ingresos!G16 -> 0 | H32: =Mod.ingresos!H16 -> 0 | I32: =Mod.ingresos!I16 -> 0 | J32: =Mod.ingresos!J16 -> 0 | K32: =Mod.ingresos!K16 -> 0 | L32: =Mod.ingresos!L16 -> 0
C33: =C28 -> Costo Unitario | E33: =Proceso!C66 -> 0 | F33: =Proceso!D66 -> 0 | G33: =Proceso!E66 -> 0 | H33: =Proceso!F66 -> 0 | I33: =Proceso!G66 -> 0 | J33: =Proceso!H66 -> 0 | K33: =Proceso!I66 -> 0 | L33: =Proceso!J66 -> 0
C34: COSTO TOTAL PS1-anual | E34: =PRODUCT(E32,E33) -> 0 | F34: =PRODUCT(F32,F33) -> 0 | G34: 0 | H34: 0 | I34: 0 | J34: 0 | K34: 0 | L34: 0
C37: Producto(Servicio) 2
C39: Insumos requeridos | D39: Catidad | E39: Valor
C40: Insumo 1 | D40: 0 | E40: 0
C41: Insumo 2 | D41: 0 | E41: 0
C42: Insumo 2 | D42: 0 | E42: 0
C43: ="Total Costos Unitario -"&C37 -> Total Costos Unitario -Producto(Servicio) 2 | E43: =SUMPRODUCT(D40:D42,E40:E42) -> 0
C48: Criterios propios | E48: =E21 -> 2018 | F48: 2019 | G48: 2020 | H48: 2021 | I48: 2022 | J48: 2023 | K48: 2024 | L48: 2025
C49: Producto(Servicio) 2 | F49: 0% | G49: 0% | H49: 0% | I49: 0% | J49: 0% | K49: 0% | L49: 0%
C53: ="COSTO MENSUAL-"&C37 -> COSTO MENSUAL-Producto(Servicio) 2 | E53: Ene | F53: Feb | G53: Mar | H53: Abr | I53: May | J53: Jun | K53: Jul | L53: Ago | M53: Sep | N53: Oct | O53: Nov | P53: Dic
C54: =Mod.ingresos!C12 -> Cantidad -Producto(Servicio) 2 | E54: =Mod.ingresos!E12 -> 0 | F54: =Mod.ingresos!F12 -> 0 | G54: =Mod.ingresos!G12 -> 0 | H54: =Mod.ingresos!H12 -> 0 | I54: =Mod.ingresos!I12 -> 0 | J54: =Mod.ingresos!J12 -> 0 | K54: =Mod.ingresos!K12 -> 0 | L54: =Mod.ingresos!L12 -> 0 | M54: =Mod.ingresos!M12 -> 0 | N54: =Mod.ingresos!N12 -> 0 | O54: =Mod.ingresos!O12 -> 0 | P54: =Mod.ingresos!P12 -> 0
C55: Costo Unitario | E55: =Costo2 -> 0 | F55: 0 | G55: 0 | H55: 0 | I55: 0 | J55: 0 | K55: 0 | L55: 0 | M55: 0 | N55: 0 | O55: 0 | P55: 0
C56: ="COSTO TOTAL-"&C37 -> COSTO TOTAL-Producto(Servicio) 2 | E56: =PRODUCT(E54,E55) -> 0 | F56: =PRODUCT(F54,F55) -> 0 | G56: =PRODUCT(G54,G55) -> 0 | H56: =PRODUCT(H54,H55) -> 0 | I56: =PRODUCT(I54,I55) -> 0 | J56: =PRODUCT(J54,J55) -> 0 | K56: =PRODUCT(K54,K55) -> 0 | L56: =PRODUCT(L54,L55) -> 0 | M56: =PRODUCT(M54,M55) -> 0 | N56: =PRODUCT(N54,N55) -> 0 | O56: =PRODUCT(O54,O55) -> 0 | P56: =PRODUCT(P54,P55) -> 0
C58: ="COSTO ANUAL-"&C37 -> COSTO ANUAL-Producto(Servicio) 2 | E58: =E31 -> 2018 | F58: 2019 | G58: 2020 | H58: 2021 | I58: 2022 | J58: 2023 | K58: 2024 | L58: 2025
C59: =C54 -> Cantidad -Producto(Servicio) 2 | E59: =Mod.ingresos!E17 -> 0 | F59: =Mod.ingresos!F17 -> 0 | G59: =Mod.ingresos!G17 -> 0 | H59: =Mod.ingresos!H17 -> 0 | I59: =Mod.ingresos!I17 -> 0 | J59: =Mod.ingresos!J17 -> 0 | K59: =Mod.ingresos!K17 -> 0 | L59: =Mod.ingresos!L17 -> 0
C60: =C55 -> Costo Unitario | E60: =Proceso!C73 -> 0 | F60: =Proceso!D73 -> 0 | G60: =Proceso!E73 -> 0 | H60: =Proceso!F73 -> 0 | I60: =Proceso!G73 -> 0 | J60: =Proceso!H73 -> 0 | K60: =Proceso!I73 -> 0 | L60: =Proceso!J73 -> 0
C61: COSTO TOTAL PS2-anual | E61: =PRODUCT(E59,E60) -> 0 | F61: =PRODUCT(F59,F60) -> 0 | G61: =PRODUCT(G59,G60) -> 0 | H61: =PRODUCT(H59,H60) -> 0 | I61: =PRODUCT(I59,I60) -> 0 | J61: =PRODUCT(J59,J60) -> 0 | K61: =PRODUCT(K59,K60) -> 0 | L61: =PRODUCT(L59,L60) -> 0
C64: Producto(Servicio) 3
C66: Insumos requeridos | D66: Catidad | E66: Valor
C67: Insumo 1 | D67: 0 | E67: 0
C68: Insumo 2 | D68: 0 | E68: 0
C69: Insumo 2 | D69: 0 | E69: 0
C70: ="Total Costos Unitario -"&C64 -> Total Costos Unitario -Producto(Servicio) 3 | E70: =SUMPRODUCT(D67:D69,E67:E69) -> 0
C75: Criterios propios | E75: =E48 -> 2018 | F75: 2019 | G75: 2020 | H75: 2021 | I75: 2022 | J75: 2023 | K75: 2024 | L75: 2025
C76: Producto(Servicio) 3 | F76: 0% | G76: 0% | H76: 0% | I76: 0% | J76: 0% | K76: 0% | L76: 0%
C80: ="COSTO MENSUAL-"&C64 -> COSTO MENSUAL-Producto(Servicio) 3 | E80: Ene | F80: Feb | G80: Mar | H80: Abr | I80: May | J80: Jun | K80: Jul | L80: Ago | M80: Sep | N80: Oct | O80: Nov | P80: Dic
C81: =Mod.ingresos!C13 -> Cantidad -Producto(Servicio) 3 | E81: =Mod.ingresos!E13 -> 0 | F81: =Mod.ingresos!F13 -> 0 | G81: =Mod.ingresos!G13 -> 0 | H81: =Mod.ingresos!H13 -> 0 | I81: =Mod.ingresos!I13 -> 0 | J81: =Mod.ingresos!J13 -> 0 | K81: =Mod.ingresos!K13 -> 0 | L81: =Mod.ingresos!L13 -> 0 | M81: =Mod.ingresos!M13 -> 0 | N81: =Mod.ingresos!N13 -> 0 | O81: =Mod.ingresos!O13 -> 0 | P81: =Mod.ingresos!P13 -> 0
C82: Costo Unitario | E82: =Costo3 -> 0 | F82: 0 | G82: 0 | H82: 0 | I82: 0 | J82: 0 | K82: 0 | L82: 0 | M82: 0 | N82: 0 | O82: 0 | P82: 0
C83: ="COSTO TOTAL-"&C64 -> COSTO TOTAL-Producto(Servicio) 3 | E83: =PRODUCT(E81,E82) -> 0 | F83: =PRODUCT(F81,F82) -> 0 | G83: =PRODUCT(G81,G82) -> 0 | H83: =PRODUCT(H81,H82) -> 0 | I83: =PRODUCT(I81,I82) -> 0 | J83: =PRODUCT(J81,J82) -> 0 | K83: =PRODUCT(K81,K82) -> 0 | L83: =PRODUCT(L81,L82) -> 0 | M83: =PRODUCT(M81,M82) -> 0 | N83: =PRODUCT(N81,N82) -> 0 | O83: =PRODUCT(O81,O82) -> 0 | P83: =PRODUCT(P81,P82) -> 0
C85: ="COSTO ANUAL-"&C64 -> COSTO ANUAL-Producto(Servicio) 3 | E85: =E58 -> 2018 | F85: 2019 | G85: 2020 | H85: 2021 | I85: 2022 | J85: 2023 | K85: 2024 | L85: 2025
C86: =C81 -> Cantidad -Producto(Servicio) 3 | E86: =Mod.ingresos!E18 -> 0 | F86: =Mod.ingresos!F18 -> 0 | G86: =Mod.ingresos!G18 -> 0 | H86: =Mod.ingresos!H18 -> 0 | I86: =Mod.ingresos!I18 -> 0 | J86: =Mod.ingresos!J18 -> 0 | K86: =Mod.ingresos!K18 -> 0 | L86: =Mod.ingresos!L18 -> 0
C87: =C82 -> Costo Unitario | E87: =Proceso!C80 -> 0 | F87: =Proceso!D80 -> 0 | G87: =Proceso!E80 -> 0 | H87: =Proceso!F80 -> 0 | I87: =Proceso!G80 -> 0 | J87: =Proceso!H80 -> 0 | K87: =Proceso!I80 -> 0 | L87: =Proceso!J80 -> 0
C88: COSTO TOTAL PS3-anual | E88: =PRODUCT(E86,E87) -> 0 | F88: =PRODUCT(F86,F87) -> 0 | G88: =PRODUCT(G86,G87) -> 0 | H88: =PRODUCT(H86,H87) -> 0 | I88: =PRODUCT(I86,I87) -> 0 | J88: =PRODUCT(J86,J87) -> 0 | K88: =PRODUCT(K86,K87) -> 0 | L88: =PRODUCT(L86,L87) -> 0
C93: Concepto Costos | D93: Monto mensual
C94: Servicios Personales | D94: 0
C95: Costos Generales | D95: 0 | F95: Criterios propios | H95: =E75 -> 2018 | I95: 2019 | J95: 2020 | K95: 2021 | L95: 2022 | M95: 2023 | N95: 2024 | O95: 2025
C96: Servicios Públicos | D96: 0 | F96: Producto(Servicio) 3 | I96: 0% | J96: 0% | K96: 0% | L96: 0% | M96: 0% | N96: 0% | O96: 0%
C97: Mantenimientos | D97: 0
C98: Otros Costos | D98: 0
E100: =E80 -> Ene | F100: Feb | G100: Mar | H100: Abr | I100: May | J100: Jun | K100: Jul | L100: Ago | M100: Sep | N100: Oct | O100: Nov | P100: Dic
C101: Costos insumos | E101: =E29+E56+E83 -> 0 | F101: 0 | G101: 0 | H101: 0 | I101: 0 | J101: 0 | K101: 0 | L101: 0 | M101: 0 | N101: 0 | O101: 0 | P101: 0
C102: ="Costos "&C94 -> Costos Servicios Personales | E102: =porcosto1 -> 0 | F102: 0 | G102: 0 | H102: 0 | I102: 0 | J102: 0 | K102: 0 | L102: 0 | M102: 0 | N102: 0 | O102: 0 | P102: 0
C103: ="Costos "&C95 -> Costos Costos Generales | E103: =porcosto2 -> 0 | F103: 0 | G103: 0 | H103: 0 | I103: 0 | J103: 0 | K103: 0 | L103: 0 | M103: 0 | N103: 0 | O103: 0 | P103: 0
C104: Costos Servicios Públicos | E104: =porcosto3 -> 0 | F104: 0 | G104: 0 | H104: 0 | I104: 0 | J104: 0 | K104: 0 | L104: 0 | M104: 0 | N104: 0 | O104: 0 | P104: 0
C105: Costos Mantenimientos | E105: =porcosto4 -> 0 | F105: 0 | G105: 0 | H105: 0 | I105: 0 | J105: 0 | K105: 0 | L105: 0 | M105: 0 | N105: 0 | O105: 0 | P105: 0
C106: Costos Otros Costos | E106: =porcosto5 -> 0 | F106: 0 | G106: 0 | H106: 0 | I106: 0 | J106: 0 | K106: 0 | L106: 0 | M106: 0 | N106: 0 | O106: 0 | P106: 0
C107: TOTAL COSTOS MENSUALES | E107: =SUM(E101:E106) -> 0 | F107: =SUM(F101:F106) -> 0 | G107: 0 | H107: 0 | I107: 0 | J107: 0 | K107: 0 | L107: 0 | M107: 0 | N107: 0 | O107: 0 | P107: 0
E110: =E85 -> 2018 | F110: 2019 | G110: 2020 | H110: 2021 | I110: 2022 | J110: 2023 | K110: 2024 | L110: 2025
C111: =C101 -> Costos insumos | E111: =E34+E61+E88 -> 0 | F111: 0 | G111: 0 | H111: 0 | I111: 0 | J111: 0 | K111: 0 | L111: 0
C112: =C102 -> Costos Servicios Personales | E112: =Proceso!C87 -> 0 | F112: =Proceso!D87 -> 0 | G112: =Proceso!E87 -> 0 | H112: =Proceso!F87 -> 0 | I112: =Proceso!G87 -> 0 | J112: =Proceso!H87 -> 0 | K112: =Proceso!I87 -> 0 | L112: =Proceso!J87 -> 0
C113: Costos Costos Generales | E113: =Proceso!C88 -> 0 | F113: =Proceso!D88 -> 0 | G113: =Proceso!E88 -> 0 | H113: =Proceso!F88 -> 0 | I113: =Proceso!G88 -> 0 | J113: =Proceso!H88 -> 0 | K113: =Proceso!I88 -> 0 | L113: =Proceso!J88 -> 0
C114: Costos Servicios Públicos | E114: =Proceso!C89 -> 0 | F114: =Proceso!D89 -> 0 | G114: =Proceso!E89 -> 0 | H114: =Proceso!F89 -> 0 | I114: =Proceso!G89 -> 0 | J114: =Proceso!H89 -> 0 | K114: =Proceso!I89 -> 0 | L114: =Proceso!J89 -> 0
C115: Costos Mantenimientos | E115: =Proceso!C90 -> 0 | F115: =Proceso!D90 -> 0 | G115: =Proceso!E90 -> 0 | H115: =Proceso!F90 -> 0 | I115: =Proceso!G90 -> 0 | J115: =Proceso!H90 -> 0 | K115: =Proceso!I90 -> 0 | L115: =Proceso!J90 -> 0
C116: Costos Otros Costos | E116: =Proceso!C91 -> 0 | F116: =Proceso!D91 -> 0 | G116: =Proceso!E91 -> 0 | H116: =Proceso!F91 -> 0 | I116: =Proceso!G91 -> 0 | J116: =Proceso!H91 -> 0 | K116: =Proceso!I91 -> 0 | L116: =Proceso!J91 -> 0
C117: TOTAL COSTOS ANUALES | E117: =SUM(E111:E116) -> 0 | F117: =SUM(F111:F116) -> 0 | G117: 0 | H117: 0 | I117: 0 | J117: 0 | K117: 0 | L117: 0
C120: 2. ANALISIS DE GASTO
C122: % DE GASTO RESPECTO AL INGRESO
C123: Gastos de ventas | E123: 0%
C124: Servicios publicos
C125: Mantenimiento de oficina
C126: Seguros
C127: Articulos de Oficina
C128: Arriendos
C129: Gastos varios
E131: =E100 -> Ene | F131: =F100 -> Feb | G131: Mar | H131: Abr | I131: May | J131: Jun | K131: Jul | L131: Ago | M131: Sep | N131: Oct | O131: Nov | P131: Dic
C132: TOTAL GASTOS MENSUALES | E132: =SUM($E$123:$E$129)*Mod.ingresos!E41 -> 0 | F132: =SUM($E$123:$E$129)*Mod.ingresos!F41 -> 0 | G132: =SUM($E$123:$E$129)*Mod.ingresos!G41 -> 0 | H132: =SUM($E$123:$E$129)*Mod.ingresos!H41 -> 0 | I132: =SUM($E$123:$E$129)*Mod.ingresos!I41 -> 0 | J132: =SUM($E$123:$E$129)*Mod.ingresos!J41 -> 0 | K132: =SUM($E$123:$E$129)*Mod.ingresos!K41 -> 0 | L132: =SUM($E$123:$E$129)*Mod.ingresos!L41 -> 0 | M132: =SUM($E$123:$E$129)*Mod.ingresos!M41 -> 0 | N132: =SUM($E$123:$E$129)*Mod.ingresos!N41 -> 0 | O132: =SUM($E$123:$E$129)*Mod.ingresos!O41 -> 0 | P132: =SUM($E$123:$E$129)*Mod.ingresos!P41 -> 0
E134: =E110 -> 2018 | F134: =F110 -> 2019 | G134: 2020 | H134: 2021 | I134: 2022 | J134: 2023 | K134: 2024 | L134: 2025
C135: TOTAL GASTOS ANUALES | E135: =SUM($E$123:$E$129)*Mod.ingresos!E44 -> 0 | F135: =SUM($E$123:$E$129)*Mod.ingresos!F44 -> 0 | G135: =SUM($E$123:$E$129)*Mod.ingresos!G44 -> 0 | H135: =SUM($E$123:$E$129)*Mod.ingresos!H44 -> 0 | I135: =SUM($E$123:$E$129)*Mod.ingresos!I44 -> 0 | J135: =SUM($E$123:$E$129)*Mod.ingresos!J44 -> 0 | K135: =SUM($E$123:$E$129)*Mod.ingresos!K44 -> 0 | L135: =SUM($E$123:$E$129)*Mod.ingresos!L44 -> 0
C138: 3. MANEJO DE PROVEEDORES
C140: Concepto | D140: Dias
C141: Costos de Insumos | D141: 0
C142: Otros Costos | D142: 0
C143: Gastos | D143: 0
E145: =Mod.ingresos!E55 -> Ene | F145: =Mod.ingresos!F55 -> Feb | G145: =Mod.ingresos!G55 -> Mar | H145: =Mod.ingresos!H55 -> Abr | I145: =Mod.ingresos!I55 -> May | J145: =Mod.ingresos!J55 -> Jun | K145: =Mod.ingresos!K55 -> Jul | L145: =Mod.ingresos!L55 -> Ago | M145: =Mod.ingresos!M55 -> Sep | N145: =Mod.ingresos!N55 -> Oct | O145: =Mod.ingresos!O55 -> Nov | P145: =Mod.ingresos!P55 -> Dic
C146: CXP-mensual | E146: =Proceso!D141 -> 0 | F146: =Proceso!E141 -> 0 | G146: =Proceso!F141 -> 0 | H146: =Proceso!G141 -> 0 | I146: =Proceso!H141 -> 0 | J146: =Proceso!I141 -> 0 | K146: =Proceso!J141 -> 0 | L146: =Proceso!K141 -> 0 | M146: =Proceso!L141 -> 0 | N146: =Proceso!M141 -> 0 | O146: =Proceso!N141 -> 0 | P146: =Proceso!O141 -> 0
C147: Pagos mensual | E147: =Proceso!D142 -> 0 | F147: =Proceso!E142 -> 0 | G147: =Proceso!F142 -> 0 | H147: =Proceso!G142 -> 0 | I147: =Proceso!H142 -> 0 | J147: =Proceso!I142 -> 0 | K147: =Proceso!J142 -> 0 | L147: =Proceso!K142 -> 0 | M147: =Proceso!L142 -> 0 | N147: =Proceso!M142 -> 0 | O147: =Proceso!N142 -> 0 | P147: =Proceso!O142 -> 0
E149: =Mod.ingresos!E59 -> 2018 | F149: =Mod.ingresos!F59 -> 2019 | G149: =Mod.ingresos!G59 -> 2020 | H149: =Mod.ingresos!H59 -> 2021 | I149: =Mod.ingresos!I59 -> 2022 | J149: =Mod.ingresos!J59 -> 2023 | K149: =Mod.ingresos!K59 -> 2024 | L149: =Mod.ingresos!L59 -> 2025
C150: CXP-annual | E150: =Proceso!D145 -> 0 | F150: =Proceso!E145 -> 0 | G150: =Proceso!F145 -> 0 | H150: =Proceso!G145 -> 0 | I150: =Proceso!H145 -> 0 | J150: =Proceso!I145 -> 0 | K150: =Proceso!J145 -> 0 | L150: =Proceso!K145 -> 0
C151: Pagos annual | E151: =Proceso!D146 -> 0 | F151: =Proceso!E146 -> 0 | G151: =Proceso!F146 -> 0 | H151: =Proceso!G146 -> 0 | I151: =Proceso!H146 -> 0 | J151: =Proceso!I146 -> 0 | K151: =Proceso!J146 -> 0 | L151: =Proceso!K146 -> 0

Sheet Mod.Inversiones
C3: MODULO DE INVERSIONES
C4: =Instructivo!C5 -> Version 1.0
C5: ="Inversiones necesarias para la puesta en marcha del proyecto "&Nom_proyecto &". Proyecto que inicia en el año "& Anio_proyecto&"." -> Inversiones necesarias para la puesta en marcha del proyecto Proyecto 1. Proyecto que inicia en el año 2018.
C6: * Special text
C8: 1. DETALLES INVERSIONES
C10: ="Año base -"&Anio_proyecto -> Año base -2018 | I10: Anuales
C11: Mes | D11: Terreno | E11: Edificacion | F11: Maquinaria y Materiales | G11: Otros | I11: Anhio | J11: =D11 -> Terreno | K11: =E11 -> Edificacion | L11: =F11 -> Maquinaria y Materiales | M11: =G11 -> Otros | N11: Total
C12: Ene | D12: 0 | E12: 0 | F12: 0 | G12: 0 | I12: =Mod.ingresos!$F$15 -> 2019 | J12: 0 | K12: 0 | L12: 0 | M12: 0 | N12: =SUM(J12:M12) -> 0
C13: Feb | D13: 0 | E13: 0 | F13: 0 | G13: 0 | I13: =Mod.ingresos!$G$15 -> 2020 | J13: 0 | L13: 0 | M13: 0 | N13: =SUM(J13:M13) -> 0
C14: Mar | D14: 0 | E14: 0 | F14: 0 | G14: 0 | I14: =Mod.ingresos!$H$15 -> 2021 | J14: 0 | K14: 0 | L14: 0 | M14: 0 | N14: 0
C15: Abr | D15: 0 | E15: 0 | F15: 0 | G15: 0
C16: May | D16: 0 | E16: 0 | F16: 0 | G16: 0
C17: Jun | D17: 0 | E17: 0 | F17: 0 | G17: 0
C18: Jul | D18: 0 | E18: 0 | F18: 0 | G18: 0
C19: Ago | D19: 0 | E19: 0 | F19: 0 | G19: 0
C20: Sep | D20: 0 | E20: 0 | F20: 0 | G20: 0
C21: Oct | D21: 0 | E21: 0 | F21: 0 | G21: 0
C22: Nov | D22: 0 | E22: 0 | F22: 0 | G22: 0
C23: Dic | D23: 0 | E23: 0 | F23: 0 | G23: 0
C24: SUB TOTAL | D24: =SUM(D12:D23) -> 0 | E24: =SUM(E12:E23) -> 0 | F24: 0 | G24: 0
C25: TOTAL ANIO 1 | D25: =SUM(D12:G23) -> 0
C27: 2.CRITERIOS DE DEPRECIACION
C29: Concepto de inversion | F29: Depreciacion-anios | G29: Reposicion
C30: =E11 -> Edificacion | F30: 8 | G30: NO
C31: =F11 -> Maquinaria y Materiales | F31: 8 | G31: NO
C32: =G11 -> Otros | F32: 4 | G32: SI
C35: DEPRECIACION
E37: =Proceso!D312 -> Ene | F37: =Proceso!E312 -> Feb | G37: =Proceso!F312 -> Mar | H37: =Proceso!G312 -> Abr | I37: =Proceso!H312 -> May | J37: =Proceso!I312 -> Jun | K37: =Proceso!J312 -> Jul | L37: =Proceso!K312 -> Ago | M37: =Proceso!L312 -> Sep | N37: =Proceso!M312 -> Oct | O37: =Proceso!N312 -> Nov | P37: =Proceso!O312 -> Dic
C38: =Proceso!B313 -> Depreciacion mensual | E38: =Proceso!D313 -> 0 | F38: =Proceso!E313 -> 0 | G38: =Proceso!F313 -> 0 | H38: =Proceso!G313 -> 0 | I38: =Proceso!H313 -> 0 | J38: =Proceso!I313 -> 0 | K38: =Proceso!J313 -> 0 | L38: =Proceso!K313 -> 0 | M38: =Proceso!L313 -> 0 | N38: =Proceso!M313 -> 0 | O38: =Proceso!N313 -> 0 | P38: =Proceso!O313 -> 0
C39: =Proceso!B314 -> Depreciacion Acumulada | E39: =Proceso!D314 -> 0 | F39: =Proceso!E314 -> 0 | G39: =Proceso!F314 -> 0 | H39: =Proceso!G314 -> 0 | I39: =Proceso!H314 -> 0 | J39: =Proceso!I314 -> 0 | K39: =Proceso!J314 -> 0 | L39: =Proceso!K314 -> 0 | M39: =Proceso!L314 -> 0 | N39: =Proceso!M314 -> 0 | O39: =Proceso!N314 -> 0 | P39: =Proceso!O314 -> 0
C40: =Proceso!B315 -> PPE BRUTA mensual | E40: =Proceso!D315 -> 0 | F40: =Proceso!E315 -> 0 | G40: =Proceso!F315 -> 0 | H40: =Proceso!G315 -> 0 | I40: =Proceso!H315 -> 0 | J40: =Proceso!I315 -> 0 | K40: =Proceso!J315 -> 0 | L40: =Proceso!K315 -> 0 | M40: =Proceso!L315 -> 0 | N40: =Proceso!M315 -> 0 | O40: =Proceso!N315 -> 0 | P40: =Proceso!O315 -> 0
C41: =Proceso!B316 -> PPE NETA mensual | E41: =Proceso!D316 -> 0 | F41: =Proceso!E316 -> 0 | G41: =Proceso!F316 -> 0 | H41: =Proceso!G316 -> 0 | I41: =Proceso!H316 -> 0 | J41: =Proceso!I316 -> 0 | K41: =Proceso!J316 -> 0 | L41: =Proceso!K316 -> 0 | M41: =Proceso!L316 -> 0 | N41: =Proceso!M316 -> 0 | O41: =Proceso!N316 -> 0 | P41: =Proceso!O316 -> 0
E43: ='Mod.ctos&gtos'!E149 -> 2018 | F43: ='Mod.ctos&gtos'!F149 -> 2019 | G43: ='Mod.ctos&gtos'!G149 -> 2020 | H43: ='Mod.ctos&gtos'!H149 -> 2021 | I43: ='Mod.ctos&gtos'!I149 -> 2022 | J43: ='Mod.ctos&gtos'!J149 -> 2023 | K43: ='Mod.ctos&gtos'!K149 -> 2024 | L43: ='Mod.ctos&gtos'!L149 -> 2025
C44: =Proceso!B320 -> Depreciacion Acumulada | E44: =Proceso!D320 -> 0 | F44: =Proceso!E320 -> 0 | G44: =Proceso!F320 -> 0 | H44: =Proceso!G320 -> 0 | I44: =Proceso!H320 -> 0 | J44: =Proceso!I320 -> 0 | K44: =Proceso!J320 -> 0 | L44: =Proceso!K320 -> 0
C45: =Proceso!B321 -> PPE BRUTA annual | E45: =Proceso!D321 -> 0 | F45: =Proceso!E321 -> 0 | G45: =Proceso!F321 -> 0 | H45: =Proceso!G321 -> 0 | I45: =Proceso!H321 -> 0 | J45: =Proceso!I321 -> 0 | K45: =Proceso!J321 -> 0 | L45: =Proceso!K321 -> 0
C46: =Proceso!B322 -> PPE NETA annual | E46: =Proceso!D322 -> 0 | F46: =Proceso!E322 -> 0 | G46: =Proceso!F322 -> 0 | H46: =Proceso!G322 -> 0 | I46: =Proceso!H322 -> 0 | J46: =Proceso!I322 -> 0 | K46: =Proceso!J322 -> 0 | L46: =Proceso!K322 -> 0

Sheet Mod.Financiacion
C3: MODULO DE FINANCIACION
C4: =Instructivo!C5 -> Version 1.0
C5: ="Estructura de capital propuesta para el proyecto "&Nom_proyecto &". Proyecto que inicia en el año "& Anio_proyecto&"." -> Estructura de capital propuesta para el proyecto Proyecto 1. Proyecto que inicia en el año 2018.
C6: * Special text
E8: =Mod.Inversiones!E43 -> 2018 | F8: =Mod.Inversiones!F43 -> 2019 | G8: =Mod.Inversiones!G43 -> 2020 | H8: =Mod.Inversiones!H43 -> 2021 | I8: =Mod.Inversiones!I43 -> 2022 | J8: =Mod.Inversiones!J43 -> 2023 | K8: =Mod.Inversiones!K43 -> 2024 | L8: =Mod.Inversiones!L43 -> 2025
C9: Compromisos por inversiones
C10: Nuevas | E10: =Mod.Inversiones!D25 -> 0 | F10: =Mod.Inversiones!N12 -> 0 | G10: =Mod.Inversiones!N13 -> 0 | H10: =Mod.Inversiones!N14 -> 0
C11: Reposicion | F11: =Proceso!E269+Proceso!E289+Proceso!E309 -> 0 | G11: =Proceso!F269+Proceso!F289+Proceso!F309 -> 0 | H11: =Proceso!G269+Proceso!G289+Proceso!G309 -> 0 | I11: =Proceso!H269+Proceso!H289+Proceso!H309 -> 0 | J11: =Proceso!I269+Proceso!I289+Proceso!I309 -> 0 | K11: =Proceso!J269+Proceso!J289+Proceso!J309 -> 0 | L11: =Proceso!K269+Proceso!K289+Proceso!K309 -> 0
C12: TOTAL INVERSIONES | E12: =SUM(E10:E11) -> 0 | F12: =SUM(F10:F11) -> 0 | G12: 0 | H12: 0 | I12: 0 | J12: 0 | K12: 0 | L12: 0
C14: 1. ESTRUCTURA DE CAPITAL | E14: =E8 -> 2018 | F14: =F8 -> 2019 | G14: 2020 | H14: 2021 | I14: 2022 | J14: 2023 | K14: 2024 | L14: 2025
C15: DEUDA | D15: 80% | E15: =Proceso!D341 -> 0 | F15: =Proceso!E341 -> 0 | G15: =Proceso!F341 -> 0 | H15: =Proceso!G341 -> 0 | I15: =Proceso!H341 -> 0 | J15: =Proceso!I341 -> 0 | K15: =Proceso!J341 -> 0 | L15: =Proceso!K341 -> 0
C16: CAPITALIZACION | D16: =1-D15 -> 20% | E16: =Proceso!D342 -> 0 | F16: =Proceso!E342 -> 0 | G16: =Proceso!F342 -> 0 | H16: =Proceso!G342 -> 0 | I16: =Proceso!H342 -> 0 | J16: =Proceso!I342 -> 0 | K16: =Proceso!J342 -> 0 | L16: =Proceso!K342 -> 0
C19: 2. DETALLES DEUDAS
C21: BASE | G21: Anuales
C22: Mes | D22: Monto | E22: Plazo(p)-anhos | G22: Anio | H22: Monto | I22: Plazo(p)-anhos
B23: 1 | C23: =Mod.Inversiones!C12 -> Ene | D23: =INDEX(Proceso!$D$336:$O$336,B23) -> 0 | E23: 8 | G23: =Mod.ingresos!F30 -> 2019 | H23: =INDEX(Proceso!$E$341:$K$341,B23) -> 0 | I23: 8
B24: 2 | C24: =Mod.Inversiones!C13 -> Feb | D24: =INDEX(Proceso!$D$336:$O$336,B24) -> 0 | E24: tasa LP(tLP) | G24: =Mod.ingresos!G30 -> 2020 | H24: =INDEX(Proceso!$E$341:$K$341,B24) -> 0 | I24: tasa LP(tLP)
B25: 3 | C25: =Mod.Inversiones!C14 -> Mar | D25: =INDEX(Proceso!$D$336:$O$336,B25) -> 0 | E25: 5% | G25: =Mod.ingresos!H30 -> 2021 | H25: =INDEX(Proceso!$E$341:$K$341,B25) -> 0 | I25: 6%
B26: 4 | C26: =Mod.Inversiones!C15 -> Abr | D26: =INDEX(Proceso!$D$336:$O$336,B26) -> 0 | E26: PGC | G26: =Mod.ingresos!I30 -> 2022 | H26: =INDEX(Proceso!$E$341:$K$341,B26) -> 0 | I26: PGC
B27: 5 | C27: =Mod.Inversiones!C16 -> May | D27: =INDEX(Proceso!$D$336:$O$336,B27) -> 0 | E27: 0 | G27: =Mod.ingresos!J30 -> 2023 | H27: =INDEX(Proceso!$E$341:$K$341,B27) -> 0 | I27: 0
B28: 6 | C28: =Mod.Inversiones!C17 -> Jun | D28: =INDEX(Proceso!$D$336:$O$336,B28) -> 0 | G28: =Mod.ingresos!K30 -> 2024 | H28: =INDEX(Proceso!$E$341:$K$341,B28) -> 0
B29: 7 | C29: =Mod.Inversiones!C18 -> Jul | D29: =INDEX(Proceso!$D$336:$O$336,B29) -> 0 | G29: =Mod.ingresos!L30 -> 2025 | H29: =INDEX(Proceso!$E$341:$K$341,B29) -> 0
B30: 8 | C30: =Mod.Inversiones!C19 -> Ago | D30: =INDEX(Proceso!$D$336:$O$336,B30) -> 0
B31: 9 | C31: =Mod.Inversiones!C20 -> Sep | D31: =INDEX(Proceso!$D$336:$O$336,B31) -> 0
B32: 10 | C32: =Mod.Inversiones!C21 -> Oct | D32: =INDEX(Proceso!$D$336:$O$336,B32) -> 0
B33: 11 | C33: =Mod.Inversiones!C22 -> Nov | D33: =INDEX(Proceso!$D$336:$O$336,B33) -> 0
B34: 12 | C34: =Mod.Inversiones!C23 -> Dic | D34: =INDEX(Proceso!$D$336:$O$336,B34) -> 0
C36: RESUMEN
C38: Mensual | E38: =Proceso!D346 -> Ene | F38: =Proceso!E346 -> Feb | G38: =Proceso!F346 -> Mar | H38: =Proceso!G346 -> Abr | I38: =Proceso!H346 -> May | J38: =Proceso!I346 -> Jun | K38: =Proceso!J346 -> Jul | L38: =Proceso!K346 -> Ago | M38: =Proceso!L346 -> Sep | N38: =Proceso!M346 -> Oct | O38: =Proceso!N346 -> Nov | P38: =Proceso!O346 -> Dic
C39: Intereses | E39: =Proceso!D347 -> 0 | F39: =Proceso!E347 -> 0 | G39: =Proceso!F347 -> 0 | H39: =Proceso!G347 -> 0 | I39: =Proceso!H347 -> 0 | J39: =Proceso!I347 -> 0 | K39: =Proceso!J347 -> 0 | L39: =Proceso!K347 -> 0 | M39: =Proceso!L347 -> 0 | N39: =Proceso!M347 -> 0 | O39: =Proceso!N347 -> 0 | P39: =Proceso!O347 -> 0
C40: Capital | E40: =Proceso!D348 -> 0 | F40: =Proceso!E348 -> 0 | G40: =Proceso!F348 -> 0 | H40: =Proceso!G348 -> 0 | I40: =Proceso!H348 -> 0 | J40: =Proceso!I348 -> 0 | K40: =Proceso!J348 -> 0 | L40: =Proceso!K348 -> 0 | M40: =Proceso!L348 -> 0 | N40: =Proceso!M348 -> 0 | O40: =Proceso!N348 -> 0 | P40: =Proceso!O348 -> 0
C41: Saldo | E41: =Proceso!D349 -> 0 | F41: =Proceso!E349 -> 0 | G41: =Proceso!F349 -> 0 | H41: =Proceso!G349 -> 0 | I41: =Proceso!H349 -> 0 | J41: =Proceso!I349 -> 0 | K41: =Proceso!J349 -> 0 | L41: =Proceso!K349 -> 0 | M41: =Proceso!L349 -> 0 | N41: =Proceso!M349 -> 0 | O41: =Proceso!N349 -> 0 | P41: =Proceso!O349 -> 0
C43: =Proceso!B351 -> Annual | E43: =Mod.Inversiones!E43 -> 2018 | F43: =Mod.Inversiones!F43 -> 2019 | G43: =Mod.Inversiones!G43 -> 2020 | H43: =Mod.Inversiones!H43 -> 2021 | I43: =Mod.Inversiones!I43 -> 2022 | J43: =Mod.Inversiones!J43 -> 2023 | K43: =Mod.Inversiones!K43 -> 2024 | L43: =Mod.Inversiones!L43 -> 2025
C44: =Proceso!B352 -> Intereses | E44: =Proceso!D352 -> 0 | F44: =Proceso!E352 -> 0 | G44: =Proceso!F352 -> 0 | H44: =Proceso!G352 -> 0 | I44: =Proceso!H352 -> 0 | J44: =Proceso!I352 -> 0 | K44: =Proceso!J352 -> 0 | L44: =Proceso!K352 -> 0
C45: =Proceso!B353 -> Capital | E45: =Proceso!D353 -> 0 | F45: =Proceso!E353 -> 0 | G45: =Proceso!F353 -> 0 | H45: =Proceso!G353 -> 0 | I45: =Proceso!H353 -> 0 | J45: =Proceso!I353 -> 0 | K45: =Proceso!J353 -> 0 | L45: =Proceso!K353 -> 0
C46: =Proceso!B354 -> Saldo | E46: =Proceso!D354 -> 0 | F46: =Proceso!E354 -> 0 | G46: =Proceso!F354 -> 0 | H46: =Proceso!G354 -> 0 | I46: =Proceso!H354 -> 0 | J46: =Proceso!I354 -> 0 | K46: =Proceso!J354 -> 0 | L46: =Proceso!K354 -> 0

Sheet Mod.Financiero
C3: MODULO DE FINANCIERO
C4: =Instructivo!C5 -> Version 1.0
C5: ="Estados financieros para el "&Nom_proyecto &". Esta evaluacion tiene un periodo de analsisis de "& Anio_proyecto&" anios" -> Estados financieros para el Proyecto 1. Esta evaluacion tiene un periodo de analsisis de 2018 anios
C6: * Special text
C8: 1. ANALISIS MENSUAL
C10: 1.1 ESTADO DE RESULTADOS
E11: =Mod.Inversiones!E37 -> Ene | F11: =Mod.Inversiones!F37 -> Feb | G11: =Mod.Inversiones!G37 -> Mar | H11: =Mod.Inversiones!H37 -> Abr | I11: =Mod.Inversiones!I37 -> May | J11: =Mod.Inversiones!J37 -> Jun | K11: =Mod.Inversiones!K37 -> Jul | L11: =Mod.Inversiones!L37 -> Ago | M11: =Mod.Inversiones!M37 -> Sep | N11: =Mod.Inversiones!N37 -> Oct | O11: =Mod.Inversiones!O37 -> Nov | P11: =Mod.Inversiones!P37 -> Dic
C12: Ingresos | E12: =Mod.ingresos!E41 -> 0 | F12: =Mod.ingresos!F41 -> 0 | G12: =Mod.ingresos!G41 -> 0 | H12: =Mod.ingresos!H41 -> 0 | I12: =Mod.ingresos!I41 -> 0 | J12: =Mod.ingresos!J41 -> 0 | K12: =Mod.ingresos!K41 -> 0 | L12: =Mod.ingresos!L41 -> 0 | M12: =Mod.ingresos!M41 -> 0 | N12: =Mod.ingresos!N41 -> 0 | O12: =Mod.ingresos!O41 -> 0 | P12: =Mod.ingresos!P41 -> 0
C13: Costos | E13: =-'Mod.ctos&gtos'!E107 -> 0 | F13: =-'Mod.ctos&gtos'!F107 -> 0 | G13: =-'Mod.ctos&gtos'!G107 -> 0 | H13: =-'Mod.ctos&gtos'!H107 -> 0 | I13: =-'Mod.ctos&gtos'!I107 -> 0 | J13: =-'Mod.ctos&gtos'!J107 -> 0 | K13: =-'Mod.ctos&gtos'!K107 -> 0 | L13: =-'Mod.ctos&gtos'!L107 -> 0 | M13: =-'Mod.ctos&gtos'!M107 -> 0 | N13: =-'Mod.ctos&gtos'!N107 -> 0 | O13: =-'Mod.ctos&gtos'!O107 -> 0 | P13: =-'Mod.ctos&gtos'!P107 -> 0
C15: UTILIDAD BRUTA | E15: =SUM(E12:E13) -> 0 | F15: 0 | G15: 0 | H15: 0 | I15: 0 | J15: 0 | K15: 0 | L15: 0 | M15: 0 | N15: 0 | O15: 0 | P15: 0
C17: Gastos | E17: =-'Mod.ctos&gtos'!E132 -> 0 | F17: =-'Mod.ctos&gtos'!F132 -> 0 | G17: =-'Mod.ctos&gtos'!G132 -> 0 | H17: =-'Mod.ctos&gtos'!H132 -> 0 | I17: =-'Mod.ctos&gtos'!I132 -> 0 | J17: =-'Mod.ctos&gtos'!J132 -> 0 | K17: =-'Mod.ctos&gtos'!K132 -> 0 | L17: =-'Mod.ctos&gtos'!L132 -> 0 | M17: =-'Mod.ctos&gtos'!M132 -> 0 | N17: =-'Mod.ctos&gtos'!N132 -> 0 | O17: =-'Mod.ctos&gtos'!O132 -> 0 | P17: =-'Mod.ctos&gtos'!P132 -> 0
C18: Depreciaciones | E18: =Mod.Inversiones!E38 -> 0 | F18: =Mod.Inversiones!F38 -> 0 | G18: =Mod.Inversiones!G38 -> 0 | H18: =Mod.Inversiones!H38 -> 0 | I18: =Mod.Inversiones!I38 -> 0 | J18: =Mod.Inversiones!J38 -> 0 | K18: =Mod.Inversiones!K38 -> 0 | L18: =Mod.Inversiones!L38 -> 0 | M18: =Mod.Inversiones!M38 -> 0 | N18: =Mod.Inversiones!N38 -> 0 | O18: =Mod.Inversiones!O38 -> 0 | P18: =Mod.Inversiones!P38 -> 0
C20: UTILIDAD OPERATIVA | E20: =E15+SUM(E17:E18) -> 0 | F20: =F15+SUM(F17:F18) -> 0 | G20: 0 | H20: 0 | I20: 0 | J20: 0 | K20: 0 | L20: 0 | M20: 0 | N20: 0 | O20: 0 | P20: 0
C21: Margen opertaivo | E21: =IFERROR(E20/E12,"") ->  | F21: =IFERROR(F20/F12,"") -> 
C23: Otros ingresos
C24: Intereses | E24: =Mod.Financiacion!E39 -> 0 | F24: =Mod.Financiacion!F39 -> 0 | G24: =Mod.Financiacion!G39 -> 0 | H24: =Mod.Financiacion!H39 -> 0 | I24: =Mod.Financiacion!I39 -> 0 | J24: =Mod.Financiacion!J39 -> 0 | K24: =Mod.Financiacion!K39 -> 0 | L24: =Mod.Financiacion!L39 -> 0 | M24: =Mod.Financiacion!M39 -> 0 | N24: =Mod.Financiacion!N39 -> 0 | O24: =Mod.Financiacion!O39 -> 0 | P24: =Mod.Financiacion!P39 -> 0
C25: Otros egresos
C27: UAI | E27: =E20+E23+E24+E25 -> 0 | F27: =F20+F23+F24+F25 -> 0 | G27: 0 | H27: 0 | I27: 0 | J27: 0 | K27: 0 | L27: 0 | M27: 0 | N27: 0 | O27: 0 | P27: 0
C29: Impuestos | D29: =D115 -> 30% | E29: =-IF(E27<0,0,$D$29*E27) -> 0 | F29: =-IF(F27<0,0,$D$29*F27) -> 0 | G29: 0 | H29: 0 | I29: 0 | J29: 0 | K29: 0 | L29: 0 | M29: 0 | N29: 0 | O29: 0 | P29: 0
C31: UTILIDAD NETA | E31: =E27+E29 -> 0 | F31: =F27+F29 -> 0 | G31: 0 | H31: 0 | I31: 0 | J31: 0 | K31: 0 | L31: 0 | M31: 0 | N31: 0 | O31: 0 | P31: 0
C32: Margen neto | E32: =IFERROR(E31/E12,"") ->  | F32: =IFERROR(F31/F12,"") -> 
C34: 1.2 COMPORTAMIENTO DE CAJA
E35: =E11 -> Ene | F35: Feb | G35: Mar | H35: Abr | I35: May | J35: Jun | K35: Jul | L35: Ago | M35: Sep | N35: Oct | O35: Nov | P35: Dic
C36: Ingresos
C37: Recaudos | E37: =Proceso!D44 -> 0 | F37: =Proceso!E44 -> 0 | G37: =Proceso!F44 -> 0 | H37: =Proceso!G44 -> 0 | I37: =Proceso!H44 -> 0 | J37: =Proceso!I44 -> 0 | K37: =Proceso!J44 -> 0 | L37: =Proceso!K44 -> 0 | M37: =Proceso!L44 -> 0 | N37: =Proceso!M44 -> 0 | O37: =Proceso!N44 -> 0 | P37: =Proceso!O44 -> 0
C38: Desembolsos | E38: =Proceso!D336 -> 0 | F38: =Proceso!E336 -> 0 | G38: =Proceso!F336 -> 0 | H38: =Proceso!G336 -> 0 | I38: =Proceso!H336 -> 0 | J38: =Proceso!I336 -> 0 | K38: =Proceso!J336 -> 0 | L38: =Proceso!K336 -> 0 | M38: =Proceso!L336 -> 0 | N38: =Proceso!M336 -> 0 | O38: =Proceso!N336 -> 0 | P38: =Proceso!O336 -> 0
C39: Capitalizaciones | E39: =Proceso!D337 -> 0 | F39: =Proceso!E337 -> 0 | G39: =Proceso!F337 -> 0 | H39: =Proceso!G337 -> 0 | I39: =Proceso!H337 -> 0 | J39: =Proceso!I337 -> 0 | K39: =Proceso!J337 -> 0 | L39: =Proceso!K337 -> 0 | M39: =Proceso!L337 -> 0 | N39: =Proceso!M337 -> 0 | O39: =Proceso!N337 -> 0 | P39: =Proceso!O337 -> 0
C40: Otros ingresos
C41: TOTAL INGRESOS | E41: =SUM(E36:E40) -> 0 | F41: =SUM(F36:F40) -> 0 | G41: =SUM(G36:G40) -> 0 | H41: 0 | I41: 0 | J41: 0 | K41: 0 | L41: 0 | M41: 0 | N41: 0 | O41: 0 | P41: 0
C43: Egresos
C44: Pagos | E44: =-'Mod.ctos&gtos'!E147 -> 0 | F44: =-'Mod.ctos&gtos'!F147 -> 0 | G44: =-'Mod.ctos&gtos'!G147 -> 0 | H44: =-'Mod.ctos&gtos'!H147 -> 0 | I44: =-'Mod.ctos&gtos'!I147 -> 0 | J44: =-'Mod.ctos&gtos'!J147 -> 0 | K44: =-'Mod.ctos&gtos'!K147 -> 0 | L44: =-'Mod.ctos&gtos'!L147 -> 0 | M44: =-'Mod.ctos&gtos'!M147 -> 0 | N44: =-'Mod.ctos&gtos'!N147 -> 0 | O44: =-'Mod.ctos&gtos'!O147 -> 0 | P44: =-'Mod.ctos&gtos'!P147 -> 0
C45: Inversiones | E45: =-Proceso!D176 -> 0 | F45: =-Proceso!E176 -> 0.00 | G45: =-Proceso!F176 -> 0.00 | H45: =-Proceso!G176 -> 0.00 | I45: =-Proceso!H176 -> 0.00 | J45: =-Proceso!I176 -> 0.00 | K45: =-Proceso!J176 -> 0.00 | L45: =-Proceso!K176 -> 0.00 | M45: =-Proceso!L176 -> 0.00 | N45: =-Proceso!M176 -> 0.00 | O45: =-Proceso!N176 -> 0.00 | P45: =-Proceso!O176 -> 0.00
C46: Intereses | E46: =Proceso!D347 -> 0 | F46: =Proceso!E347 -> 0 | G46: =Proceso!F347 -> 0 | H46: =Proceso!G347 -> 0 | I46: =Proceso!H347 -> 0 | J46: =Proceso!I347 -> 0 | K46: =Proceso!J347 -> 0 | L46: =Proceso!K347 -> 0 | M46: =Proceso!L347 -> 0 | N46: =Proceso!M347 -> 0 | O46: =Proceso!N347 -> 0 | P46: =Proceso!O347 -> 0
C47: Capital | E47: =Proceso!D348 -> 0 | F47: =Proceso!E348 -> 0 | G47: =Proceso!F348 -> 0 | H47: =Proceso!G348 -> 0 | I47: =Proceso!H348 -> 0 | J47: =Proceso!I348 -> 0 | K47: =Proceso!J348 -> 0 | L47: =Proceso!K348 -> 0 | M47: =Proceso!L348 -> 0 | N47: =Proceso!M348 -> 0 | O47: =Proceso!N348 -> 0 | P47: =Proceso!O348 -> 0
C48: Impuesto
C49: TOTAL EGRESOS | E49: =SUM(E44:E48) -> 0 | F49: =SUM(F44:F48) -> 0 | G49: 0 | H49: 0 | I49: 0 | J49: 0 | K49: 0 | L49: 0 | M49: 0 | N49: 0 | O49: 0 | P49: 0
C51: Variacion del periodo | E51: =E41+E49 -> 0 | F51: 0 | G51: 0 | H51: 0 | I51: 0 | J51: 0 | K51: 0 | L51: 0 | M51: 0 | N51: 0 | O51: 0 | P51: 0
C52: Caja final | E52: =E51+D52 -> 0 | F52: 0 | G52: 0 | H52: 0 | I52: 0 | J52: 0 | K52: 0 | L52: 0 | M52: 0 | N52: 0 | O52: 0 | P52: 0
C54: Caja minima | D54: NO | E54: =Proceso!D154 -> 0 | F54: =Proceso!E154 -> 0 | G54: =Proceso!F154 -> 0 | H54: =Proceso!G154 -> 0 | I54: =Proceso!H154 -> 0 | J54: =Proceso!I154 -> 0 | K54: =Proceso!J154 -> 0 | L54: =Proceso!K154 -> 0 | M54: =Proceso!L154 -> 0 | N54: =Proceso!M154 -> 0 | O54: =Proceso!N154 -> 0 | P54: =Proceso!O154 -> 0
C55: Deficit | E55: =-IF(E52<E54,E54-E52,0) -> 0 | F55: =-IF(F52<F54,F54-F52,0) -> 0 | G55: 0 | H55: 0 | I55: 0 | J55: 0 | K55: 0 | L55: 0 | M55: 0 | N55: 0 | O55: 0 | P55: 0
C56: Excedentes | E56: =IF(E52>ABS(E54),E52-E54,0) -> 0 | F56: =IF(F52>ABS(F54),F52-F54,0) -> 0 | G56: =IF(G52>ABS(G54),G52-G54,0) -> 0 | H56: =IF(H52>ABS(H54),H52-H54,0) -> 0 | I56: 0 | J56: 0 | K56: 0 | L56: 0 | M56: 0 | N56: 0 | O56: 0 | P56: 0
C58: 1.3 BALANCE
E59: =E35 -> Ene | F59: Feb | G59: Mar | H59: Abr | I59: May | J59: Jun | K59: Jul | L59: Ago | M59: Sep | N59: Oct | O59: Nov | P59: Dic
C60: ACTIVOS
C61: Efectivo | E61: =E54 -> 0 | F61: 0 | G61: 0 | H61: 0 | I61: 0 | J61: 0 | K61: 0 | L61: 0 | M61: 0 | N61: 0 | O61: 0 | P61: 0
C62: Bancos | E62: =E52-E54 -> 0 | F62: 0 | G62: 0 | H62: 0 | I62: 0 | J62: 0 | K62: 0 | L62: 0 | M62: 0 | N62: 0 | O62: 0 | P62: 0
C63: CxC | E63: =Mod.ingresos!E56 -> 0 | F63: =Mod.ingresos!F56 -> 0 | G63: =Mod.ingresos!G56 -> 0 | H63: =Mod.ingresos!H56 -> 0 | I63: =Mod.ingresos!I56 -> 0 | J63: =Mod.ingresos!J56 -> 0 | K63: =Mod.ingresos!K56 -> 0 | L63: =Mod.ingresos!L56 -> 0 | M63: =Mod.ingresos!M56 -> 0 | N63: =Mod.ingresos!N56 -> 0 | O63: =Mod.ingresos!O56 -> 0 | P63: =Mod.ingresos!P56 -> 0
C64: Provision
C66: Total Activos Corrientes | E66: =SUM(E61:E64) -> 0 | F66: =SUM(F61:F64) -> 0 | G66: 0 | H66: 0 | I66: 0 | J66: 0 | K66: 0 | L66: 0 | M66: 0 | N66: 0 | O66: 0 | P66: 0
C68: Propiedad, Planta y Equipos | E68: =Mod.Inversiones!E41 -> 0 | F68: =Mod.Inversiones!F41 -> 0 | G68: =Mod.Inversiones!G41 -> 0 | H68: =Mod.Inversiones!H41 -> 0 | I68: =Mod.Inversiones!I41 -> 0 | J68: =Mod.Inversiones!J41 -> 0 | K68: =Mod.Inversiones!K41 -> 0 | L68: =Mod.Inversiones!L41 -> 0 | M68: =Mod.Inversiones!M41 -> 0 | N68: =Mod.Inversiones!N41 -> 0 | O68: =Mod.Inversiones!O41 -> 0 | P68: =Mod.Inversiones!P41 -> 0
C69: Total Activos no Corrientes | E69: =E68 -> 0 | F69: =F68 -> 0 | G69: 0 | H69: 0 | I69: 0 | J69: 0 | K69: 0 | L69: 0 | M69: 0 | N69: 0 | O69: 0 | P69: 0
C71: Total Activos | E71: =E66+E69 -> 0 | F71: =F66+F69 -> 0 | G71: 0 | H71: 0 | I71: 0 | J71: 0 | K71: 0 | L71: 0 | M71: 0 | N71: 0 | O71: 0 | P71: 0
C73: PASIVOS
C74: Obligaciones financieras CP
C75: CXP | E75: ='Mod.ctos&gtos'!E146 -> 0 | F75: ='Mod.ctos&gtos'!F146 -> 0 | G75: ='Mod.ctos&gtos'!G146 -> 0 | H75: ='Mod.ctos&gtos'!H146 -> 0 | I75: ='Mod.ctos&gtos'!I146 -> 0 | J75: ='Mod.ctos&gtos'!J146 -> 0 | K75: ='Mod.ctos&gtos'!K146 -> 0 | L75: ='Mod.ctos&gtos'!L146 -> 0 | M75: ='Mod.ctos&gtos'!M146 -> 0 | N75: ='Mod.ctos&gtos'!N146 -> 0 | O75: ='Mod.ctos&gtos'!O146 -> 0 | P75: ='Mod.ctos&gtos'!P146 -> 0
C76: Impuestos
C78: Total Pasivos Corrientes | E78: =SUM(E74:E76) -> 0 | F78: =SUM(F74:F76) -> 0 | G78: 0 | H78: 0 | I78: 0 | J78: 0 | K78: 0 | L78: 0 | M78: 0 | N78: 0 | O78: 0 | P78: 0
C80: Obligaciones financieras | E80: =Mod.Financiacion!E41 -> 0 | F80: =Mod.Financiacion!F41 -> 0 | G80: =Mod.Financiacion!G41 -> 0 | H80: =Mod.Financiacion!H41 -> 0 | I80: =Mod.Financiacion!I41 -> 0 | J80: =Mod.Financiacion!J41 -> 0 | K80: =Mod.Financiacion!K41 -> 0 | L80: =Mod.Financiacion!L41 -> 0 | M80: =Mod.Financiacion!M41 -> 0 | N80: =Mod.Financiacion!N41 -> 0 | O80: =Mod.Financiacion!O41 -> 0 | P80: =Mod.Financiacion!P41 -> 0
C81: Total Pasivos no Corrientes | E81: =E80 -> 0 | F81: =F80 -> 0 | G81: 0 | H81: 0 | I81: 0 | J81: 0 | K81: 0 | L81: 0 | M81: 0 | N81: 0 | O81: 0 | P81: 0
C83: Total Pasivos | E83: =E81+E78 -> 0 | F83: =F81+F78 -> 0 | G83: 0 | H83: 0 | I83: 0 | J83: 0 | K83: 0 | L83: 0 | M83: 0 | N83: 0 | O83: 0 | P83: 0
C85: PATRIMONIO
C86: Capital | E86: =Proceso!D337 -> 0 | F86: =E86+Proceso!E337 -> 0 | G86: =F86+Proceso!F337 -> 0 | H86: =G86+Proceso!G337 -> 0 | I86: =H86+Proceso!H337 -> 0 | J86: =I86+Proceso!I337 -> 0 | K86: =J86+Proceso!J337 -> 0 | L86: =K86+Proceso!K337 -> 0 | M86: =L86+Proceso!L337 -> 0 | N86: =M86+Proceso!M337 -> 0 | O86: =N86+Proceso!N337 -> 0 | P86: =O86+Proceso!O337 -> 0
C87: Utilidad del ejercicio | E87: =E31+D87 -> 0 | F87: 0 | G87: 0 | H87: 0 | I87: 0 | J87: 0 | K87: 0 | L87: 0 | M87: 0 | N87: 0 | O87: 0 | P87: 0
C88: Total Patrimonio | E88: =SUM(E86:E87) -> 0 | F88: =SUM(F86:F87) -> 0 | G88: 0 | H88: 0 | I88: 0 | J88: 0 | K88: 0 | L88: 0 | M88: 0 | N88: 0 | O88: 0 | P88: 0
C90: Total Pasivos t Patrimonio | E90: =E88+E83 -> 0 | F90: =F88+F83 -> 0 | G90: 0 | H90: 0 | I90: 0 | J90: 0 | K90: 0 | L90: 0 | M90: 0 | N90: 0 | O90: 0 | P90: 0
C92: control | E92: =INT(E90)=INT(E71) -> TRUE | F92: =INT(F90)=INT(F71) -> TRUE | G92: TRUE | H92: TRUE | I92: TRUE | J92: TRUE | K92: TRUE | L92: TRUE | M92: TRUE | N92: TRUE | O92: TRUE | P92: TRUE
C94: 2. ANALISIS ANNUAL
C96: 2.1 ESTADO DE RESULTADOS
E97: =Mod.ingresos!E30 -> 2018 | F97: =Mod.ingresos!F30 -> 2019 | G97: =Mod.ingresos!G30 -> 2020 | H97: =Mod.ingresos!H30 -> 2021 | I97: =Mod.ingresos!I30 -> 2022 | J97: =Mod.ingresos!J30 -> 2023 | K97: =Mod.ingresos!K30 -> 2024 | L97: =Mod.ingresos!L30 -> 2025
C98: Ingresos | E98: =Mod.ingresos!E44 -> 0 | F98: =Mod.ingresos!F44 -> 0 | G98: =Mod.ingresos!G44 -> 0 | H98: =Mod.ingresos!H44 -> 0 | I98: =Mod.ingresos!I44 -> 0 | J98: =Mod.ingresos!J44 -> 0 | K98: =Mod.ingresos!K44 -> 0 | L98: =Mod.ingresos!L44 -> 0
C99: Costos | E99: =-'Mod.ctos&gtos'!E117 -> 0 | F99: =-'Mod.ctos&gtos'!F117 -> 0 | G99: =-'Mod.ctos&gtos'!G117 -> 0 | H99: =-'Mod.ctos&gtos'!H117 -> 0 | I99: =-'Mod.ctos&gtos'!I117 -> 0 | J99: =-'Mod.ctos&gtos'!J117 -> 0 | K99: =-'Mod.ctos&gtos'!K117 -> 0 | L99: =-'Mod.ctos&gtos'!L117 -> 0
C101: UTILIDAD BRUTA | E101: =SUM(E98:E99) -> 0 | F101: 0 | G101: 0 | H101: 0 | I101: 0 | J101: 0 | K101: 0 | L101: 0
C103: Gastos | E103: =-'Mod.ctos&gtos'!E135 -> 0 | F103: =-'Mod.ctos&gtos'!F135 -> 0 | G103: =-'Mod.ctos&gtos'!G135 -> 0 | H103: =-'Mod.ctos&gtos'!H135 -> 0 | I103: =-'Mod.ctos&gtos'!I135 -> 0 | J103: =-'Mod.ctos&gtos'!J135 -> 0 | K103: =-'Mod.ctos&gtos'!K135 -> 0 | L103: =-'Mod.ctos&gtos'!L135 -> 0
C104: Depreciaciones | E104: =Proceso!D319 -> 0 | F104: =Proceso!E319 -> 0 | G104: =Proceso!F319 -> 0 | H104: =Proceso!G319 -> 0 | I104: =Proceso!H319 -> 0 | J104: =Proceso!I319 -> 0 | K104: =Proceso!J319 -> 0 | L104: =Proceso!K319 -> 0
C106: UTILIDAD OPERATIVA | E106: =E101+SUM(E103:E104) -> 0 | F106: =F101+SUM(F103:F104) -> 0 | G106: 0 | H106: 0 | I106: 0 | J106: 0 | K106: 0 | L106: 0
C107: Margen opertaivo | E107: =IFERROR(E106/E98,"") ->  | F107: =IFERROR(F106/F98,"") ->  | G107: =IFERROR(G106/G98,"") ->  | H107: =IFERROR(H106/H98,"") ->  | I107: =IFERROR(I106/I98,"") ->  | J107: =IFERROR(J106/J98,"") ->  | K107: =IFERROR(K106/K98,"") ->  | L107: =IFERROR(L106/L98,"") -> 
C109: Otros ingresos
C110: Intereses | E110: =Mod.Financiacion!E44 -> 0 | F110: =Mod.Financiacion!F44 -> 0 | G110: =Mod.Financiacion!G44 -> 0 | H110: =Mod.Financiacion!H44 -> 0 | I110: =Mod.Financiacion!I44 -> 0 | J110: =Mod.Financiacion!J44 -> 0 | K110: =Mod.Financiacion!K44 -> 0 | L110: =Mod.Financiacion!L44 -> 0
C111: Otros egresos
C113: UAI | E113: =E106+E109+E110+E111 -> 0 | F113: =F106+F109+F110+F111 -> 0 | G113: 0 | H113: 0 | I113: 0 | J113: 0 | K113: 0 | L113: 0
C115: Impuestos | D115: =IF(Instructivo!E12="SI",Instructivo!G12,0) -> 30% | E115: =-IF(E113<0,0,E113*$D$115) -> 0 | F115: =-IF(F113<0,0,F113*$D$115) -> 0 | G115: 0 | H115: 0 | I115: 0 | J115: 0 | K115: 0 | L115: 0
C117: UTILIDAD NETA | E117: =E113+E115 -> 0 | F117: =F113+F115 -> 0 | G117: 0 | H117: 0 | I117: 0 | J117: 0 | K117: 0 | L117: 0
C118: Margen neto | E118: =IFERROR(E117/E98,"") ->  | F118: =IFERROR(F117/F98,"") ->  | G118: =IFERROR(G117/G98,"") ->  | H118: =IFERROR(H117/H98,"") ->  | I118: =IFERROR(I117/I98,"") ->  | J118: =IFERROR(J117/J98,"") ->  | K118: =IFERROR(K117/K98,"") ->  | L118: =IFERROR(L117/L98,"") -> 
C120: 2.2 COMPORTAMIENTO DE CAJA
E121: =E97 -> 2018 | F121: 2019 | G121: 2020 | H121: 2021 | I121: 2022 | J121: 2023 | K121: 2024 | L121: 2025
C122: Ingresos
C123: Disponible | E123: =Proceso!D48 -> 0 | F123: =Proceso!E48 -> 0 | G123: =Proceso!F48 -> 0 | H123: =Proceso!G48 -> 0 | I123: =Proceso!H48 -> 0 | J123: =Proceso!I48 -> 0 | K123: =Proceso!J48 -> 0 | L123: =Proceso!K48 -> 0
C124: Desembolsos | E124: =Proceso!D341 -> 0 | F124: =Proceso!E341 -> 0 | G124: =Proceso!F341 -> 0 | H124: =Proceso!G341 -> 0 | I124: =Proceso!H341 -> 0 | J124: =Proceso!I341 -> 0 | K124: =Proceso!J341 -> 0 | L124: =Proceso!K341 -> 0
C125: Capitalizaciones | E125: =Proceso!D342 -> 0 | F125: =Proceso!E342 -> 0 | G125: =Proceso!F342 -> 0 | H125: =Proceso!G342 -> 0 | I125: =Proceso!H342 -> 0 | J125: =Proceso!I342 -> 0 | K125: =Proceso!J342 -> 0 | L125: =Proceso!K342 -> 0
C126: Otros ingresos
C127: TOTAL INGRESOS | E127: =SUM(E122:E126) -> 0 | F127: 0 | G127: 0 | H127: 0 | I127: 0 | J127: 0 | K127: 0 | L127: 0
C129: Egresos
C130: Pagos | E130: =-'Mod.ctos&gtos'!E151 -> 0 | F130: =-'Mod.ctos&gtos'!F151 -> 0 | G130: =-'Mod.ctos&gtos'!G151 -> 0 | H130: =-'Mod.ctos&gtos'!H151 -> 0 | I130: =-'Mod.ctos&gtos'!I151 -> 0 | J130: =-'Mod.ctos&gtos'!J151 -> 0 | K130: =-'Mod.ctos&gtos'!K151 -> 0 | L130: =-'Mod.ctos&gtos'!L151 -> 0
C131: Inversiones | E131: =-Proceso!D179 -> 0 | F131: =-Proceso!E179 -> 0 | G131: =-Proceso!F179 -> 0 | H131: =-Proceso!G179 -> 0 | I131: =-Proceso!H179 -> 0 | J131: =-Proceso!I179 -> 0 | K131: =-Proceso!J179 -> 0 | L131: =-Proceso!K179 -> 0
C132: Intereses | E132: =Proceso!D352 -> 0 | F132: =Proceso!E352 -> 0 | G132: =Proceso!F352 -> 0 | H132: =Proceso!G352 -> 0 | I132: =Proceso!H352 -> 0 | J132: =Proceso!I352 -> 0 | K132: =Proceso!J352 -> 0 | L132: =Proceso!K352 -> 0
C133: Capital | E133: =Proceso!D353 -> 0 | F133: =Proceso!E353 -> 0 | G133: =Proceso!F353 -> 0 | H133: =Proceso!G353 -> 0 | I133: =Proceso!H353 -> 0 | J133: =Proceso!I353 -> 0 | K133: =Proceso!J353 -> 0 | L133: =Proceso!K353 -> 0
C134: Impuesto | E134: =E115 -> 0 | F134: =F115 -> 0 | G134: 0 | H134: 0 | I134: 0 | J134: 0 | K134: 0 | L134: 0
C135: TOTAL EGRESOS | E135: =SUM(E130:E134) -> 0 | F135: =SUM(F130:F134) -> 0 | G135: =SUM(G130:G134) -> 0 | H135: =SUM(H130:H134) -> 0 | I135: =SUM(I130:I134) -> 0 | J135: =SUM(J130:J134) -> 0 | K135: =SUM(K130:K134) -> 0 | L135: =SUM(L130:L134) -> 0
C137: Variacion del periodo | E137: =E127+E135 -> 0 | F137: =F127+F135 -> 0 | G137: 0 | H137: 0 | I137: 0 | J137: 0 | K137: 0 | L137: 0
C138: Caja final | E138: =E137+D138 -> 0 | F138: =F137+E138 -> 0 | G138: =G137+F138 -> 0 | H138: =H137+G138 -> 0 | I138: =I137+H138 -> 0 | J138: =J137+I138 -> 0 | K138: =K137+J138 -> 0 | L138: =L137+K138 -> 0
C140: Caja minima | D140: =Proceso!B153 -> NO | E140: =Proceso!D159 -> 0 | F140: =Proceso!E159 -> 0 | G140: =Proceso!F159 -> 0 | H140: =Proceso!G159 -> 0 | I140: =Proceso!H159 -> 0 | J140: =Proceso!I159 -> 0 | K140: =Proceso!J159 -> 0 | L140: =Proceso!K159 -> 0
C141: Deficit | E141: =-IF(E138<E140,E140-E138,0) -> 0 | F141: =-IF(F138<F140,F140-F138,0) -> 0 | G141: 0 | H141: 0 | I141: 0 | J141: 0 | K141: 0 | L141: 0
C142: Excedentes | E142: =IF(E138>ABS(E140),E138-E140,0) -> 0 | F142: =IF(F138>ABS(F140),F138-F140,0) -> 0 | G142: 0 | H142: 0 | I142: 0 | J142: 0 | K142: 0 | L142: 0
C144: 2.3 BALANCE
E145: =E121 -> 2018 | F145: 2019 | G145: 2020 | H145: 2021 | I145: 2022 | J145: 2023 | K145: 2024 | L145: 2025
C146: ACTIVOS
C147: Efectivo | E147: =E140 -> 0 | F147: 0 | G147: 0 | H147: 0 | I147: 0 | J147: 0 | K147: 0 | L147: 0
C148: Bancos | E148: =E138-E140 -> 0 | F148: 0 | G148: 0 | H148: 0 | I148: 0 | J148: 0 | K148: 0 | L148: 0
C149: CxC | E149: =Mod.ingresos!E60 -> 0.00 | F149: =Mod.ingresos!F60 -> 0.00 | G149: =Mod.ingresos!G60 -> 0.00 | H149: =Mod.ingresos!H60 -> 0.00 | I149: =Mod.ingresos!I60 -> 0.00 | J149: =Mod.ingresos!J60 -> 0.00 | K149: =Mod.ingresos!K60 -> 0.00 | L149: =Mod.ingresos!L60 -> 0.00
C150: Provision
C152: Total Activos Corrientes | E152: =SUM(E147:E150) -> 0 | F152: =SUM(F147:F150) -> 0 | G152: 0 | H152: 0 | I152: 0 | J152: 0 | K152: 0 | L152: 0
C154: Propiedad, Planta y Equipos | E154: =Mod.Inversiones!E46 -> 0 | F154: =Mod.Inversiones!F46 -> 0 | G154: =Mod.Inversiones!G46 -> 0 | H154: =Mod.Inversiones!H46 -> 0 | I154: =Mod.Inversiones!I46 -> 0 | J154: =Mod.Inversiones!J46 -> 0 | K154: =Mod.Inversiones!K46 -> 0 | L154: =Mod.Inversiones!L46 -> 0
C155: Total Activos no Corrientes | E155: =E154 -> 0 | F155: =F154 -> 0 | G155: 0 | H155: 0 | I155: 0 | J155: 0 | K155: 0 | L155: 0
C157: Total Activos | E157: =E152+E155 -> 0 | F157: =F152+F155 -> 0 | G157: 0 | H157: 0 | I157: 0 | J157: 0 | K157: 0 | L157: 0
C159: PASIVOS
C160: Obligaciones financieras CP
C161: CXP | E161: ='Mod.ctos&gtos'!E150 -> 0 | F161: ='Mod.ctos&gtos'!F150 -> 0 | G161: ='Mod.ctos&gtos'!G150 -> 0 | H161: ='Mod.ctos&gtos'!H150 -> 0 | I161: ='Mod.ctos&gtos'!I150 -> 0 | J161: ='Mod.ctos&gtos'!J150 -> 0 | K161: ='Mod.ctos&gtos'!K150 -> 0 | L161: ='Mod.ctos&gtos'!L150 -> 0
C162: Impuestos
C164: Total Pasivos Corrientes | E164: =SUM(E160:E162) -> 0 | F164: =SUM(F160:F162) -> 0 | G164: 0 | H164: 0 | I164: 0 | J164: 0 | K164: 0 | L164: 0
C166: Obligaciones financieras | E166: =Mod.Financiacion!E46 -> 0 | F166: =Mod.Financiacion!F46 -> 0 | G166: =Mod.Financiacion!G46 -> 0 | H166: =Mod.Financiacion!H46 -> 0 | I166: =Mod.Financiacion!I46 -> 0 | J166: =Mod.Financiacion!J46 -> 0 | K166: =Mod.Financiacion!K46 -> 0 | L166: =Mod.Financiacion!L46 -> 0
C167: Total Pasivos no Corrientes | E167: =E166 -> 0 | F167: =F166 -> 0 | G167: 0 | H167: 0 | I167: 0 | J167: 0 | K167: 0 | L167: 0
C169: Total Pasivos | E169: =E167+E164 -> 0 | F169: =F167+F164 -> 0 | G169: 0 | H169: 0 | I169: 0 | J169: 0 | K169: 0 | L169: 0
C171: PATRIMONIO
C172: Capital | E172: =Proceso!D342 -> 0 | F172: =E172+Proceso!E342 -> 0 | G172: =F172+Proceso!F342 -> 0 | H172: =G172+Proceso!G342 -> 0 | I172: =H172+Proceso!H342 -> 0 | J172: =I172+Proceso!I342 -> 0 | K172: =J172+Proceso!J342 -> 0 | L172: =K172+Proceso!K342 -> 0
C173: Utilidad del ejercicio | E173: =E117+D173 -> 0 | F173: 0 | G173: 0 | H173: 0 | I173: 0 | J173: 0 | K173: 0 | L173: 0
C174: Total Patrimonio | E174: =SUM(E172:E173) -> 0 | F174: =SUM(F172:F173) -> 0 | G174: 0 | H174: 0 | I174: 0 | J174: 0 | K174: 0 | L174: 0
C176: Total Pasivos t Patrimonio | E176: =E174+E169 -> 0 | F176: =F174+F169 -> 0 | G176: 0 | H176: 0 | I176: 0 | J176: 0 | K176: 0 | L176: 0
C178: control | E178: =INT(E176)-INT(E157) -> 0 | F178: =INT(F176)-INT(F157) -> 0 | G178: =INT(G176)-INT(G157) -> 0 | H178: 0 | I178: 0 | J178: 0 | K178: 0 | L178: 0

Sheet Mod.Tab&Graf
C3: MODULO DE GRAFICAS Y TABLAS
C4: =Instructivo!C5 -> Version 1.0 | D4: Visualizacion datos:
C6: ="Graficas para el proyecto "&Nom_proyecto &". Esta evaluacion tiene un periodo de analsisis de "& Anio_proyecto&" anios" -> Graficas para el proyecto Proyecto 1. Esta evaluacion tiene un periodo de analsisis de 2018 anios
C7: * Special text
C9: INGRESOS
C11: Estudio de Mercado
D12: =Mod.ingresos!E30 -> 2018 | E12: =Mod.ingresos!F30 -> 2019 | F12: =Mod.ingresos!G30 -> 2020 | G12: =Mod.ingresos!H30 -> 2021 | H12: =Mod.ingresos!I30 -> 2022 | I12: =Mod.ingresos!J30 -> 2023 | J12: =Mod.ingresos!K30 -> 2024 | K12: =Mod.ingresos!L30 -> 2025
C13: Unidades-Producto(Servicio)1 | D13: =Mod.ingresos!E16 -> 0 | E13: =Mod.ingresos!F16 -> 0 | F13: =Mod.ingresos!G16 -> 0 | G13: =Mod.ingresos!H16 -> 0 | H13: =Mod.ingresos!I16 -> 0 | I13: =Mod.ingresos!J16 -> 0 | J13: =Mod.ingresos!K16 -> 0 | K13: =Mod.ingresos!L16 -> 0
C14: Precio-Producto(Servicio) 1* | D14: =Mod.ingresos!E35/unidad -> 0 | E14: =Mod.ingresos!F35/unidad -> 0 | F14: =Mod.ingresos!G35/unidad -> 0 | G14: =Mod.ingresos!H35/unidad -> 0 | H14: =Mod.ingresos!I35/unidad -> 0 | I14: =Mod.ingresos!J35/unidad -> 0 | J14: =Mod.ingresos!K35/unidad -> 0 | K14: =Mod.ingresos!L35/unidad -> 0
C15: Unidades-Producto(Servicio)2 | D15: =Mod.ingresos!E17 -> 0 | E15: =Mod.ingresos!F17 -> 0 | F15: =Mod.ingresos!G17 -> 0 | G15: =Mod.ingresos!H17 -> 0 | H15: =Mod.ingresos!I17 -> 0 | I15: =Mod.ingresos!J17 -> 0 | J15: =Mod.ingresos!K17 -> 0 | K15: =Mod.ingresos!L17 -> 0
C16: Precio-Producto(Servicio) 2* | D16: =Mod.ingresos!E36/unidad -> 0 | E16: =Mod.ingresos!F36/unidad -> 0 | F16: =Mod.ingresos!G36/unidad -> 0 | G16: =Mod.ingresos!H36/unidad -> 0 | H16: =Mod.ingresos!I36/unidad -> 0 | I16: =Mod.ingresos!J36/unidad -> 0 | J16: =Mod.ingresos!K36/unidad -> 0 | K16: =Mod.ingresos!L36/unidad -> 0
C17: Unidades-Producto(Servicio)3 | D17: =Mod.ingresos!E18 -> 0 | E17: =Mod.ingresos!F18 -> 0 | F17: =Mod.ingresos!G18 -> 0 | G17: =Mod.ingresos!H18 -> 0 | H17: =Mod.ingresos!I18 -> 0 | I17: =Mod.ingresos!J18 -> 0 | J17: =Mod.ingresos!K18 -> 0 | K17: =Mod.ingresos!L18 -> 0
C18: Precio-Producto(Servicio) 3* | D18: =Mod.ingresos!E37/unidad -> 0 | E18: =Mod.ingresos!F37/unidad -> 0 | F18: =Mod.ingresos!G37/unidad -> 0 | G18: =Mod.ingresos!H37/unidad -> 0 | H18: =Mod.ingresos!I37/unidad -> 0 | I18: =Mod.ingresos!J37/unidad -> 0 | J18: =Mod.ingresos!K37/unidad -> 0 | K18: =Mod.ingresos!L37/unidad -> 0
J19: ="*"&Proceso!D546 -> *Unidades en millones de pesos
C20: Comportamientos de ingresos
D21: =D12 -> 2018 | E21: =E12 -> 2019 | F21: 2020 | G21: 2021 | H21: 2022 | I21: 2023 | J21: 2024 | K21: 2025
C22: Ingresos proyectados | D22: =Mod.ingresos!E44/unidad -> 0 | E22: =Mod.ingresos!F44/unidad -> 0 | F22: =Mod.ingresos!G44/unidad -> 0 | G22: =Mod.ingresos!H44/unidad -> 0 | H22: =Mod.ingresos!I44/unidad -> 0 | I22: =Mod.ingresos!J44/unidad -> 0 | J22: =Mod.ingresos!K44/unidad -> 0 | K22: =Mod.ingresos!L44/unidad -> 0
C23: Cartera | D23: =Mod.ingresos!E60/unidad -> 0 | E23: =Mod.ingresos!F60/unidad -> 0 | F23: =Mod.ingresos!G60/unidad -> 0 | G23: =Mod.ingresos!H60/unidad -> 0 | H23: =Mod.ingresos!I60/unidad -> 0 | I23: =Mod.ingresos!J60/unidad -> 0 | J23: =Mod.ingresos!K60/unidad -> 0 | K23: =Mod.ingresos!L60/unidad -> 0
C24: Recaudo | D24: =Mod.ingresos!E61/unidad -> 0 | E24: =Mod.ingresos!F61/unidad -> 0 | F24: =Mod.ingresos!G61/unidad -> 0 | G24: =Mod.ingresos!H61/unidad -> 0 | H24: =Mod.ingresos!I61/unidad -> 0 | I24: =Mod.ingresos!J61/unidad -> 0 | J24: =Mod.ingresos!K61/unidad -> 0 | K24: =Mod.ingresos!L61/unidad -> 0
J25: =J19 -> *Unidades en millones de pesos
C46: COSTOS
D48: =D21 -> 2018 | E48: =E21 -> 2019 | F48: 2020 | G48: 2021 | H48: 2022 | I48: 2023 | J48: 2024 | K48: 2025
C49: ='Mod.ctos&gtos'!C111 -> Costos insumos | D49: ='Mod.ctos&gtos'!E111/unidad -> 0.00 | E49: ='Mod.ctos&gtos'!F111/unidad -> 0.00 | F49: ='Mod.ctos&gtos'!G111/unidad -> 0.00 | G49: ='Mod.ctos&gtos'!H111/unidad -> 0.00 | H49: ='Mod.ctos&gtos'!I111/unidad -> 0.00 | I49: ='Mod.ctos&gtos'!J111/unidad -> 0.00 | J49: ='Mod.ctos&gtos'!K111/unidad -> 0.00 | K49: ='Mod.ctos&gtos'!L111/unidad -> 0.00
C50: ='Mod.ctos&gtos'!C112 -> Costos Servicios Personales | D50: ='Mod.ctos&gtos'!E112/unidad -> 0.00 | E50: ='Mod.ctos&gtos'!F112/unidad -> 0.00 | F50: ='Mod.ctos&gtos'!G112/unidad -> 0.00 | G50: ='Mod.ctos&gtos'!H112/unidad -> 0.00 | H50: ='Mod.ctos&gtos'!I112/unidad -> 0.00 | I50: ='Mod.ctos&gtos'!J112/unidad -> 0.00 | J50: ='Mod.ctos&gtos'!K112/unidad -> 0.00 | K50: ='Mod.ctos&gtos'!L112/unidad -> 0.00
C51: ='Mod.ctos&gtos'!C113 -> Costos Costos Generales | D51: ='Mod.ctos&gtos'!E113/unidad -> 0.00 | E51: ='Mod.ctos&gtos'!F113/unidad -> 0.00 | F51: ='Mod.ctos&gtos'!G113/unidad -> 0.00 | G51: ='Mod.ctos&gtos'!H113/unidad -> 0.00 | H51: ='Mod.ctos&gtos'!I113/unidad -> 0.00 | I51: ='Mod.ctos&gtos'!J113/unidad -> 0.00 | J51: ='Mod.ctos&gtos'!K113/unidad -> 0.00 | K51: ='Mod.ctos&gtos'!L113/unidad -> 0.00
C52: ='Mod.ctos&gtos'!C114 -> Costos Servicios Públicos | D52: ='Mod.ctos&gtos'!E114/unidad -> 0.00 | E52: ='Mod.ctos&gtos'!F114/unidad -> 0.00 | F52: ='Mod.ctos&gtos'!G114/unidad -> 0.00 | G52: ='Mod.ctos&gtos'!H114/unidad -> 0.00 | H52: ='Mod.ctos&gtos'!I114/unidad -> 0.00 | I52: ='Mod.ctos&gtos'!J114/unidad -> 0.00 | J52: ='Mod.ctos&gtos'!K114/unidad -> 0.00 | K52: ='Mod.ctos&gtos'!L114/unidad -> 0.00
C53: ='Mod.ctos&gtos'!C115 -> Costos Mantenimientos | D53: ='Mod.ctos&gtos'!E115/unidad -> 0.00 | E53: ='Mod.ctos&gtos'!F115/unidad -> 0.00 | F53: ='Mod.ctos&gtos'!G115/unidad -> 0.00 | G53: ='Mod.ctos&gtos'!H115/unidad -> 0.00 | H53: ='Mod.ctos&gtos'!I115/unidad -> 0.00 | I53: ='Mod.ctos&gtos'!J115/unidad -> 0.00 | J53: ='Mod.ctos&gtos'!K115/unidad -> 0.00 | K53: ='Mod.ctos&gtos'!L115/unidad -> 0.00
C54: ='Mod.ctos&gtos'!C116 -> Costos Otros Costos | D54: ='Mod.ctos&gtos'!E116/unidad -> 0.00 | E54: ='Mod.ctos&gtos'!F116/unidad -> 0.00 | F54: ='Mod.ctos&gtos'!G116/unidad -> 0.00 | G54: ='Mod.ctos&gtos'!H116/unidad -> 0.00 | H54: ='Mod.ctos&gtos'!I116/unidad -> 0.00 | I54: ='Mod.ctos&gtos'!J116/unidad -> 0.00 | J54: ='Mod.ctos&gtos'!K116/unidad -> 0.00 | K54: ='Mod.ctos&gtos'!L116/unidad -> 0.00
C55: ='Mod.ctos&gtos'!C117 -> TOTAL COSTOS ANUALES | D55: ='Mod.ctos&gtos'!E117/unidad -> 0.00 | E55: ='Mod.ctos&gtos'!F117/unidad -> 0.00 | F55: ='Mod.ctos&gtos'!G117/unidad -> 0.00 | G55: ='Mod.ctos&gtos'!H117/unidad -> 0.00 | H55: ='Mod.ctos&gtos'!I117/unidad -> 0.00 | I55: ='Mod.ctos&gtos'!J117/unidad -> 0.00 | J55: ='Mod.ctos&gtos'!K117/unidad -> 0.00 | K55: ='Mod.ctos&gtos'!L117/unidad -> 0.00
C57: TOTAL GASTOS ** | D57: ='Mod.ctos&gtos'!E135/unidad -> 0.00 | E57: ='Mod.ctos&gtos'!F135/unidad -> 0.00 | F57: ='Mod.ctos&gtos'!G135/unidad -> 0.00 | G57: ='Mod.ctos&gtos'!H135/unidad -> 0.00 | H57: ='Mod.ctos&gtos'!I135/unidad -> 0.00 | I57: ='Mod.ctos&gtos'!J135/unidad -> 0.00 | J57: ='Mod.ctos&gtos'!K135/unidad -> 0.00 | K57: ='Mod.ctos&gtos'!L135/unidad -> 0.00
J58: =J25 -> *Unidades en millones de pesos
J59: ** Valor sin depreciaciones
H94: ** Valor sin depreciaciones
C96: INVERSIONES
C99: Concepto | D99: Valor
C100: =Mod.Inversiones!D11 -> Terreno | D100: =Mod.Inversiones!D24+SUM(Mod.Inversiones!J12:J14) -> 0
C101: =Mod.Inversiones!E11 -> Edificacion | D101: =Mod.Inversiones!E24+SUM(Mod.Inversiones!K12:K14) -> 0
C102: =Mod.Inversiones!F11 -> Maquinaria y Materiales | D102: =Mod.Inversiones!F24+SUM(Mod.Inversiones!L12:L14) -> 0
C103: =Mod.Inversiones!G11 -> Otros | D103: =Mod.Inversiones!G24+SUM(Mod.Inversiones!M12:M14) -> 0
C123: CREDITOS
D125: =D48 -> 2018 | E125: =E48 -> 2019 | F125: 2020 | G125: 2021 | H125: 2022 | I125: 2023 | J125: 2024 | K125: 2025
C126: Monto del credito | D126: =Mod.Financiacion!E15/unidad -> 0.0 | E126: =Mod.Financiacion!F15/unidad -> 0.0 | F126: =Mod.Financiacion!G15/unidad -> 0.0 | G126: =Mod.Financiacion!H15/unidad -> 0.0 | H126: =Mod.Financiacion!I15/unidad -> 0.0 | I126: =Mod.Financiacion!J15/unidad -> 0.0 | J126: =Mod.Financiacion!K15/unidad -> 0.0 | K126: =Mod.Financiacion!L15/unidad -> 0.0
C127: Monto de Capitalizacion | D127: =Mod.Financiacion!E16/unidad -> 0.0 | E127: =Mod.Financiacion!F16/unidad -> 0.0 | F127: =Mod.Financiacion!G16/unidad -> 0.0 | G127: =Mod.Financiacion!H16/unidad -> 0.0 | H127: =Mod.Financiacion!I16/unidad -> 0.0 | I127: =Mod.Financiacion!J16/unidad -> 0.0 | J127: =Mod.Financiacion!K16/unidad -> 0.0 | K127: =Mod.Financiacion!L16/unidad -> 0.0
J128: =J58 -> *Unidades en millones de pesos
C130: Caracteristicas-Credito | D130: Primer año | E130: Segundo año
C131: Plazo-años | D131: =Plazo_p__anhos -> 8 | E131: =Plazo_anios -> 8
C132: Tasa-EA | D132: =tasa_LP_tLP -> 5% | E132: =Tasa_anios -> 6%
C133: Periodo de gracias-años | D133: =PGC -> 0 | E133: =PGC_1 -> 0
D135: =D125 -> 2018 | E135: =E125 -> 2019 | F135: 2020 | G135: 2021 | H135: 2022 | I135: 2023 | J135: 2024 | K135: 2025
C136: =Mod.Financiacion!C44 -> Intereses | D136: =-Mod.Financiacion!E44/unidad -> 0.00 | E136: =-Mod.Financiacion!F44/unidad -> 0.00 | F136: =-Mod.Financiacion!G44/unidad -> 0.00 | G136: =-Mod.Financiacion!H44/unidad -> 0.00 | H136: =-Mod.Financiacion!I44/unidad -> 0.00 | I136: =-Mod.Financiacion!J44/unidad -> 0.00 | J136: =-Mod.Financiacion!K44/unidad -> 0.00 | K136: =-Mod.Financiacion!L44/unidad -> 0.00
C137: =Mod.Financiacion!C45 -> Capital | D137: =-Mod.Financiacion!E45/unidad -> 0.00 | E137: =-Mod.Financiacion!F45/unidad -> 0.00 | F137: =-Mod.Financiacion!G45/unidad -> 0.00 | G137: =-Mod.Financiacion!H45/unidad -> 0.00 | H137: =-Mod.Financiacion!I45/unidad -> 0.00 | I137: =-Mod.Financiacion!J45/unidad -> 0.00 | J137: =-Mod.Financiacion!K45/unidad -> 0.00 | K137: =-Mod.Financiacion!L45/unidad -> 0.00
C138: =Mod.Financiacion!C46 -> Saldo | D138: =Mod.Financiacion!E46/unidad -> 0.00 | E138: =Mod.Financiacion!F46/unidad -> 0.00 | F138: =Mod.Financiacion!G46/unidad -> 0.00 | G138: =Mod.Financiacion!H46/unidad -> 0.00 | H138: =Mod.Financiacion!I46/unidad -> 0.00 | I138: =Mod.Financiacion!J46/unidad -> 0.00 | J138: =Mod.Financiacion!K46/unidad -> 0.00 | K138: =Mod.Financiacion!L46/unidad -> 0.00
J139: =J128 -> *Unidades en millones de pesos
C159: ESTADOS FINANCIEROS
C161: PYG
D163: =D135 -> 2018 | E163: =E135 -> 2019 | F163: 2020 | G163: 2021 | H163: 2022 | I163: 2023 | J163: 2024 | K163: 2025
C164: =Mod.Financiero!C98 -> Ingresos | D164: =Mod.Financiero!E98/unidad -> 0 | E164: =Mod.Financiero!F98/unidad -> 0 | F164: =Mod.Financiero!G98/unidad -> 0 | G164: =Mod.Financiero!H98/unidad -> 0 | H164: =Mod.Financiero!I98/unidad -> 0 | I164: =Mod.Financiero!J98/unidad -> 0 | J164: =Mod.Financiero!K98/unidad -> 0 | K164: =Mod.Financiero!L98/unidad -> 0
C165: =Mod.Financiero!C99 -> Costos | D165: =-Mod.Financiero!E99/unidad -> 0 | E165: =-Mod.Financiero!F99/unidad -> 0 | F165: =-Mod.Financiero!G99/unidad -> 0 | G165: =-Mod.Financiero!H99/unidad -> 0 | H165: =-Mod.Financiero!I99/unidad -> 0 | I165: =-Mod.Financiero!J99/unidad -> 0 | J165: =-Mod.Financiero!K99/unidad -> 0 | K165: =-Mod.Financiero!L99/unidad -> 0
C167: =Mod.Financiero!C101 -> UTILIDAD BRUTA | D167: =Mod.Financiero!E101/unidad -> 0 | E167: =Mod.Financiero!F101/unidad -> 0 | F167: =Mod.Financiero!G101/unidad -> 0 | G167: =Mod.Financiero!H101/unidad -> 0 | H167: =Mod.Financiero!I101/unidad -> 0 | I167: =Mod.Financiero!J101/unidad -> 0 | J167: =Mod.Financiero!K101/unidad -> 0 | K167: =Mod.Financiero!L101/unidad -> 0
C169: =Mod.Financiero!C103 -> Gastos | D169: =-Mod.Financiero!E103/unidad -> 0 | E169: =-Mod.Financiero!F103/unidad -> 0 | F169: =-Mod.Financiero!G103/unidad -> 0 | G169: =-Mod.Financiero!H103/unidad -> 0 | H169: =-Mod.Financiero!I103/unidad -> 0 | I169: =-Mod.Financiero!J103/unidad -> 0 | J169: =-Mod.Financiero!K103/unidad -> 0 | K169: =-Mod.Financiero!L103/unidad -> 0
C170: =Mod.Financiero!C104 -> Depreciaciones | D170: =-Mod.Financiero!E104/unidad -> 0 | E170: =-Mod.Financiero!F104/unidad -> 0 | F170: =-Mod.Financiero!G104/unidad -> 0 | G170: =-Mod.Financiero!H104/unidad -> 0 | H170: =-Mod.Financiero!I104/unidad -> 0 | I170: =-Mod.Financiero!J104/unidad -> 0 | J170: =-Mod.Financiero!K104/unidad -> 0 | K170: =-Mod.Financiero!L104/unidad -> 0
C172: =Mod.Financiero!C106 -> UTILIDAD OPERATIVA | D172: =Mod.Financiero!E106/unidad -> 0 | E172: =Mod.Financiero!F106/unidad -> 0 | F172: =Mod.Financiero!G106/unidad -> 0 | G172: =Mod.Financiero!H106/unidad -> 0 | H172: =Mod.Financiero!I106/unidad -> 0 | I172: =Mod.Financiero!J106/unidad -> 0 | J172: =Mod.Financiero!K106/unidad -> 0 | K172: =Mod.Financiero!L106/unidad -> 0
C173: =Mod.Financiero!C107 -> Margen opertaivo | D173: =Mod.Financiero!E107 ->  | E173: =Mod.Financiero!F107 ->  | F173: =Mod.Financiero!G107 ->  | G173: =Mod.Financiero!H107 ->  | H173: =Mod.Financiero!I107 ->  | I173: =Mod.Financiero!J107 ->  | J173: =Mod.Financiero!K107 ->  | K173: =Mod.Financiero!L107 -> 
C175: =Mod.Financiero!C109 -> Otros ingresos | D175: =Mod.Financiero!E109/unidad -> 0 | E175: =Mod.Financiero!F109/unidad -> 0 | F175: =Mod.Financiero!G109/unidad -> 0 | G175: =Mod.Financiero!H109/unidad -> 0 | H175: =Mod.Financiero!I109/unidad -> 0 | I175: =Mod.Financiero!J109/unidad -> 0 | J175: =Mod.Financiero!K109/unidad -> 0 | K175: =Mod.Financiero!L109/unidad -> 0
C176: =Mod.Financiero!C110 -> Intereses | D176: =-Mod.Financiero!E110/unidad -> 0 | E176: =-Mod.Financiero!F110/unidad -> 0 | F176: =-Mod.Financiero!G110/unidad -> 0 | G176: =-Mod.Financiero!H110/unidad -> 0 | H176: =-Mod.Financiero!I110/unidad -> 0 | I176: =-Mod.Financiero!J110/unidad -> 0 | J176: =-Mod.Financiero!K110/unidad -> 0 | K176: =-Mod.Financiero!L110/unidad -> 0
C177: =Mod.Financiero!C111 -> Otros egresos | D177: =-Mod.Financiero!E111/unidad -> 0 | E177: =-Mod.Financiero!F111/unidad -> 0 | F177: =-Mod.Financiero!G111/unidad -> 0 | G177: =-Mod.Financiero!H111/unidad -> 0 | H177: =-Mod.Financiero!I111/unidad -> 0 | I177: =-Mod.Financiero!J111/unidad -> 0 | J177: =-Mod.Financiero!K111/unidad -> 0 | K177: =-Mod.Financiero!L111/unidad -> 0
C179: =Mod.Financiero!C113 -> UAI | D179: =Mod.Financiero!E113/unidad -> 0 | E179: =Mod.Financiero!F113/unidad -> 0 | F179: =Mod.Financiero!G113/unidad -> 0 | G179: =Mod.Financiero!H113/unidad -> 0 | H179: =Mod.Financiero!I113/unidad -> 0 | I179: =Mod.Financiero!J113/unidad -> 0 | J179: =Mod.Financiero!K113/unidad -> 0 | K179: =Mod.Financiero!L113/unidad -> 0
C181: =Mod.Financiero!C115 -> Impuestos | D181: =-Mod.Financiero!E115/unidad -> 0 | E181: =-Mod.Financiero!F115/unidad -> 0 | F181: =-Mod.Financiero!G115/unidad -> 0 | G181: =-Mod.Financiero!H115/unidad -> 0 | H181: =-Mod.Financiero!I115/unidad -> 0 | I181: =-Mod.Financiero!J115/unidad -> 0 | J181: =-Mod.Financiero!K115/unidad -> 0 | K181: =-Mod.Financiero!L115/unidad -> 0
C183: =Mod.Financiero!C117 -> UTILIDAD NETA | D183: =Mod.Financiero!E117/unidad -> 0 | E183: =Mod.Financiero!F117/unidad -> 0 | F183: =Mod.Financiero!G117/unidad -> 0 | G183: =Mod.Financiero!H117/unidad -> 0 | H183: =Mod.Financiero!I117/unidad -> 0 | I183: =Mod.Financiero!J117/unidad -> 0 | J183: =Mod.Financiero!K117/unidad -> 0 | K183: =Mod.Financiero!L117/unidad -> 0
C184: =Mod.Financiero!C118 -> Margen neto | D184: =Mod.Financiero!E118 ->  | E184: =Mod.Financiero!F118 ->  | F184: =Mod.Financiero!G118 ->  | G184: =Mod.Financiero!H118 ->  | H184: =Mod.Financiero!I118 ->  | I184: =Mod.Financiero!J118 ->  | J184: =Mod.Financiero!K118 ->  | K184: =Mod.Financiero!L118 -> 
J185: =J139 -> *Unidades en millones de pesos
C205: BALANCE
C207: =Mod.Financiero!C146 -> ACTIVOS | D207: =D163 -> 2018 | E207: 2019 | F207: 2020 | G207: 2021 | H207: 2022 | I207: 2023 | J207: 2024 | K207: 2025
C208: =Mod.Financiero!C147 -> Efectivo | D208: =Mod.Financiero!E147/unidad -> 0 | E208: =Mod.Financiero!F147/unidad -> 0 | F208: =Mod.Financiero!G147/unidad -> 0 | G208: =Mod.Financiero!H147/unidad -> 0 | H208: =Mod.Financiero!I147/unidad -> 0 | I208: =Mod.Financiero!J147/unidad -> 0 | J208: =Mod.Financiero!K147/unidad -> 0 | K208: =Mod.Financiero!L147/unidad -> 0
C209: =Mod.Financiero!C148 -> Bancos | D209: =Mod.Financiero!E148/unidad -> 0 | E209: =Mod.Financiero!F148/unidad -> 0 | F209: =Mod.Financiero!G148/unidad -> 0 | G209: =Mod.Financiero!H148/unidad -> 0 | H209: =Mod.Financiero!I148/unidad -> 0 | I209: =Mod.Financiero!J148/unidad -> 0 | J209: =Mod.Financiero!K148/unidad -> 0 | K209: =Mod.Financiero!L148/unidad -> 0
C210: =Mod.Financiero!C149 -> CxC | D210: =Mod.Financiero!E149/unidad -> 0 | E210: =Mod.Financiero!F149/unidad -> 0 | F210: =Mod.Financiero!G149/unidad -> 0 | G210: =Mod.Financiero!H149/unidad -> 0 | H210: =Mod.Financiero!I149/unidad -> 0 | I210: =Mod.Financiero!J149/unidad -> 0 | J210: =Mod.Financiero!K149/unidad -> 0 | K210: =Mod.Financiero!L149/unidad -> 0
C211: =Mod.Financiero!C150 -> Provision | D211: =Mod.Financiero!E150/unidad -> 0 | E211: =Mod.Financiero!F150/unidad -> 0 | F211: =Mod.Financiero!G150/unidad -> 0 | G211: =Mod.Financiero!H150/unidad -> 0 | H211: =Mod.Financiero!I150/unidad -> 0 | I211: =Mod.Financiero!J150/unidad -> 0 | J211: =Mod.Financiero!K150/unidad -> 0 | K211: =Mod.Financiero!L150/unidad -> 0
C213: =Mod.Financiero!C152 -> Total Activos Corrientes | D213: =Mod.Financiero!E152/unidad -> 0 | E213: =Mod.Financiero!F152/unidad -> 0 | F213: =Mod.Financiero!G152/unidad -> 0 | G213: =Mod.Financiero!H152/unidad -> 0 | H213: =Mod.Financiero!I152/unidad -> 0 | I213: =Mod.Financiero!J152/unidad -> 0 | J213: =Mod.Financiero!K152/unidad -> 0 | K213: =Mod.Financiero!L152/unidad -> 0
C215: =Mod.Financiero!C154 -> Propiedad, Planta y Equipos | D215: =Mod.Financiero!E154/unidad -> 0 | E215: =Mod.Financiero!F154/unidad -> 0 | F215: =Mod.Financiero!G154/unidad -> 0 | G215: =Mod.Financiero!H154/unidad -> 0 | H215: =Mod.Financiero!I154/unidad -> 0 | I215: =Mod.Financiero!J154/unidad -> 0 | J215: =Mod.Financiero!K154/unidad -> 0 | K215: =Mod.Financiero!L154/unidad -> 0
C216: =Mod.Financiero!C155 -> Total Activos no Corrientes | D216: =Mod.Financiero!E155/unidad -> 0 | E216: =Mod.Financiero!F155/unidad -> 0 | F216: =Mod.Financiero!G155/unidad -> 0 | G216: =Mod.Financiero!H155/unidad -> 0 | H216: =Mod.Financiero!I155/unidad -> 0 | I216: =Mod.Financiero!J155/unidad -> 0 | J216: =Mod.Financiero!K155/unidad -> 0 | K216: =Mod.Financiero!L155/unidad -> 0
C218: =Mod.Financiero!C157 -> Total Activos | D218: =Mod.Financiero!E157/unidad -> 0 | E218: =Mod.Financiero!F157/unidad -> 0 | F218: =Mod.Financiero!G157/unidad -> 0 | G218: =Mod.Financiero!H157/unidad -> 0 | H218: =Mod.Financiero!I157/unidad -> 0 | I218: =Mod.Financiero!J157/unidad -> 0 | J218: =Mod.Financiero!K157/unidad -> 0 | K218: =Mod.Financiero!L157/unidad -> 0
C220: =Mod.Financiero!C159 -> PASIVOS
C221: =Mod.Financiero!C160 -> Obligaciones financieras CP | D221: =Mod.Financiero!E160/unidad -> 0 | E221: =Mod.Financiero!F160/unidad -> 0 | F221: =Mod.Financiero!G160/unidad -> 0 | G221: =Mod.Financiero!H160/unidad -> 0 | H221: =Mod.Financiero!I160/unidad -> 0 | I221: =Mod.Financiero!J160/unidad -> 0 | J221: =Mod.Financiero!K160/unidad -> 0 | K221: =Mod.Financiero!L160/unidad -> 0
C222: =Mod.Financiero!C161 -> CXP | D222: =Mod.Financiero!E161/unidad -> 0 | E222: =Mod.Financiero!F161/unidad -> 0 | F222: =Mod.Financiero!G161/unidad -> 0 | G222: =Mod.Financiero!H161/unidad -> 0 | H222: =Mod.Financiero!I161/unidad -> 0 | I222: =Mod.Financiero!J161/unidad -> 0 | J222: =Mod.Financiero!K161/unidad -> 0 | K222: =Mod.Financiero!L161/unidad -> 0
C223: =Mod.Financiero!C162 -> Impuestos | D223: =Mod.Financiero!E162/unidad -> 0 | E223: =Mod.Financiero!F162/unidad -> 0 | F223: =Mod.Financiero!G162/unidad -> 0 | G223: =Mod.Financiero!H162/unidad -> 0 | H223: =Mod.Financiero!I162/unidad -> 0 | I223: =Mod.Financiero!J162/unidad -> 0 | J223: =Mod.Financiero!K162/unidad -> 0 | K223: =Mod.Financiero!L162/unidad -> 0
C225: =Mod.Financiero!C164 -> Total Pasivos Corrientes | D225: =Mod.Financiero!E164/unidad -> 0 | E225: =Mod.Financiero!F164/unidad -> 0 | F225: =Mod.Financiero!G164/unidad -> 0 | G225: =Mod.Financiero!H164/unidad -> 0 | H225: =Mod.Financiero!I164/unidad -> 0 | I225: =Mod.Financiero!J164/unidad -> 0 | J225: =Mod.Financiero!K164/unidad -> 0 | K225: =Mod.Financiero!L164/unidad -> 0
C227: =Mod.Financiero!C166 -> Obligaciones financieras | D227: =Mod.Financiero!E166/unidad -> 0 | E227: =Mod.Financiero!F166/unidad -> 0 | F227: =Mod.Financiero!G166/unidad -> 0 | G227: =Mod.Financiero!H166/unidad -> 0 | H227: =Mod.Financiero!I166/unidad -> 0 | I227: =Mod.Financiero!J166/unidad -> 0 | J227: =Mod.Financiero!K166/unidad -> 0 | K227: =Mod.Financiero!L166/unidad -> 0
C228: =Mod.Financiero!C167 -> Total Pasivos no Corrientes | D228: =Mod.Financiero!E167/unidad -> 0 | E228: =Mod.Financiero!F167/unidad -> 0 | F228: =Mod.Financiero!G167/unidad -> 0 | G228: =Mod.Financiero!H167/unidad -> 0 | H228: =Mod.Financiero!I167/unidad -> 0 | I228: =Mod.Financiero!J167/unidad -> 0 | J228: =Mod.Financiero!K167/unidad -> 0 | K228: =Mod.Financiero!L167/unidad -> 0
C230: =Mod.Financiero!C169 -> Total Pasivos | D230: =Mod.Financiero!E169/unidad -> 0 | E230: =Mod.Financiero!F169/unidad -> 0 | F230: =Mod.Financiero!G169/unidad -> 0 | G230: =Mod.Financiero!H169/unidad -> 0 | H230: =Mod.Financiero!I169/unidad -> 0 | I230: =Mod.Financiero!J169/unidad -> 0 | J230: =Mod.Financiero!K169/unidad -> 0 | K230: =Mod.Financiero!L169/unidad -> 0
C232: =Mod.Financiero!C171 -> PATRIMONIO
C233: =Mod.Financiero!C172 -> Capital | D233: =Mod.Financiero!E172/unidad -> 0 | E233: =Mod.Financiero!F172/unidad -> 0 | F233: =Mod.Financiero!G172/unidad -> 0 | G233: =Mod.Financiero!H172/unidad -> 0 | H233: =Mod.Financiero!I172/unidad -> 0 | I233: =Mod.Financiero!J172/unidad -> 0 | J233: =Mod.Financiero!K172/unidad -> 0 | K233: =Mod.Financiero!L172/unidad -> 0
C234: =Mod.Financiero!C173 -> Utilidad del ejercicio | D234: =Mod.Financiero!E173/unidad -> 0 | E234: =Mod.Financiero!F173/unidad -> 0 | F234: =Mod.Financiero!G173/unidad -> 0 | G234: =Mod.Financiero!H173/unidad -> 0 | H234: =Mod.Financiero!I173/unidad -> 0 | I234: =Mod.Financiero!J173/unidad -> 0 | J234: =Mod.Financiero!K173/unidad -> 0 | K234: =Mod.Financiero!L173/unidad -> 0
C235: =Mod.Financiero!C174 -> Total Patrimonio | D235: =Mod.Financiero!E174/unidad -> 0 | E235: =Mod.Financiero!F174/unidad -> 0 | F235: =Mod.Financiero!G174/unidad -> 0 | G235: =Mod.Financiero!H174/unidad -> 0 | H235: =Mod.Financiero!I174/unidad -> 0 | I235: =Mod.Financiero!J174/unidad -> 0 | J235: =Mod.Financiero!K174/unidad -> 0 | K235: =Mod.Financiero!L174/unidad -> 0
J236: =J185 -> *Unidades en millones de pesos
C238: CAJA
D240: =D207 -> 2018 | E240: 2019 | F240: 2020 | G240: 2021 | H240: 2022 | I240: 2023 | J240: 2024 | K240: 2025
C241: =Mod.Financiero!C122 -> Ingresos
C242: =Mod.Financiero!C123 -> Disponible | D242: =Mod.Financiero!E123/unidad -> 0 | E242: =Mod.Financiero!F123/unidad -> 0 | F242: =Mod.Financiero!G123/unidad -> 0 | G242: =Mod.Financiero!H123/unidad -> 0 | H242: =Mod.Financiero!I123/unidad -> 0 | I242: =Mod.Financiero!J123/unidad -> 0 | J242: =Mod.Financiero!K123/unidad -> 0 | K242: =Mod.Financiero!L123/unidad -> 0
C243: =Mod.Financiero!C124 -> Desembolsos | D243: =Mod.Financiero!E124/unidad -> 0 | E243: =Mod.Financiero!F124/unidad -> 0 | F243: =Mod.Financiero!G124/unidad -> 0 | G243: =Mod.Financiero!H124/unidad -> 0 | H243: =Mod.Financiero!I124/unidad -> 0 | I243: =Mod.Financiero!J124/unidad -> 0 | J243: =Mod.Financiero!K124/unidad -> 0 | K243: =Mod.Financiero!L124/unidad -> 0
C244: =Mod.Financiero!C125 -> Capitalizaciones | D244: =Mod.Financiero!E125/unidad -> 0 | E244: =Mod.Financiero!F125/unidad -> 0 | F244: =Mod.Financiero!G125/unidad -> 0 | G244: =Mod.Financiero!H125/unidad -> 0 | H244: =Mod.Financiero!I125/unidad -> 0 | I244: =Mod.Financiero!J125/unidad -> 0 | J244: =Mod.Financiero!K125/unidad -> 0 | K244: =Mod.Financiero!L125/unidad -> 0
C245: =Mod.Financiero!C126 -> Otros ingresos | D245: =Mod.Financiero!E126/unidad -> 0 | E245: =Mod.Financiero!F126/unidad -> 0 | F245: =Mod.Financiero!G126/unidad -> 0 | G245: =Mod.Financiero!H126/unidad -> 0 | H245: =Mod.Financiero!I126/unidad -> 0 | I245: =Mod.Financiero!J126/unidad -> 0 | J245: =Mod.Financiero!K126/unidad -> 0 | K245: =Mod.Financiero!L126/unidad -> 0
C246: =Mod.Financiero!C127 -> TOTAL INGRESOS | D246: =Mod.Financiero!E127/unidad -> 0 | E246: =Mod.Financiero!F127/unidad -> 0 | F246: =Mod.Financiero!G127/unidad -> 0 | G246: =Mod.Financiero!H127/unidad -> 0 | H246: =Mod.Financiero!I127/unidad -> 0 | I246: =Mod.Financiero!J127/unidad -> 0 | J246: =Mod.Financiero!K127/unidad -> 0 | K246: =Mod.Financiero!L127/unidad -> 0
C248: =Mod.Financiero!C129 -> Egresos
C249: =Mod.Financiero!C130 -> Pagos | D249: =Mod.Financiero!E130/unidad -> 0 | E249: =Mod.Financiero!F130/unidad -> 0 | F249: =Mod.Financiero!G130/unidad -> 0 | G249: =Mod.Financiero!H130/unidad -> 0 | H249: =Mod.Financiero!I130/unidad -> 0 | I249: =Mod.Financiero!J130/unidad -> 0 | J249: =Mod.Financiero!K130/unidad -> 0 | K249: =Mod.Financiero!L130/unidad -> 0
C250: =Mod.Financiero!C131 -> Inversiones | D250: =Mod.Financiero!E131/unidad -> 0 | E250: =Mod.Financiero!F131/unidad -> 0 | F250: =Mod.Financiero!G131/unidad -> 0 | G250: =Mod.Financiero!H131/unidad -> 0 | H250: =Mod.Financiero!I131/unidad -> 0 | I250: =Mod.Financiero!J131/unidad -> 0 | J250: =Mod.Financiero!K131/unidad -> 0 | K250: =Mod.Financiero!L131/unidad -> 0
C251: =Mod.Financiero!C132 -> Intereses | D251: =Mod.Financiero!E132/unidad -> 0 | E251: =Mod.Financiero!F132/unidad -> 0 | F251: =Mod.Financiero!G132/unidad -> 0 | G251: =Mod.Financiero!H132/unidad -> 0 | H251: =Mod.Financiero!I132/unidad -> 0 | I251: =Mod.Financiero!J132/unidad -> 0 | J251: =Mod.Financiero!K132/unidad -> 0 | K251: =Mod.Financiero!L132/unidad -> 0
C252: =Mod.Financiero!C133 -> Capital | D252: =Mod.Financiero!E133/unidad -> 0 | E252: =Mod.Financiero!F133/unidad -> 0 | F252: =Mod.Financiero!G133/unidad -> 0 | G252: =Mod.Financiero!H133/unidad -> 0 | H252: =Mod.Financiero!I133/unidad -> 0 | I252: =Mod.Financiero!J133/unidad -> 0 | J252: =Mod.Financiero!K133/unidad -> 0 | K252: =Mod.Financiero!L133/unidad -> 0
C253: =Mod.Financiero!C134 -> Impuesto
C254: =Mod.Financiero!C135 -> TOTAL EGRESOS | D254: =Mod.Financiero!E135/unidad -> 0 | E254: =Mod.Financiero!F135/unidad -> 0 | F254: =Mod.Financiero!G135/unidad -> 0 | G254: =Mod.Financiero!H135/unidad -> 0 | H254: =Mod.Financiero!I135/unidad -> 0 | I254: =Mod.Financiero!J135/unidad -> 0 | J254: =Mod.Financiero!K135/unidad -> 0 | K254: =Mod.Financiero!L135/unidad -> 0
C256: =Mod.Financiero!C137 -> Variacion del periodo | D256: =Mod.Financiero!E137/unidad -> 0 | E256: =Mod.Financiero!F137/unidad -> 0 | F256: =Mod.Financiero!G137/unidad -> 0 | G256: =Mod.Financiero!H137/unidad -> 0 | H256: =Mod.Financiero!I137/unidad -> 0 | I256: =Mod.Financiero!J137/unidad -> 0 | J256: =Mod.Financiero!K137/unidad -> 0 | K256: =Mod.Financiero!L137/unidad -> 0
C257: =Mod.Financiero!C138 -> Caja final | D257: =Mod.Financiero!E138/unidad -> 0 | E257: =Mod.Financiero!F138/unidad -> 0 | F257: =Mod.Financiero!G138/unidad -> 0 | G257: =Mod.Financiero!H138/unidad -> 0 | H257: =Mod.Financiero!I138/unidad -> 0 | I257: =Mod.Financiero!J138/unidad -> 0 | J257: =Mod.Financiero!K138/unidad -> 0 | K257: =Mod.Financiero!L138/unidad -> 0
J258: =J236 -> *Unidades en millones de pesos

Sheet Mod.Analisis
C3: MODULO DE ANALISIS
C4: =Instructivo!C5 -> Version 1.0 | D4: Visualizacion datos:
C5: ="Graficas para el proyecto "&Nom_proyecto &". Esta evaluacion tiene un periodo de analsisis de "& Anio_proyecto&" anios" -> Graficas para el proyecto Proyecto 1. Esta evaluacion tiene un periodo de analsisis de 2018 anios
C6: * Special text
C8: PYG
D10: ='Mod.Tab&Graf'!D12 -> 2018 | E10: ='Mod.Tab&Graf'!E12 -> 2019 | F10: ='Mod.Tab&Graf'!F12 -> 2020 | G10: ='Mod.Tab&Graf'!G12 -> 2021 | H10: ='Mod.Tab&Graf'!H12 -> 2022 | I10: ='Mod.Tab&Graf'!I12 -> 2023 | J10: ='Mod.Tab&Graf'!J12 -> 2024 | K10: ='Mod.Tab&Graf'!K12 -> 2025
C11: =Mod.Financiero!C98 -> Ingresos | D11: =Mod.Financiero!E98/unidad -> 0 | E11: =Mod.Financiero!F98/unidad -> 0 | F11: =Mod.Financiero!G98/unidad -> 0 | G11: =Mod.Financiero!H98/unidad -> 0 | H11: =Mod.Financiero!I98/unidad -> 0 | I11: =Mod.Financiero!J98/unidad -> 0 | J11: =Mod.Financiero!K98/unidad -> 0 | K11: =Mod.Financiero!L98/unidad -> 0
C12: =Mod.Financiero!C99 -> Costos | D12: =-Mod.Financiero!E99/unidad -> 0 | E12: =-Mod.Financiero!F99/unidad -> 0 | F12: =-Mod.Financiero!G99/unidad -> 0 | G12: =-Mod.Financiero!H99/unidad -> 0 | H12: =-Mod.Financiero!I99/unidad -> 0 | I12: =-Mod.Financiero!J99/unidad -> 0 | J12: =-Mod.Financiero!K99/unidad -> 0 | K12: =-Mod.Financiero!L99/unidad -> 0
C14: =Mod.Financiero!C101 -> UTILIDAD BRUTA | D14: =Mod.Financiero!E101/unidad -> 0 | E14: =Mod.Financiero!F101/unidad -> 0 | F14: =Mod.Financiero!G101/unidad -> 0 | G14: =Mod.Financiero!H101/unidad -> 0 | H14: =Mod.Financiero!I101/unidad -> 0 | I14: =Mod.Financiero!J101/unidad -> 0 | J14: =Mod.Financiero!K101/unidad -> 0 | K14: =Mod.Financiero!L101/unidad -> 0
C16: =Mod.Financiero!C103 -> Gastos | D16: =-Mod.Financiero!E103/unidad -> 0 | E16: =-Mod.Financiero!F103/unidad -> 0 | F16: =-Mod.Financiero!G103/unidad -> 0 | G16: =-Mod.Financiero!H103/unidad -> 0 | H16: =-Mod.Financiero!I103/unidad -> 0 | I16: =-Mod.Financiero!J103/unidad -> 0 | J16: =-Mod.Financiero!K103/unidad -> 0 | K16: =-Mod.Financiero!L103/unidad -> 0
C17: =Mod.Financiero!C104 -> Depreciaciones | D17: =-Mod.Financiero!E104/unidad -> 0 | E17: =-Mod.Financiero!F104/unidad -> 0 | F17: =-Mod.Financiero!G104/unidad -> 0 | G17: =-Mod.Financiero!H104/unidad -> 0 | H17: =-Mod.Financiero!I104/unidad -> 0 | I17: =-Mod.Financiero!J104/unidad -> 0 | J17: =-Mod.Financiero!K104/unidad -> 0 | K17: =-Mod.Financiero!L104/unidad -> 0
C19: =Mod.Financiero!C106 -> UTILIDAD OPERATIVA | D19: =Mod.Financiero!E106/unidad -> 0 | E19: =Mod.Financiero!F106/unidad -> 0 | F19: =Mod.Financiero!G106/unidad -> 0 | G19: =Mod.Financiero!H106/unidad -> 0 | H19: =Mod.Financiero!I106/unidad -> 0 | I19: =Mod.Financiero!J106/unidad -> 0 | J19: =Mod.Financiero!K106/unidad -> 0 | K19: =Mod.Financiero!L106/unidad -> 0
C20: =Mod.Financiero!C107 -> Margen opertaivo | D20: =Mod.Financiero!E107/unidad ->  | E20: =Mod.Financiero!F107/unidad ->  | F20: =Mod.Financiero!G107/unidad ->  | G20: =Mod.Financiero!H107/unidad ->  | H20: =Mod.Financiero!I107/unidad ->  | I20: =Mod.Financiero!J107/unidad ->  | J20: =Mod.Financiero!K107/unidad ->  | K20: =Mod.Financiero!L107/unidad -> 
C22: =Mod.Financiero!C109 -> Otros ingresos | D22: =Mod.Financiero!E109/unidad -> 0 | E22: =Mod.Financiero!F109/unidad -> 0 | F22: =Mod.Financiero!G109/unidad -> 0 | G22: =Mod.Financiero!H109/unidad -> 0 | H22: =Mod.Financiero!I109/unidad -> 0 | I22: =Mod.Financiero!J109/unidad -> 0 | J22: =Mod.Financiero!K109/unidad -> 0 | K22: =Mod.Financiero!L109/unidad -> 0
C23: =Mod.Financiero!C110 -> Intereses | D23: =-Mod.Financiero!E110/unidad -> 0 | E23: =-Mod.Financiero!F110/unidad -> 0 | F23: =-Mod.Financiero!G110/unidad -> 0 | G23: =-Mod.Financiero!H110/unidad -> 0 | H23: =-Mod.Financiero!I110/unidad -> 0 | I23: =-Mod.Financiero!J110/unidad -> 0 | J23: =-Mod.Financiero!K110/unidad -> 0 | K23: =-Mod.Financiero!L110/unidad -> 0
C24: =Mod.Financiero!C111 -> Otros egresos | D24: =-Mod.Financiero!E111/unidad -> 0 | E24: =-Mod.Financiero!F111/unidad -> 0 | F24: =-Mod.Financiero!G111/unidad -> 0 | G24: =-Mod.Financiero!H111/unidad -> 0 | H24: =-Mod.Financiero!I111/unidad -> 0 | I24: =-Mod.Financiero!J111/unidad -> 0 | J24: =-Mod.Financiero!K111/unidad -> 0 | K24: =-Mod.Financiero!L111/unidad -> 0
C26: =Mod.Financiero!C113 -> UAI | D26: =Mod.Financiero!E113/unidad -> 0 | E26: =Mod.Financiero!F113/unidad -> 0 | F26: =Mod.Financiero!G113/unidad -> 0 | G26: =Mod.Financiero!H113/unidad -> 0 | H26: =Mod.Financiero!I113/unidad -> 0 | I26: =Mod.Financiero!J113/unidad -> 0 | J26: =Mod.Financiero!K113/unidad -> 0 | K26: =Mod.Financiero!L113/unidad -> 0
C28: =Mod.Financiero!C115 -> Impuestos | D28: =-Mod.Financiero!E115/unidad -> 0 | E28: =-Mod.Financiero!F115/unidad -> 0 | F28: =-Mod.Financiero!G115/unidad -> 0 | G28: =-Mod.Financiero!H115/unidad -> 0 | H28: =-Mod.Financiero!I115/unidad -> 0 | I28: =-Mod.Financiero!J115/unidad -> 0 | J28: =-Mod.Financiero!K115/unidad -> 0 | K28: =-Mod.Financiero!L115/unidad -> 0
C30: =Mod.Financiero!C117 -> UTILIDAD NETA | D30: =Mod.Financiero!E117/unidad -> 0 | E30: =Mod.Financiero!F117/unidad -> 0 | F30: =Mod.Financiero!G117/unidad -> 0 | G30: =Mod.Financiero!H117/unidad -> 0 | H30: =Mod.Financiero!I117/unidad -> 0 | I30: =Mod.Financiero!J117/unidad -> 0 | J30: =Mod.Financiero!K117/unidad -> 0 | K30: =Mod.Financiero!L117/unidad -> 0
C31: =Mod.Financiero!C118 -> Margen neto | D31: =Mod.Financiero!E118/unidad ->  | E31: =Mod.Financiero!F118/unidad ->  | F31: =Mod.Financiero!G118/unidad ->  | G31: =Mod.Financiero!H118/unidad ->  | H31: =Mod.Financiero!I118/unidad ->  | I31: =Mod.Financiero!J118/unidad ->  | J31: =Mod.Financiero!K118/unidad ->  | K31: =Mod.Financiero!L118/unidad -> 
J32: ='Mod.Tab&Graf'!J258:K258 -> *Unidades en millones de pesos
C35: AÑO | D35: INDICADOR
D36: Margen Bruto | E36: Margen Operativo | F36: Margen Neto | G36: Rentabilidad Op. del patrimonio
C38: =Proceso!C574 -> 2018 | D38: =Proceso!D574 ->  | E38: =Proceso!E574 ->  | F38: =Proceso!F574 ->  | G38: =Proceso!G574 -> 
C39: =Proceso!C575 -> 2019 | D39: =Proceso!D575 ->  | E39: =Proceso!E575 ->  | F39: =Proceso!F575 ->  | G39: =Proceso!G575 -> 
C40: =Proceso!C576 -> 2020 | D40: =Proceso!D576 ->  | E40: =Proceso!E576 ->  | F40: =Proceso!F576 ->  | G40: =Proceso!G576 -> 
C41: =Proceso!C577 -> 2021 | D41: =Proceso!D577 ->  | E41: =Proceso!E577 ->  | F41: =Proceso!F577 ->  | G41: =Proceso!G577 -> 
C42: =Proceso!C578 -> 2022 | D42: =Proceso!D578 ->  | E42: =Proceso!E578 ->  | F42: =Proceso!F578 ->  | G42: =Proceso!G578 -> 
C43: =Proceso!C579 -> 2023 | D43: =Proceso!D579 ->  | E43: =Proceso!E579 ->  | F43: =Proceso!F579 ->  | G43: =Proceso!G579 -> 
C44: =Proceso!C580 -> 2024 | D44: =Proceso!D580 ->  | E44: =Proceso!E580 ->  | F44: =Proceso!F580 ->  | G44: =Proceso!G580 -> 
C45: =Proceso!C581 -> 2025 | D45: =Proceso!D581 ->  | E45: =Proceso!E581 ->  | F45: =Proceso!F581 ->  | G45: =Proceso!G581 -> 
C51: CAJA
D53: =D10 -> 2018 | E53: =E10 -> 2019 | F53: 2020 | G53: 2021 | H53: 2022 | I53: 2023 | J53: 2024 | K53: 2025
C54: =Mod.Financiero!C122 -> Ingresos
C55: =Mod.Financiero!C123 -> Disponible | D55: =Mod.Financiero!E123/unidad -> 0 | E55: =Mod.Financiero!F123/unidad -> 0 | F55: =Mod.Financiero!G123/unidad -> 0 | G55: =Mod.Financiero!H123/unidad -> 0 | H55: =Mod.Financiero!I123/unidad -> 0 | I55: =Mod.Financiero!J123/unidad -> 0 | J55: =Mod.Financiero!K123/unidad -> 0 | K55: =Mod.Financiero!L123/unidad -> 0
C56: =Mod.Financiero!C124 -> Desembolsos | D56: =Mod.Financiero!E124/unidad -> 0 | E56: =Mod.Financiero!F124/unidad -> 0 | F56: =Mod.Financiero!G124/unidad -> 0 | G56: =Mod.Financiero!H124/unidad -> 0 | H56: =Mod.Financiero!I124/unidad -> 0 | I56: =Mod.Financiero!J124/unidad -> 0 | J56: =Mod.Financiero!K124/unidad -> 0 | K56: =Mod.Financiero!L124/unidad -> 0
C57: =Mod.Financiero!C125 -> Capitalizaciones | D57: =Mod.Financiero!E125/unidad -> 0 | E57: =Mod.Financiero!F125/unidad -> 0 | F57: =Mod.Financiero!G125/unidad -> 0 | G57: =Mod.Financiero!H125/unidad -> 0 | H57: =Mod.Financiero!I125/unidad -> 0 | I57: =Mod.Financiero!J125/unidad -> 0 | J57: =Mod.Financiero!K125/unidad -> 0 | K57: =Mod.Financiero!L125/unidad -> 0
C58: =Mod.Financiero!C126 -> Otros ingresos | D58: =Mod.Financiero!E126/unidad -> 0 | E58: =Mod.Financiero!F126/unidad -> 0 | F58: =Mod.Financiero!G126/unidad -> 0 | G58: =Mod.Financiero!H126/unidad -> 0 | H58: =Mod.Financiero!I126/unidad -> 0 | I58: =Mod.Financiero!J126/unidad -> 0 | J58: =Mod.Financiero!K126/unidad -> 0 | K58: =Mod.Financiero!L126/unidad -> 0
C59: =Mod.Financiero!C127 -> TOTAL INGRESOS | D59: =Mod.Financiero!E127/unidad -> 0 | E59: =Mod.Financiero!F127/unidad -> 0 | F59: =Mod.Financiero!G127/unidad -> 0 | G59: =Mod.Financiero!H127/unidad -> 0 | H59: =Mod.Financiero!I127/unidad -> 0 | I59: =Mod.Financiero!J127/unidad -> 0 | J59: =Mod.Financiero!K127/unidad -> 0 | K59: =Mod.Financiero!L127/unidad -> 0
C61: =Mod.Financiero!C129 -> Egresos
C62: =Mod.Financiero!C130 -> Pagos | D62: =Mod.Financiero!E130/unidad -> 0 | E62: =Mod.Financiero!F130/unidad -> 0 | F62: =Mod.Financiero!G130/unidad -> 0 | G62: =Mod.Financiero!H130/unidad -> 0 | H62: =Mod.Financiero!I130/unidad -> 0 | I62: =Mod.Financiero!J130/unidad -> 0 | J62: =Mod.Financiero!K130/unidad -> 0 | K62: =Mod.Financiero!L130/unidad -> 0
C63: =Mod.Financiero!C131 -> Inversiones | D63: =Mod.Financiero!E131/unidad -> 0 | E63: =Mod.Financiero!F131/unidad -> 0 | F63: =Mod.Financiero!G131/unidad -> 0 | G63: =Mod.Financiero!H131/unidad -> 0 | H63: =Mod.Financiero!I131/unidad -> 0 | I63: =Mod.Financiero!J131/unidad -> 0 | J63: =Mod.Financiero!K131/unidad -> 0 | K63: =Mod.Financiero!L131/unidad -> 0
C64: =Mod.Financiero!C132 -> Intereses | D64: =Mod.Financiero!E132/unidad -> 0 | E64: =Mod.Financiero!F132/unidad -> 0 | F64: =Mod.Financiero!G132/unidad -> 0 | G64: =Mod.Financiero!H132/unidad -> 0 | H64: =Mod.Financiero!I132/unidad -> 0 | I64: =Mod.Financiero!J132/unidad -> 0 | J64: =Mod.Financiero!K132/unidad -> 0 | K64: =Mod.Financiero!L132/unidad -> 0
C65: =Mod.Financiero!C133 -> Capital | D65: =Mod.Financiero!E133/unidad -> 0 | E65: =Mod.Financiero!F133/unidad -> 0 | F65: =Mod.Financiero!G133/unidad -> 0 | G65: =Mod.Financiero!H133/unidad -> 0 | H65: =Mod.Financiero!I133/unidad -> 0 | I65: =Mod.Financiero!J133/unidad -> 0 | J65: =Mod.Financiero!K133/unidad -> 0 | K65: =Mod.Financiero!L133/unidad -> 0
C66: =Mod.Financiero!C134 -> Impuesto | D66: =Mod.Financiero!E134/unidad -> 0 | E66: =Mod.Financiero!F134/unidad -> 0 | F66: =Mod.Financiero!G134/unidad -> 0 | G66: =Mod.Financiero!H134/unidad -> 0 | H66: =Mod.Financiero!I134/unidad -> 0 | I66: =Mod.Financiero!J134/unidad -> 0 | J66: =Mod.Financiero!K134/unidad -> 0 | K66: =Mod.Financiero!L134/unidad -> 0
C67: =Mod.Financiero!C135 -> TOTAL EGRESOS | D67: =Mod.Financiero!E135/unidad -> 0 | E67: =Mod.Financiero!F135/unidad -> 0 | F67: =Mod.Financiero!G135/unidad -> 0 | G67: =Mod.Financiero!H135/unidad -> 0 | H67: =Mod.Financiero!I135/unidad -> 0 | I67: =Mod.Financiero!J135/unidad -> 0 | J67: =Mod.Financiero!K135/unidad -> 0 | K67: =Mod.Financiero!L135/unidad -> 0
C69: =Mod.Financiero!C137 -> Variacion del periodo | D69: =Mod.Financiero!E137/unidad -> 0 | E69: =Mod.Financiero!F137/unidad -> 0 | F69: =Mod.Financiero!G137/unidad -> 0 | G69: =Mod.Financiero!H137/unidad -> 0 | H69: =Mod.Financiero!I137/unidad -> 0 | I69: =Mod.Financiero!J137/unidad -> 0 | J69: =Mod.Financiero!K137/unidad -> 0 | K69: =Mod.Financiero!L137/unidad -> 0
C70: =Mod.Financiero!C138 -> Caja final | D70: =Mod.Financiero!E138/unidad -> 0 | E70: =Mod.Financiero!F138/unidad -> 0 | F70: =Mod.Financiero!G138/unidad -> 0 | G70: =Mod.Financiero!H138/unidad -> 0 | H70: =Mod.Financiero!I138/unidad -> 0 | I70: =Mod.Financiero!J138/unidad -> 0 | J70: =Mod.Financiero!K138/unidad -> 0 | K70: =Mod.Financiero!L138/unidad -> 0
J71: =J32 -> *Unidades en millones de pesos
C74: FLUJO DE CAJA OPERATIVO
D75: =D53 -> 2018 | E75: =E53 -> 2019 | F75: 2020 | G75: 2021 | H75: 2022 | I75: 2023 | J75: 2024 | K75: 2025
C76: Ingresos | D76: =D11 -> 0 | E76: =E11 -> 0 | F76: 0 | G76: 0 | H76: 0 | I76: 0 | J76: 0 | K76: 0
C77: Costos | D77: =-D12 -> 0 | E77: =-E12 -> 0 | F77: 0 | G77: 0 | H77: 0 | I77: 0 | J77: 0 | K77: 0
C78: Gastos | D78: =-SUM(D16:D17) -> 0 | E78: =-SUM(E16:E17) -> 0 | F78: 0 | G78: 0 | H78: 0 | I78: 0 | J78: 0 | K78: 0
C79: UTILIDAD OPERATIVA | D79: =SUM(D76:D78) -> 0 | E79: =SUM(E76:E78) -> 0 | F79: 0 | G79: 0 | H79: 0 | I79: 0 | J79: 0 | K79: 0
C80: Depreciaciones | D80: =-D17 -> 0 | E80: =-E17 -> 0 | F80: 0 | G80: 0 | H80: 0 | I80: 0 | J80: 0 | K80: 0
C81: EBITDA | D81: =D79-D80 -> 0 | E81: =E79-E80 -> 0 | F81: 0 | G81: 0 | H81: 0 | I81: 0 | J81: 0 | K81: 0
C83: Impuestos operativos | D83: =-IF(D79<0,0,impuesto*D79) -> 0 | E83: 0 | F83: 0 | G83: 0 | H83: 0 | I83: 0 | J83: 0 | K83: 0
C84: UNODI | D84: =D79+D83 -> 0 | E84: =E79+E83 -> 0 | F84: 0 | G84: 0 | H84: 0 | I84: 0 | J84: 0 | K84: 0
C85: Depreciacion | D85: =-D80 -> 0 | E85: =-E80 -> 0 | F85: 0 | G85: 0 | H85: 0 | I85: 0 | J85: 0 | K85: 0
C86: Variacion del capital de trabajo | D86: =-Proceso!D514/unidad -> 0 | E86: =-Proceso!E514/unidad -> 0 | F86: =-Proceso!F514/unidad -> 0 | G86: =-Proceso!G514/unidad -> 0 | H86: =-Proceso!H514/unidad -> 0 | I86: =-Proceso!I514/unidad -> 0 | J86: =-Proceso!J514/unidad -> 0 | K86: =-Proceso!K514/unidad -> 0
C87: Inversiones | D87: ='Mod.Tab&Graf'!D250 -> 0 | E87: ='Mod.Tab&Graf'!E250 -> 0 | F87: ='Mod.Tab&Graf'!F250 -> 0 | G87: ='Mod.Tab&Graf'!G250 -> 0 | H87: ='Mod.Tab&Graf'!H250 -> 0 | I87: ='Mod.Tab&Graf'!I250 -> 0 | J87: ='Mod.Tab&Graf'!J250 -> 0 | K87: ='Mod.Tab&Graf'!K250 -> 0
C88: FLUJO DE CAJA OPERATIVO | D88: =SUM(D84:D87) -> 0 | E88: =SUM(E84:E87) -> 0 | F88: 0 | G88: 0 | H88: 0 | I88: 0 | J88: 0 | K88: 0
J89: =J71 -> *Unidades en millones de pesos
C90: WACC | D90: 9%
C91: TIR | D91: =IRR(D88:K88) -> 
C92: PRI | D92: =Proceso!C519 -> 0
C93: RELACION B/C | D93: =ABS(Proceso!C522/Proceso!C521) -> 
C94: VPN* | D94: =Proceso!C524 -> 0
C97: FLUJO DE CAJA SOCIOS
D98: =D75 -> 2018 | E98: =E75 -> 2019 | F98: 2020 | G98: 2021 | H98: 2022 | I98: 2023 | J98: 2024 | K98: 2025
C99: =C88 -> FLUJO DE CAJA OPERATIVO | D99: =D88 -> 0 | E99: 0 | F99: 0 | G99: 0 | H99: 0 | I99: 0 | J99: 0 | K99: 0
C100: Desembolsos | D100: =D56 -> 0 | E100: =E56 -> 0 | F100: 0 | G100: 0 | H100: 0 | I100: 0 | J100: 0 | K100: 0
C101: Compromisos financieros | D101: =D64+D65 -> 0 | E101: =E64+E65 -> 0 | F101: 0 | G101: 0 | H101: 0 | I101: 0 | J101: 0 | K101: 0
C102: =C22 -> Otros ingresos | D102: =D22 -> 0 | E102: 0 | F102: 0 | G102: 0 | H102: 0 | I102: 0 | J102: 0 | K102: 0
C103: =C24 -> Otros egresos | D103: =D24 -> 0 | E103: 0 | F103: 0 | G103: 0 | H103: 0 | I103: 0 | J103: 0 | K103: 0
C104: Escudo Fiscal | D104: =-IF(D30>0,(D64+SUM(D102:D103))*impuesto,D83) -> 0 | E104: 0 | F104: 0 | G104: 0 | H104: 0 | I104: 0 | J104: 0 | K104: 0
C105: FLUJO DE CAJA SOCIOS | D105: =SUM(D99:D104) -> 0 | E105: =SUM(E99:E104) -> 0 | F105: 0 | G105: 0 | H105: 0 | I105: 0 | J105: 0 | K105: 0
C107: CAPM | D107: 16%
C108: TIR | D108: =IRR(D105:K105) -> 
C109: PRI | D109: =Proceso!C552 -> 0
C110: RELACION B/C | D110: =ABS(Proceso!C531/Proceso!C530) -> 
C111: VPN* | D111: =Proceso!C533 -> 0

Sheet Proceso (hidden)
B3: Modulo de ingresos
B6: Seleccion precio | C6: 2
C7: =Mod.ingresos!E15 -> 2018 | D7: =Mod.ingresos!F15 -> 2019 | E7: =Mod.ingresos!G15 -> 2020 | F7: =Mod.ingresos!H15 -> 2021 | G7: =Mod.ingresos!I15 -> 2022 | H7: =Mod.ingresos!J15 -> 2023 | I7: =Mod.ingresos!K15 -> 2024 | J7: =Mod.ingresos!L15 -> 2025
B8: Macroeconomico | C8: =Mod.Macro!I8 -> 2.00% | D8: =Mod.Macro!J8 -> 2.80% | E8: =Mod.Macro!K8 -> 3.50% | F8: =Mod.Macro!L8 -> 4.20% | G8: =Mod.Macro!M8 -> 3.70% | H8: =Mod.Macro!N8 -> 3.70% | I8: =Mod.Macro!O8 -> 3.70% | J8: =Mod.Macro!P8 -> 3.70%
B9: Criterio propio P1 | C9: =Mod.ingresos!E31 -> 0 | D9: =Mod.ingresos!F31 -> 0 | E9: =Mod.ingresos!G31 -> 0 | F9: =Mod.ingresos!H31 -> 0 | G9: =Mod.ingresos!I31 -> 0 | H9: =Mod.ingresos!J31 -> 0 | I9: =Mod.ingresos!K31 -> 0 | J9: =Mod.ingresos!L31 -> 0
B10: Criterio propio P2 | D10: =Mod.ingresos!F32 -> 0% | E10: =Mod.ingresos!G32 -> 0% | F10: =Mod.ingresos!H32 -> 0% | G10: =Mod.ingresos!I32 -> 0% | H10: =Mod.ingresos!J32 -> 0% | I10: =Mod.ingresos!K32 -> 0% | J10: =Mod.ingresos!L32 -> 0%
B11: Criterio propio P3 | D11: =Mod.ingresos!F33 -> 0% | E11: =Mod.ingresos!G33 -> 0% | F11: =Mod.ingresos!H33 -> 0% | G11: =Mod.ingresos!I33 -> 0% | H11: =Mod.ingresos!J33 -> 0% | I11: =Mod.ingresos!K33 -> 0% | J11: =Mod.ingresos!L33 -> 0%
B12: Select-Producto(Servicio) 1 | C12: =IF($C$6=1,C8,C9) -> 0 | D12: =IF($C$6=1,D8,D9) -> 0 | E12: 0 | F12: 0 | G12: 0 | H12: 0 | I12: 0 | J12: 0
B13: Select-Producto(Servicio) 2 | C13: =IF($C$6=1,C8,C10) -> 0 | D13: =IF($C$6=1,D8,D10) -> 0 | E13: 0 | F13: 0 | G13: 0 | H13: 0 | I13: 0 | J13: 0
B14: Select-Producto(Servicio) 3 | C14: =IF($C$6=1,C8,C11) -> 0 | D14: =IF($C$6=1,D8,D11) -> 0 | E14: 0 | F14: 0 | G14: 0 | H14: 0 | I14: 0 | J14: 0
B15: Precio final -Producto(Servicio) 1 | C15: =Precio_base1 -> 0 | D15: =C15*(1+D12) -> 0 | E15: =D15*(1+E12) -> 0 | F15: 0 | G15: 0 | H15: 0 | I15: 0 | J15: 0
B16: Precio final -Producto(Servicio) 2 | C16: =Precio_base2 -> 0 | D16: =C16*(1+D13) -> 0 | E16: =D16*(1+E13) -> 0 | F16: =E16*(1+F13) -> 0 | G16: =F16*(1+G13) -> 0 | H16: =G16*(1+H13) -> 0 | I16: =H16*(1+I13) -> 0 | J16: =I16*(1+J13) -> 0
B17: Precio final -Producto(Servicio) 3 | C17: =Precio_base3 -> 0 | D17: 0 | E17: 0 | F17: 0 | G17: 0 | H17: 0 | I17: 0 | J17: 0
B20: Manejo de Cartera
D21: Mes
B22: politicas | D22: 1 | E22: 2 | F22: 3 | G22: 4 | H22: 5 | I22: 6 | J22: 7 | K22: 8 | L22: 9 | M22: 10 | N22: 11 | O22: 12
B23: =Mod.ingresos!C50 -> Dias | C23: =Mod.ingresos!D50 -> % | D23: =Mod.ingresos!E41 -> 0 | E23: =Mod.ingresos!F41 -> 0 | F23: =Mod.ingresos!G41 -> 0 | G23: =Mod.ingresos!H41 -> 0 | H23: =Mod.ingresos!I41 -> 0 | I23: =Mod.ingresos!J41 -> 0 | J23: =Mod.ingresos!K41 -> 0 | K23: =Mod.ingresos!L41 -> 0 | L23: =Mod.ingresos!M41 -> 0 | M23: =Mod.ingresos!N41 -> 0 | N23: =Mod.ingresos!O41 -> 0 | O23: =Mod.ingresos!P41 -> 0
B24: =Mod.ingresos!C51 -> 30 | C24: =Mod.ingresos!D51 -> 50% | D24: =$C24*D$23 -> 0 | E24: =$C24*E$23 -> 0 | F24: 0 | G24: 0 | H24: 0 | I24: 0 | J24: 0 | K24: 0 | L24: 0 | M24: 0 | N24: 0 | O24: 0
B25: =Mod.ingresos!C52 -> 60 | C25: =Mod.ingresos!D52 -> 0% | D25: =$C25*D$23 -> 0 | E25: 0 | F25: 0 | G25: 0 | H25: 0 | I25: 0 | J25: 0 | K25: 0 | L25: 0 | M25: 0 | N25: 0 | O25: 0
B26: =Mod.ingresos!C53 -> 180 | C26: =Mod.ingresos!D53 -> 0% | D26: 0 | E26: 0 | F26: 0 | G26: 0 | H26: 0 | I26: 0 | J26: 0 | K26: 0 | L26: 0 | M26: 0 | N26: 0 | O26: 0
D28: 1 | E28: 2 | F28: 3 | G28: 4 | H28: 5 | I28: 6 | J28: 7 | K28: 8 | L28: 9 | M28: 10 | N28: 11 | O28: 12
C29: Amount | D29: 30 | E29: =D29+30 -> 60 | F29: =E29+30 -> 90 | G29: 120 | H29: 150 | I29: 180 | J29: 210 | K29: 240 | L29: =K29+30 -> 270 | M29: =L29+30 -> 300 | N29: =M29+30 -> 330 | O29: =N29+30 -> 360
A30: 1 | B30: =INDEX(Mod.ingresos!$E$40:$P$40,A30) -> Ene | C30: =INDEX(Ingresos_mensual,A30) -> 0 | D30: =IF(D$29<=$B$24,$D$24,0)+IF(D$29<=$B$25,$D$25,0)+IF(D$29<=$B$26,$D$26,0) -> 0 | E30: =IF(E$29<=$B$24,$D$24,0)+IF(E$29<=$B$25,$D$25,0)+IF(E$29<=$B$26,$D$26,0) -> 0 | F30: 0 | G30: 0 | H30: 0 | I30: 0 | J30: 0 | K30: 0 | L30: 0 | M30: 0 | N30: 0 | O30: 0
A31: 2 | B31: =INDEX(Mod.ingresos!$E$40:$P$40,A31) -> Feb | C31: 0 | E31: =IF(D$29<=$B$24,$E$24,0)+IF(D$29<=$B$25,$E$25,0)+IF(D$29<=$B$26,$E$26,0) -> 0 | F31: =IF(E$29<=$B$24,$E$24,0)+IF(E$29<=$B$25,$E$25,0)+IF(E$29<=$B$26,$E$26,0) -> 0 | G31: 0 | H31: 0 | I31: 0 | J31: 0 | K31: 0 | L31: 0 | M31: 0 | N31: 0 | O31: 0
A32: 3 | B32: =INDEX(Mod.ingresos!$E$40:$P$40,A32) -> Mar | C32: 0 | F32: =IF(D$29<=$B$24,$F$24,0)+IF(D$29<=$B$25,$F$25,0)+IF(D$29<=$B$26,$F$26,0) -> 0 | G32: =IF(E$29<=$B$24,$F$24,0)+IF(E$29<=$B$25,$F$25,0)+IF(E$29<=$B$26,$F$26,0) -> 0 | H32: 0 | I32: 0 | J32: 0 | K32: 0 | L32: 0 | M32: 0 | N32: 0 | O32: 0
A33: 4 | B33: =INDEX(Mod.ingresos!$E$40:$P$40,A33) -> Abr | C33: 0 | G33: =IF(D$29<=$B$24,$G$24,0)+IF(D$29<=$B$25,$G$25,0)+IF(D$29<=$B$26,$G$26,0) -> 0 | H33: =IF(E$29<=$B$24,$G$24,0)+IF(E$29<=$B$25,$G$25,0)+IF(E$29<=$B$26,$G$26,0) -> 0 | I33: 0 | J33: 0 | K33: 0 | L33: 0 | M33: 0 | N33: 0 | O33: 0
A34: 5 | B34: =INDEX(Mod.ingresos!$E$40:$P$40,A34) -> May | C34: 0 | H34: =IF(D$29<=$B$24,$H$24,0)+IF(D$29<=$B$25,$H$25,0)+IF(D$29<=$B$26,$H$26,0) -> 0 | I34: =IF(E$29<=$B$24,$H$24,0)+IF(E$29<=$B$25,$H$25,0)+IF(E$29<=$B$26,$H$26,0) -> 0 | J34: 0 | K34: 0 | L34: 0 | M34: 0 | N34: 0 | O34: 0
A35: 6 | B35: =INDEX(Mod.ingresos!$E$40:$P$40,A35) -> Jun | C35: 0 | I35: =IF(D$29<=$B$24,$I$24,0)+IF(D$29<=$B$25,$I$25,0)+IF(D$29<=$B$26,$I$26,0) -> 0 | J35: =IF(E$29<=$B$24,$I$24,0)+IF(E$29<=$B$25,$I$25,0)+IF(E$29<=$B$26,$I$26,0) -> 0 | K35: 0 | L35: 0 | M35: 0 | N35: 0 | O35: 0
A36: 7 | B36: =INDEX(Mod.ingresos!$E$40:$P$40,A36) -> Jul | C36: 0 | J36: =IF(D$29<=$B$24,$J$24,0)+IF(D$29<=$B$25,$J$25,0)+IF(D$29<=$B$26,$J$26,0) -> 0 | K36: =IF(E$29<=$B$24,$J$24,0)+IF(E$29<=$B$25,$J$25,0)+IF(E$29<=$B$26,$J$26,0) -> 0 | L36: 0 | M36: 0 | N36: 0 | O36: 0 | P36: =IF(J$29<=$B$24,$J$24,0)+IF(J$29<=$B$25,$J$25,0)+IF(J$29<=$B$26,$J$26,0) -> 0 | Q36: =IF(K$29<=$B$24,$J$24,0)+IF(K$29<=$B$25,$J$25,0)+IF(K$29<=$B$26,$J$26,0) -> 0 | R36: =IF(L$29<=$B$24,$J$24,0)+IF(L$29<=$B$25,$J$25,0)+IF(L$29<=$B$26,$J$26,0) -> 0 | S36: =IF(M$29<=$B$24,$J$24,0)+IF(M$29<=$B$25,$J$25,0)+IF(M$29<=$B$26,$J$26,0) -> 0 | T36: =IF(N$29<=$B$24,$J$24,0)+IF(N$29<=$B$25,$J$25,0)+IF(N$29<=$B$26,$J$26,0) -> 0 | U36: 0
A37: 8 | B37: =INDEX(Mod.ingresos!$E$40:$P$40,A37) -> Ago | C37: 0 | K37: =IF(D$29<=$B$24,$K$24,0)+IF(D$29<=$B$25,$K$25,0)+IF(D$29<=$B$26,$K$26,0) -> 0 | L37: =IF(E$29<=$B$24,$K$24,0)+IF(E$29<=$B$25,$K$25,0)+IF(E$29<=$B$26,$K$26,0) -> 0 | M37: 0 | N37: 0 | O37: 0 | P37: =IF(I$29<=$B$24,$K$24,0)+IF(I$29<=$B$25,$K$25,0)+IF(I$29<=$B$26,$K$26,0) -> 0 | Q37: =IF(J$29<=$B$24,$K$24,0)+IF(J$29<=$B$25,$K$25,0)+IF(J$29<=$B$26,$K$26,0) -> 0 | R37: =IF(K$29<=$B$24,$K$24,0)+IF(K$29<=$B$25,$K$25,0)+IF(K$29<=$B$26,$K$26,0) -> 0 | S37: =IF(L$29<=$B$24,$K$24,0)+IF(L$29<=$B$25,$K$25,0)+IF(L$29<=$B$26,$K$26,0) -> 0 | T37: =IF(M$29<=$B$24,$K$24,0)+IF(M$29<=$B$25,$K$25,0)+IF(M$29<=$B$26,$K$26,0) -> 0 | U37: 0
A38: 9 | B38: =INDEX(Mod.ingresos!$E$40:$P$40,A38) -> Sep | C38: 0 | L38: =IF(D$29<=$B$24,$L$24,0)+IF(D$29<=$B$25,$L$25,0)+IF(D$29<=$B$26,$L$26,0) -> 0 | M38: =IF(E$29<=$B$24,$L$24,0)+IF(E$29<=$B$25,$L$25,0)+IF(E$29<=$B$26,$L$26,0) -> 0 | N38: 0 | O38: 0 | P38: =IF(H$29<=$B$24,$L$24,0)+IF(H$29<=$B$25,$L$25,0)+IF(H$29<=$B$26,$L$26,0) -> 0 | Q38: =IF(I$29<=$B$24,$L$24,0)+IF(I$29<=$B$25,$L$25,0)+IF(I$29<=$B$26,$L$26,0) -> 0 | R38: =IF(J$29<=$B$24,$L$24,0)+IF(J$29<=$B$25,$L$25,0)+IF(J$29<=$B$26,$L$26,0) -> 0 | S38: =IF(K$29<=$B$24,$L$24,0)+IF(K$29<=$B$25,$L$25,0)+IF(K$29<=$B$26,$L$26,0) -> 0 | T38: =IF(L$29<=$B$24,$L$24,0)+IF(L$29<=$B$25,$L$25,0)+IF(L$29<=$B$26,$L$26,0) -> 0 | U38: 0
A39: 10 | B39: =INDEX(Mod.ingresos!$E$40:$P$40,A39) -> Oct | C39: 0 | M39: =IF(D$29<=$B$24,$M$24,0)+IF(D$29<=$B$25,$M$25,0)+IF(D$29<=$B$26,$M$26,0) -> 0 | N39: =IF(E$29<=$B$24,$M$24,0)+IF(E$29<=$B$25,$M$25,0)+IF(E$29<=$B$26,$M$26,0) -> 0 | O39: 0 | P39: =IF(G$29<=$B$24,$M$24,0)+IF(G$29<=$B$25,$M$25,0)+IF(G$29<=$B$26,$M$26,0) -> 0 | Q39: =IF(H$29<=$B$24,$M$24,0)+IF(H$29<=$B$25,$M$25,0)+IF(H$29<=$B$26,$M$26,0) -> 0 | R39: =IF(I$29<=$B$24,$M$24,0)+IF(I$29<=$B$25,$M$25,0)+IF(I$29<=$B$26,$M$26,0) -> 0 | S39: =IF(J$29<=$B$24,$M$24,0)+IF(J$29<=$B$25,$M$25,0)+IF(J$29<=$B$26,$M$26,0) -> 0 | T39: =IF(K$29<=$B$24,$M$24,0)+IF(K$29<=$B$25,$M$25,0)+IF(K$29<=$B$26,$M$26,0) -> 0 | U39: 0
A40: 11 | B40: =INDEX(Mod.ingresos!$E$40:$P$40,A40) -> Nov | C40: 0 | N40: =IF(D$29<=$B$24,$N$24,0)+IF(D$29<=$B$25,$N$25,0)+IF(D$29<=$B$26,$N$26,0) -> 0 | O40: =IF(E$29<=$B$24,$N$24,0)+IF(E$29<=$B$25,$N$25,0)+IF(E$29<=$B$26,$N$26,0) -> 0 | P40: =IF(F$29<=$B$24,$N$24,0)+IF(F$29<=$B$25,$N$25,0)+IF(F$29<=$B$26,$N$26,0) -> 0 | Q40: =IF(G$29<=$B$24,$N$24,0)+IF(G$29<=$B$25,$N$25,0)+IF(G$29<=$B$26,$N$26,0) -> 0 | R40: =IF(H$29<=$B$24,$N$24,0)+IF(H$29<=$B$25,$N$25,0)+IF(H$29<=$B$26,$N$26,0) -> 0 | S40: =IF(I$29<=$B$24,$N$24,0)+IF(I$29<=$B$25,$N$25,0)+IF(I$29<=$B$26,$N$26,0) -> 0 | T40: =IF(J$29<=$B$24,$N$24,0)+IF(J$29<=$B$25,$N$25,0)+IF(J$29<=$B$26,$N$26,0) -> 0 | U40: 0
A41: 12 | B41: =INDEX(Mod.ingresos!$E$40:$P$40,A41) -> Dic | C41: 0 | O41: =IF(D$29<=$B$24,$O$24,0)+IF(D$29<=$B$25,$O$25,0)+IF(D$29<=$B$26,$O$26,0) -> 0 | P41: =IF(E$29<=$B$24,$O$24,0)+IF(E$29<=$B$25,$O$25,0)+IF(E$29<=$B$26,$O$26,0) -> 0 | Q41: 0 | R41: 0 | S41: 0 | T41: 0 | U41: =IF(J$29<=$B$24,$O$24,0)+IF(J$29<=$B$25,$O$25,0)+IF(J$29<=$B$26,$O$26,0) -> 0
B42: CXC mensual | D42: =SUM(D30:D41) -> 0 | E42: =SUM(E30:E41) -> 0 | F42: 0 | G42: 0 | H42: 0 | I42: 0 | J42: 0 | K42: 0 | L42: 0 | M42: 0 | N42: 0 | O42: 0 | P42: =SUM(P30:P41) -> 0 | Q42: =SUM(Q30:Q41) -> 0 | R42: =SUM(R30:R41) -> 0 | S42: =SUM(S30:S41) -> 0 | T42: =SUM(T30:T41) -> 0 | U42: =SUM(U30:U41) -> 0
B43: CxC First year | C43: =SUM(O42) -> 0
B44: Recaudo | D44: =D23+C42-D42 -> 0 | E44: =E23+D42-E42 -> 0 | F44: 0 | G44: 0 | H44: 0 | I44: 0 | J44: 0 | K44: 0 | L44: 0 | M44: 0 | N44: 0 | O44: =O23+N42-O42 -> 0
B45: Recaudo Primer anio | C45: =SUM(D44:O44) -> 0
C46: =C45-D48 -> 0
B47: CXC annual | D47: =O42 -> 0 | E47: =(Mod.ingresos!F44/360)*(SUMPRODUCT($B$24:$B$26,$C$24:$C$26)) -> 0 | F47: =(Mod.ingresos!G44/360)*(SUMPRODUCT($B$24:$B$26,$C$24:$C$26)) -> 0 | G47: =(Mod.ingresos!H44/360)*(SUMPRODUCT($B$24:$B$26,$C$24:$C$26)) -> 0 | H47: =(Mod.ingresos!I44/360)*(SUMPRODUCT($B$24:$B$26,$C$24:$C$26)) -> 0 | I47: =(Mod.ingresos!J44/360)*(SUMPRODUCT($B$24:$B$26,$C$24:$C$26)) -> 0 | J47: =(Mod.ingresos!K44/360)*(SUMPRODUCT($B$24:$B$26,$C$24:$C$26)) -> 0 | K47: =(Mod.ingresos!L44/360)*(SUMPRODUCT($B$24:$B$26,$C$24:$C$26)) -> 0
B48: Recaudo annual | D48: =Mod.ingresos!E44-D47+C47 -> 0 | E48: =Mod.ingresos!F44-E47+D47 -> 0 | F48: =Mod.ingresos!G44-F47+E47 -> 0 | G48: =Mod.ingresos!H44-G47+F47 -> 0 | H48: =Mod.ingresos!I44-H47+G47 -> 0 | I48: =Mod.ingresos!J44-I47+H47 -> 0 | J48: =Mod.ingresos!K44-J47+I47 -> 0 | K48: =Mod.ingresos!L44-K47+J47 -> 0
B49: % recaudo | D49: =D48/Mod.ingresos!E44 ->  | E49: =E48/Mod.ingresos!F44 ->  | F49: =F48/Mod.ingresos!G44 ->  | G49: =G48/Mod.ingresos!H44 ->  | H49: =H48/Mod.ingresos!I44 ->  | I49: =I48/Mod.ingresos!J44 ->  | J49: =J48/Mod.ingresos!K44 ->  | K49: =K48/Mod.ingresos!L44 -> 
B56: Modulo de Costos y Gastos
B59: Manejo de COSTOS
B61: Seleccion costo Producto 1 | C61: 2
C62: =C7 -> 2018 | D62: =D7 -> 2019 | E62: 2020 | F62: 2021 | G62: 2022 | H62: 2023 | I62: 2024 | J62: 2025
B63: Macroeconomico | C63: =C8 -> 2.00% | D63: =D8 -> 2.80% | E63: 3.50% | F63: 4.20% | G63: 3.70% | H63: 3.70% | I63: 3.70% | J63: 3.70%
B64: Criterio Porducto 1 | C64: ='Mod.ctos&gtos'!E22 -> 0% | D64: ='Mod.ctos&gtos'!F22 -> 0% | E64: ='Mod.ctos&gtos'!G22 -> 0% | F64: ='Mod.ctos&gtos'!H22 -> 0% | G64: ='Mod.ctos&gtos'!I22 -> 0% | H64: ='Mod.ctos&gtos'!J22 -> 0% | I64: ='Mod.ctos&gtos'!K22 -> 0% | J64: ='Mod.ctos&gtos'!L22 -> 0%
B65: Select-Producto(Servicio) 1 | D65: =IF($C$61=1,D63,D64) -> 0.0% | E65: =IF($C$61=1,E63,E64) -> 0.0% | F65: 0.0% | G65: 0.0% | H65: 0.0% | I65: 0.0% | J65: 0.0%
B66: Precio Unitario | C66: =Costo1 -> 0 | D66: =C66*(1+D65) -> 0 | E66: =D66*(1+E65) -> 0 | F66: 0 | G66: 0 | H66: 0 | I66: 0 | J66: 0
B68: Seleccion costo Producto 2 | C68: 2
C69: =C62 -> 2018 | D69: =D62 -> 2019 | E69: 2020 | F69: 2021 | G69: 2022 | H69: 2023 | I69: 2024 | J69: 2025
B70: Macroeconomico | C70: =C63 -> 2.00% | D70: =D63 -> 2.80% | E70: 3.50% | F70: 4.20% | G70: 3.70% | H70: 3.70% | I70: 3.70% | J70: 3.70%
B71: Criterio Porducto 2 | C71: ='Mod.ctos&gtos'!E49 -> 0% | D71: ='Mod.ctos&gtos'!F49 -> 0% | E71: ='Mod.ctos&gtos'!G49 -> 0% | F71: ='Mod.ctos&gtos'!H49 -> 0% | G71: ='Mod.ctos&gtos'!I49 -> 0% | H71: ='Mod.ctos&gtos'!J49 -> 0% | I71: ='Mod.ctos&gtos'!K49 -> 0% | J71: ='Mod.ctos&gtos'!L49 -> 0%
B72: Select-Producto(Servicio) 2 | D72: =IF($C$68=1,D70,D71) -> 0.0% | E72: =IF($C$68=1,E70,E71) -> 0.0% | F72: 0.0% | G72: 0.0% | H72: 0.0% | I72: 0.0% | J72: 0.0%
B73: Precio Unitario | C73: =Costo2 -> 0 | D73: =C73*(1+D72) -> 0 | E73: =D73*(1+E72) -> 0 | F73: =E73*(1+F72) -> 0 | G73: =F73*(1+G72) -> 0 | H73: =G73*(1+H72) -> 0 | I73: =H73*(1+I72) -> 0 | J73: =I73*(1+J72) -> 0
B75: Seleccion costo Producto 3 | C75: 2
C76: =C69 -> 2018 | D76: =D69 -> 2019 | E76: 2020 | F76: 2021 | G76: 2022 | H76: 2023 | I76: 2024 | J76: 2025
B77: Macroeconomico | C77: =C70 -> 2.00% | D77: =D70 -> 2.80% | E77: 3.50% | F77: 4.20% | G77: 3.70% | H77: 3.70% | I77: 3.70% | J77: 3.70%
B78: Criterio Porducto 3 | C78: ='Mod.ctos&gtos'!E76 -> 0% | D78: ='Mod.ctos&gtos'!F76 -> 0% | E78: ='Mod.ctos&gtos'!G76 -> 0% | F78: ='Mod.ctos&gtos'!H76 -> 0% | G78: ='Mod.ctos&gtos'!I76 -> 0% | H78: ='Mod.ctos&gtos'!J76 -> 0% | I78: ='Mod.ctos&gtos'!K76 -> 0% | J78: ='Mod.ctos&gtos'!L76 -> 0%
B79: Select-Producto(Servicio) 3 | D79: =IF($C$75=1,D77,D78) -> 0.0% | E79: =IF($C$75=1,E77,E78) -> 0.0% | F79: 0.0% | G79: 0.0% | H79: 0.0% | I79: 0.0% | J79: 0.0%
B80: Precio Unitario | C80: =Costo3 -> 0 | D80: =C80*(1+D79) -> 0 | E80: =D80*(1+E79) -> 0 | F80: =E80*(1+F79) -> 0 | G80: =F80*(1+G79) -> 0 | H80: =G80*(1+H79) -> 0 | I80: =H80*(1+I79) -> 0 | J80: =I80*(1+J79) -> 0
B82: Seleccion Costo | C82: 2
C83: =C76 -> 2018 | D83: =D76 -> 2019 | E83: 2020 | F83: 2021 | G83: 2022 | H83: 2023 | I83: 2024 | J83: 2025
B84: Macroeconomico | C84: =C77 -> 2.00% | D84: =D77 -> 2.80% | E84: 3.50% | F84: 4.20% | G84: 3.70% | H84: 3.70% | I84: 3.70% | J84: 3.70%
B85: Criterio | C85: ='Mod.ctos&gtos'!H96 -> 0% | D85: ='Mod.ctos&gtos'!I96 -> 0% | E85: ='Mod.ctos&gtos'!J96 -> 0% | F85: ='Mod.ctos&gtos'!K96 -> 0% | G85: ='Mod.ctos&gtos'!L96 -> 0% | H85: ='Mod.ctos&gtos'!M96 -> 0% | I85: ='Mod.ctos&gtos'!N96 -> 0% | J85: ='Mod.ctos&gtos'!O96 -> 0%
B86: Select-Producto(Servicio) 3 | D86: =IF($C$82=1,D84,D85) -> 0.0% | E86: =IF($C$82=1,E84,E85) -> 0.0% | F86: 0.0% | G86: 0.0% | H86: 0.0% | I86: 0.0% | J86: 0.0%
B87: ='Mod.ctos&gtos'!C102 -> Costos Servicios Personales | C87: =SUM('Mod.ctos&gtos'!E102:P102) -> 0 | D87: =C87*(1+D$86) -> 0 | E87: 0 | F87: 0 | G87: 0 | H87: 0 | I87: 0 | J87: 0
B88: ='Mod.ctos&gtos'!C103 -> Costos Costos Generales | C88: =SUM('Mod.ctos&gtos'!E103:P103) -> 0 | D88: 0 | E88: 0 | F88: 0 | G88: 0 | H88: 0 | I88: 0 | J88: 0
B89: ='Mod.ctos&gtos'!C104 -> Costos Servicios Públicos | C89: =SUM('Mod.ctos&gtos'!E104:P104) -> 0 | D89: 0 | E89: 0 | F89: 0 | G89: 0 | H89: 0 | I89: 0 | J89: 0
B90: ='Mod.ctos&gtos'!C105 -> Costos Mantenimientos | C90: =SUM('Mod.ctos&gtos'!E105:P105) -> 0 | D90: 0 | E90: 0 | F90: 0 | G90: 0 | H90: 0 | I90: 0 | J90: 0
B91: ='Mod.ctos&gtos'!C106 -> Costos Otros Costos | C91: =SUM('Mod.ctos&gtos'!E106:P106) -> 0 | D91: 0 | E91: 0 | F91: 0 | G91: 0 | H91: 0 | I91: 0 | J91: 0
B94: COSTOS DE INSUMOS | D94: 30 | E94: =D94+30 -> 60 | F94: =E94+30 -> 90 | G94: 120 | H94: 150 | I94: 180 | J94: 210 | K94: 240 | L94: 270 | M94: 300 | N94: 330 | O94: 360
A95: 1 | B95: =INDEX(Mod.ingresos!$E$40:$P$40,A95) -> Ene | C95: =INDEX('Mod.ctos&gtos'!$E$101:$P$101,A95) -> 0 | D95: =IF(cxp_1<D$94,IF(D$94-cxp_1<30,$C95*(1-(ABS(D$94-cxp_1))/30),0),$C95) -> 0 | E95: 0 | F95: 0 | G95: 0 | H95: 0 | I95: 0 | J95: 0 | K95: 0 | L95: 0 | M95: 0 | N95: 0 | O95: 0
A96: 2 | B96: =INDEX(Mod.ingresos!$E$40:$P$40,A96) -> Feb | C96: =INDEX('Mod.ctos&gtos'!$E$101:$P$101,A96) -> 0 | E96: =IF(cxp_1<D$94,IF(D$94-cxp_1<30,$C96*(1-(ABS(D$94-cxp_1))/30),0),$C96) -> 0 | F96: 0 | G96: 0 | H96: 0 | I96: 0 | J96: 0 | K96: 0 | L96: 0 | M96: 0 | N96: 0 | O96: 0
A97: 3 | B97: =INDEX(Mod.ingresos!$E$40:$P$40,A97) -> Mar | C97: =INDEX('Mod.ctos&gtos'!$E$101:$P$101,A97) -> 0 | F97: =IF(cxp_1<D$94,IF(D$94-cxp_1<30,$C97*(1-(ABS(D$94-cxp_1))/30),0),$C97) -> 0 | G97: 0 | H97: 0 | I97: 0 | J97: 0 | K97: 0 | L97: 0 | M97: 0 | N97: 0 | O97: 0
A98: 4 | B98: =INDEX(Mod.ingresos!$E$40:$P$40,A98) -> Abr | C98: =INDEX('Mod.ctos&gtos'!$E$101:$P$101,A98) -> 0 | G98: =IF(cxp_1<D$94,IF(D$94-cxp_1<30,$C98*(1-(ABS(D$94-cxp_1))/30),0),$C98) -> 0 | H98: 0 | I98: 0 | J98: 0 | K98: 0 | L98: 0 | M98: 0 | N98: 0 | O98: 0
A99: 5 | B99: =INDEX(Mod.ingresos!$E$40:$P$40,A99) -> May | C99: =INDEX('Mod.ctos&gtos'!$E$101:$P$101,A99) -> 0 | H99: =IF(cxp_1<D$94,IF(D$94-cxp_1<30,$C99*(1-(ABS(D$94-cxp_1))/30),0),$C99) -> 0 | I99: 0 | J99: 0 | K99: 0 | L99: 0 | M99: 0 | N99: 0 | O99: 0
A100: 6 | B100: =INDEX(Mod.ingresos!$E$40:$P$40,A100) -> Jun | C100: =INDEX('Mod.ctos&gtos'!$E$101:$P$101,A100) -> 0 | I100: =IF(cxp_1<D$94,IF(D$94-cxp_1<30,$C100*(1-(ABS(D$94-cxp_1))/30),0),$C100) -> 0 | J100: 0 | K100: 0 | L100: 0 | M100: 0 | N100: 0 | O100: 0
A101: 7 | B101: =INDEX(Mod.ingresos!$E$40:$P$40,A101) -> Jul | C101: =INDEX('Mod.ctos&gtos'!$E$101:$P$101,A101) -> 0 | J101: =IF(cxp_1<D$94,IF(D$94-cxp_1<30,$C101*(1-(ABS(D$94-cxp_1))/30),0),$C101) -> 0 | K101: 0 | L101: 0 | M101: 0 | N101: 0 | O101: 0 | P101: 0 | Q101: 0 | R101: 0 | S101: 0 | T101: 0 | U101: 0
A102: 8 | B102: =INDEX(Mod.ingresos!$E$40:$P$40,A102) -> Ago | C102: =INDEX('Mod.ctos&gtos'!$E$101:$P$101,A102) -> 0 | K102: =IF(cxp_1<D$94,IF(D$94-cxp_1<30,$C102*(1-(ABS(D$94-cxp_1))/30),0),$C102) -> 0 | L102: 0 | M102: 0 | N102: 0 | O102: 0 | P102: 0 | Q102: 0 | R102: 0 | S102: 0 | T102: 0 | U102: 0
A103: 9 | B103: =INDEX(Mod.ingresos!$E$40:$P$40,A103) -> Sep | C103: =INDEX('Mod.ctos&gtos'!$E$101:$P$101,A103) -> 0 | L103: =IF(cxp_1<D$94,IF(D$94-cxp_1<30,$C103*(1-(ABS(D$94-cxp_1))/30),0),$C103) -> 0 | M103: 0 | N103: 0 | O103: 0 | P103: 0 | Q103: 0 | R103: 0 | S103: 0 | T103: 0 | U103: 0
A104: 10 | B104: =INDEX(Mod.ingresos!$E$40:$P$40,A104) -> Oct | C104: =INDEX('Mod.ctos&gtos'!$E$101:$P$101,A104) -> 0 | M104: =IF(cxp_1<D$94,IF(D$94-cxp_1<30,$C104*(1-(ABS(D$94-cxp_1))/30),0),$C104) -> 0 | N104: 0 | O104: 0 | P104: 0 | Q104: 0 | R104: 0 | S104: 0 | T104: 0 | U104: 0
A105: 11 | B105: =INDEX(Mod.ingresos!$E$40:$P$40,A105) -> Nov | C105: =INDEX('Mod.ctos&gtos'!$E$101:$P$101,A105) -> 0 | N105: =IF(cxp_1<D$94,IF(D$94-cxp_1<30,$C105*(1-(ABS(D$94-cxp_1))/30),0),$C105) -> 0 | O105: 0 | P105: 0 | Q105: 0 | R105: 0 | S105: 0 | T105: 0 | U105: 0
A106: 12 | B106: =INDEX(Mod.ingresos!$E$40:$P$40,A106) -> Dic | C106: =INDEX('Mod.ctos&gtos'!$E$101:$P$101,A106) -> 0 | O106: =IF(cxp_1<D$94,IF(D$94-cxp_1<30,$C106*(1-(ABS(D$94-cxp_1))/30),0),$C106) -> 0 | P106: 0 | Q106: 0 | R106: 0 | S106: 0 | T106: 0 | U106: 0
B107: CXP mensual | D107: =SUM(D95:D106) -> 0 | E107: 0 | F107: 0 | G107: 0 | H107: 0 | I107: 0 | J107: 0 | K107: 0 | L107: 0 | M107: 0 | N107: 0 | O107: 0 | P107: =SUM(P95:P106) -> 0 | Q107: 0 | R107: 0 | S107: 0 | T107: 0 | U107: 0
B110: OTROS COSTOS | D110: 30 | E110: =D110+30 -> 60 | F110: =E110+30 -> 90 | G110: 120 | H110: 150 | I110: 180 | J110: 210 | K110: 240 | L110: 270 | M110: 300 | N110: 330 | O110: 360
A111: 1 | B111: =INDEX(Mod.ingresos!$E$40:$P$40,A111) -> Ene | C111: =INDEX('Mod.ctos&gtos'!$E$107:$P$107,A111)-C95 -> 0 | D111: =IF(cxp_2<D$94,IF(D$94-cxp_2<30,$C111*(1-(ABS(D$94-cxp_2))/30),0),$C111) -> 0 | E111: 0 | F111: 0 | G111: 0 | H111: 0 | I111: 0 | J111: 0 | K111: 0 | L111: 0 | M111: 0 | N111: 0 | O111: 0
A112: 2 | B112: =INDEX(Mod.ingresos!$E$40:$P$40,A112) -> Feb | C112: =INDEX('Mod.ctos&gtos'!$E$107:$P$107,A112)-C96 -> 0 | E112: =IF(cxp_2<D$94,IF(D$94-cxp_2<30,$C112*(1-(ABS(D$94-cxp_2))/30),0),$C112) -> 0 | F112: 0 | G112: 0 | H112: 0 | I112: 0 | J112: 0 | K112: 0 | L112: 0 | M112: 0 | N112: 0 | O112: 0
A113: 3 | B113: =INDEX(Mod.ingresos!$E$40:$P$40,A113) -> Mar | C113: =INDEX('Mod.ctos&gtos'!$E$107:$P$107,A113)-C97 -> 0 | F113: =IF(cxp_2<D$94,IF(D$94-cxp_2<30,$C113*(1-(ABS(D$94-cxp_2))/30),0),$C113) -> 0 | G113: 0 | H113: 0 | I113: 0 | J113: 0 | K113: 0 | L113: 0 | M113: 0 | N113: 0 | O113: 0
A114: 4 | B114: =INDEX(Mod.ingresos!$E$40:$P$40,A114) -> Abr | C114: =INDEX('Mod.ctos&gtos'!$E$107:$P$107,A114)-C98 -> 0 | G114: =IF(cxp_2<D$94,IF(D$94-cxp_2<30,$C114*(1-(ABS(D$94-cxp_2))/30),0),$C114) -> 0 | H114: 0 | I114: 0 | J114: 0 | K114: 0 | L114: 0 | M114: 0 | N114: 0 | O114: 0
A115: 5 | B115: =INDEX(Mod.ingresos!$E$40:$P$40,A115) -> May | C115: =INDEX('Mod.ctos&gtos'!$E$107:$P$107,A115)-C99 -> 0 | H115: =IF(cxp_2<D$94,IF(D$94-cxp_2<30,$C115*(1-(ABS(D$94-cxp_2))/30),0),$C115) -> 0 | I115: 0 | J115: 0 | K115: 0 | L115: 0 | M115: 0 | N115: 0 | O115: 0
A116: 6 | B116: =INDEX(Mod.ingresos!$E$40:$P$40,A116) -> Jun | C116: =INDEX('Mod.ctos&gtos'!$E$107:$P$107,A116)-C100 -> 0 | I116: =IF(cxp_2<D$94,IF(D$94-cxp_2<30,$C116*(1-(ABS(D$94-cxp_2))/30),0),$C116) -> 0 | J116: 0 | K116: 0 | L116: 0 | M116: 0 | N116: 0 | O116: 0
A117: 7 | B117: =INDEX(Mod.ingresos!$E$40:$P$40,A117) -> Jul | C117: =INDEX('Mod.ctos&gtos'!$E$107:$P$107,A117)-C101 -> 0 | J117: =IF(cxp_2<D$94,IF(D$94-cxp_2<30,$C117*(1-(ABS(D$94-cxp_2))/30),0),$C117) -> 0 | K117: 0 | L117: 0 | M117: 0 | N117: 0 | O117: 0 | P117: 0 | Q117: 0 | R117: 0 | S117: 0 | T117: 0 | U117: 0
A118: 8 | B118: =INDEX(Mod.ingresos!$E$40:$P$40,A118) -> Ago | C118: =INDEX('Mod.ctos&gtos'!$E$107:$P$107,A118)-C102 -> 0 | K118: =IF(cxp_2<D$94,IF(D$94-cxp_2<30,$C118*(1-(ABS(D$94-cxp_2))/30),0),$C118) -> 0 | L118: 0 | M118: 0 | N118: 0 | O118: 0 | P118: 0 | Q118: 0 | R118: 0 | S118: 0 | T118: 0 | U118: 0
A119: 9 | B119: =INDEX(Mod.ingresos!$E$40:$P$40,A119) -> Sep | C119: =INDEX('Mod.ctos&gtos'!$E$107:$P$107,A119)-C103 -> 0 | L119: =IF(cxp_2<D$94,IF(D$94-cxp_2<30,$C119*(1-(ABS(D$94-cxp_2))/30),0),$C119) -> 0 | M119: 0 | N119: 0 | O119: 0 | P119: 0 | Q119: 0 | R119: 0 | S119: 0 | T119: 0 | U119: 0
A120: 10 | B120: =INDEX(Mod.ingresos!$E$40:$P$40,A120) -> Oct | C120: =INDEX('Mod.ctos&gtos'!$E$107:$P$107,A120)-C104 -> 0 | M120: =IF(cxp_2<D$94,IF(D$94-cxp_2<30,$C120*(1-(ABS(D$94-cxp_2))/30),0),$C120) -> 0 | N120: 0 | O120: 0 | P120: 0 | Q120: 0 | R120: 0 | S120: 0 | T120: 0 | U120: 0
A121: 11 | B121: =INDEX(Mod.ingresos!$E$40:$P$40,A121) -> Nov | C121: =INDEX('Mod.ctos&gtos'!$E$107:$P$107,A121)-C105 -> 0 | N121: =IF(cxp_2<D$94,IF(D$94-cxp_2<30,$C121*(1-(ABS(D$94-cxp_2))/30),0),$C121) -> 0 | O121: 0 | P121: 0 | Q121: 0 | R121: 0 | S121: 0 | T121: 0 | U121: 0
A122: 12 | B122: =INDEX(Mod.ingresos!$E$40:$P$40,A122) -> Dic | C122: =INDEX('Mod.ctos&gtos'!$E$107:$P$107,A122)-C106 -> 0 | O122: =IF(cxp_2<D$94,IF(D$94-cxp_2<30,$C122*(1-(ABS(D$94-cxp_2))/30),0),$C122) -> 0 | P122: 0 | Q122: 0 | R122: 0 | S122: 0 | T122: 0 | U122: 0
B123: CXP mensual | D123: =SUM(D111:D122) -> 0 | E123: 0 | F123: 0 | G123: 0 | H123: 0 | I123: 0 | J123: 0 | K123: 0 | L123: 0 | M123: 0 | N123: 0 | O123: 0 | P123: =SUM(P111:P122) -> 0 | Q123: 0 | R123: 0 | S123: 0 | T123: 0 | U123: 0
B126: GASTOS | D126: 30 | E126: =D126+30 -> 60 | F126: =E126+30 -> 90 | G126: 120 | H126: 150 | I126: 180 | J126: 210 | K126: 240 | L126: 270 | M126: 300 | N126: 330 | O126: 360
A127: 1 | B127: =INDEX(Mod.ingresos!$E$40:$P$40,A127) -> Ene | C127: =INDEX('Mod.ctos&gtos'!$E$132:$P$132,A127) -> 0 | D127: =IF(cxp_3<D$94,IF(D$94-cxp_3<30,$C127*(1-(ABS(D$94-cxp_3))/30),0),$C127) -> 0 | E127: 0 | F127: 0 | G127: 0 | H127: 0 | I127: 0 | J127: 0 | K127: 0 | L127: 0 | M127: 0 | N127: 0 | O127: 0
A128: 2 | B128: =INDEX(Mod.ingresos!$E$40:$P$40,A128) -> Feb | C128: =INDEX('Mod.ctos&gtos'!$E$132:$P$132,A128) -> 0 | E128: =IF(cxp_3<D$94,IF(D$94-cxp_3<30,$C128*(1-(ABS(D$94-cxp_3))/30),0),$C128) -> 0 | F128: 0 | G128: 0 | H128: 0 | I128: 0 | J128: 0 | K128: 0 | L128: 0 | M128: 0 | N128: 0 | O128: 0
A129: 3 | B129: =INDEX(Mod.ingresos!$E$40:$P$40,A129) -> Mar | C129: =INDEX('Mod.ctos&gtos'!$E$132:$P$132,A129) -> 0 | F129: =IF(cxp_3<D$94,IF(D$94-cxp_3<30,$C129*(1-(ABS(D$94-cxp_3))/30),0),$C129) -> 0 | G129: 0 | H129: 0 | I129: 0 | J129: 0 | K129: 0 | L129: 0 | M129: 0 | N129: 0 | O129: 0
A130: 4 | B130: =INDEX(Mod.ingresos!$E$40:$P$40,A130) -> Abr | C130: =INDEX('Mod.ctos&gtos'!$E$132:$P$132,A130) -> 0 | G130: =IF(cxp_3<D$94,IF(D$94-cxp_3<30,$C130*(1-(ABS(D$94-cxp_3))/30),0),$C130) -> 0 | H130: 0 | I130: 0 | J130: 0 | K130: 0 | L130: 0 | M130: 0 | N130: 0 | O130: 0
A131: 5 | B131: =INDEX(Mod.ingresos!$E$40:$P$40,A131) -> May | C131: =INDEX('Mod.ctos&gtos'!$E$132:$P$132,A131) -> 0 | H131: =IF(cxp_3<D$94,IF(D$94-cxp_3<30,$C131*(1-(ABS(D$94-cxp_3))/30),0),$C131) -> 0 | I131: 0 | J131: 0 | K131: 0 | L131: 0 | M131: 0 | N131: 0 | O131: 0
A132: 6 | B132: =INDEX(Mod.ingresos!$E$40:$P$40,A132) -> Jun | C132: =INDEX('Mod.ctos&gtos'!$E$132:$P$132,A132) -> 0 | I132: =IF(cxp_3<D$94,IF(D$94-cxp_3<30,$C132*(1-(ABS(D$94-cxp_3))/30),0),$C132) -> 0 | J132: 0 | K132: 0 | L132: 0 | M132: 0 | N132: 0 | O132: 0
A133: 7 | B133: =INDEX(Mod.ingresos!$E$40:$P$40,A133) -> Jul | C133: =INDEX('Mod.ctos&gtos'!$E$132:$P$132,A133) -> 0 | J133: =IF(cxp_3<D$94,IF(D$94-cxp_3<30,$C133*(1-(ABS(D$94-cxp_3))/30),0),$C133) -> 0 | K133: 0 | L133: 0 | M133: 0 | N133: 0 | O133: 0 | P133: 0 | Q133: 0 | R133: 0 | S133: 0 | T133: 0 | U133: 0
A134: 8 | B134: =INDEX(Mod.ingresos!$E$40:$P$40,A134) -> Ago | C134: =INDEX('Mod.ctos&gtos'!$E$132:$P$132,A134) -> 0 | K134: =IF(cxp_3<D$94,IF(D$94-cxp_3<30,$C134*(1-(ABS(D$94-cxp_3))/30),0),$C134) -> 0 | L134: 0 | M134: 0 | N134: 0 | O134: 0 | P134: 0 | Q134: 0 | R134: 0 | S134: 0 | T134: 0 | U134: 0
A135: 9 | B135: =INDEX(Mod.ingresos!$E$40:$P$40,A135) -> Sep | C135: =INDEX('Mod.ctos&gtos'!$E$132:$P$132,A135) -> 0 | L135: =IF(cxp_3<D$94,IF(D$94-cxp_3<30,$C135*(1-(ABS(D$94-cxp_3))/30),0),$C135) -> 0 | M135: 0 | N135: 0 | O135: 0 | P135: 0 | Q135: 0 | R135: 0 | S135: 0 | T135: 0 | U135: 0
A136: 10 | B136: =INDEX(Mod.ingresos!$E$40:$P$40,A136) -> Oct | C136: =INDEX('Mod.ctos&gtos'!$E$132:$P$132,A136) -> 0 | M136: =IF(cxp_3<D$94,IF(D$94-cxp_3<30,$C136*(1-(ABS(D$94-cxp_3))/30),0),$C136) -> 0 | N136: 0 | O136: 0 | P136: 0 | Q136: 0 | R136: 0 | S136: 0 | T136: 0 | U136: 0
A137: 11 | B137: =INDEX(Mod.ingresos!$E$40:$P$40,A137) -> Nov | C137: =INDEX('Mod.ctos&gtos'!$E$132:$P$132,A137) -> 0 | N137: =IF(cxp_3<D$94,IF(D$94-cxp_3<30,$C137*(1-(ABS(D$94-cxp_3))/30),0),$C137) -> 0 | O137: 0 | P137: 0 | Q137: 0 | R137: 0 | S137: 0 | T137: 0 | U137: 0
A138: 12 | B138: =INDEX(Mod.ingresos!$E$40:$P$40,A138) -> Dic | C138: =INDEX('Mod.ctos&gtos'!$E$132:$P$132,A138) -> 0 | O138: =IF(cxp_3<D$94,IF(D$94-cxp_3<30,$C138*(1-(ABS(D$94-cxp_3))/30),0),$C138) -> 0 | P138: 0 | Q138: 0 | R138: 0 | S138: 0 | T138: 0 | U138: 0
B139: CXP mensual | D139: =SUM(D127:D138) -> 0 | E139: 0 | F139: 0 | G139: 0 | H139: 0 | I139: 0 | J139: 0 | K139: 0 | L139: 0 | M139: 0 | N139: 0 | O139: 0 | P139: =SUM(P127:P138) -> 0 | Q139: 0 | R139: 0 | S139: 0 | T139: 0 | U139: 0
B141: CXP MENSUALES | D141: =D139+D123+D107 -> 0 | E141: =E139+E123+E107 -> 0 | F141: 0 | G141: 0 | H141: 0 | I141: 0 | J141: 0 | K141: 0 | L141: 0 | M141: 0 | N141: 0 | O141: 0 | P141: 0 | Q141: 0 | R141: 0 | S141: 0 | T141: 0 | U141: 0
B142: PAGO | D142: =('Mod.ctos&gtos'!E107+'Mod.ctos&gtos'!E132)-D141+C141 -> 0 | E142: =('Mod.ctos&gtos'!F107+'Mod.ctos&gtos'!F132)-E141+D141 -> 0 | F142: =('Mod.ctos&gtos'!G107+'Mod.ctos&gtos'!G132)-F141+E141 -> 0 | G142: =('Mod.ctos&gtos'!H107+'Mod.ctos&gtos'!H132)-G141+F141 -> 0 | H142: =('Mod.ctos&gtos'!I107+'Mod.ctos&gtos'!I132)-H141+G141 -> 0 | I142: =('Mod.ctos&gtos'!J107+'Mod.ctos&gtos'!J132)-I141+H141 -> 0 | J142: =('Mod.ctos&gtos'!K107+'Mod.ctos&gtos'!K132)-J141+I141 -> 0 | K142: =('Mod.ctos&gtos'!L107+'Mod.ctos&gtos'!L132)-K141+J141 -> 0 | L142: =('Mod.ctos&gtos'!M107+'Mod.ctos&gtos'!M132)-L141+K141 -> 0 | M142: =('Mod.ctos&gtos'!N107+'Mod.ctos&gtos'!N132)-M141+L141 -> 0 | N142: =('Mod.ctos&gtos'!O107+'Mod.ctos&gtos'!O132)-N141+M141 -> 0 | O142: =('Mod.ctos&gtos'!P107+'Mod.ctos&gtos'!P132)-O141+N141 -> 0
B143: Pagos primer annio | C143: =SUM(D142:O142) -> 0
B145: CXC annual | D145: =O141 -> 0 | E145: =(('Mod.ctos&gtos'!F111*cxp_1+('Mod.ctos&gtos'!F117-'Mod.ctos&gtos'!F111)*cxp_2+'Mod.ctos&gtos'!F135*cxp_3))/360 -> 0 | F145: =(('Mod.ctos&gtos'!G111*cxp_1+('Mod.ctos&gtos'!G117-'Mod.ctos&gtos'!G111)*cxp_2+'Mod.ctos&gtos'!G135*cxp_3))/360 -> 0 | G145: =(('Mod.ctos&gtos'!H111*cxp_1+('Mod.ctos&gtos'!H117-'Mod.ctos&gtos'!H111)*cxp_2+'Mod.ctos&gtos'!H135*cxp_3))/360 -> 0 | H145: =(('Mod.ctos&gtos'!I111*cxp_1+('Mod.ctos&gtos'!I117-'Mod.ctos&gtos'!I111)*cxp_2+'Mod.ctos&gtos'!I135*cxp_3))/360 -> 0 | I145: =(('Mod.ctos&gtos'!J111*cxp_1+('Mod.ctos&gtos'!J117-'Mod.ctos&gtos'!J111)*cxp_2+'Mod.ctos&gtos'!J135*cxp_3))/360 -> 0 | J145: =(('Mod.ctos&gtos'!K111*cxp_1+('Mod.ctos&gtos'!K117-'Mod.ctos&gtos'!K111)*cxp_2+'Mod.ctos&gtos'!K135*cxp_3))/360 -> 0 | K145: =(('Mod.ctos&gtos'!L111*cxp_1+('Mod.ctos&gtos'!L117-'Mod.ctos&gtos'!L111)*cxp_2+'Mod.ctos&gtos'!L135*cxp_3))/360 -> 0 | P145: =P141*2 -> 0
B146: Recaudo annual | D146: =C143 -> 0 | E146: =('Mod.ctos&gtos'!F117+'Mod.ctos&gtos'!F135)-E145+D145 -> 0 | F146: =('Mod.ctos&gtos'!G117+'Mod.ctos&gtos'!G135)-F145+E145 -> 0 | G146: =('Mod.ctos&gtos'!H117+'Mod.ctos&gtos'!H135)-G145+F145 -> 0 | H146: =('Mod.ctos&gtos'!I117+'Mod.ctos&gtos'!I135)-H145+G145 -> 0 | I146: =('Mod.ctos&gtos'!J117+'Mod.ctos&gtos'!J135)-I145+H145 -> 0 | J146: =('Mod.ctos&gtos'!K117+'Mod.ctos&gtos'!K135)-J145+I145 -> 0 | K146: =('Mod.ctos&gtos'!L117+'Mod.ctos&gtos'!L135)-K145+J145 -> 0
D148: =Mod.Financiero!E178 -> 0 | E148: =C143-D146 -> 0
B149: REVISAR LA CAJA MINIMA
B150: Caja minima
B151: SI | D151: MENSUAL
B152: NO | D152: =D22 -> 1 | E152: 2 | F152: 3 | G152: 4 | H152: 5 | I152: 6 | J152: 7 | K152: 8 | L152: 9 | M152: 10 | N152: 11 | O152: 12
B153: =requerimiento_caja_minima -> NO | C153: Valor | D153: (2,000,000) | E153: (2,000,000) | F153: (2,000,000) | G153: (2,000,000) | H153: (2,000,000) | I153: (2,000,000) | J153: (2,000,000) | K153: (2,000,000) | L153: (2,000,000) | M153: (2,000,000) | N153: (2,000,000) | O153: (2,000,000)
C154: Requisito | D154: =-IF(requerimiento_caja_minima="SI",D153,0) -> 0 | E154: 0 | F154: 0 | G154: 0 | H154: 0 | I154: 0 | J154: 0 | K154: 0 | L154: 0 | M154: 0 | N154: 0 | O154: 0
D156: Annual
D157: =C7 -> 2018 | E157: 2019 | F157: 2020 | G157: 2021 | H157: 2022 | I157: 2023 | J157: 2024 | K157: 2025
C158: Valor | D158: =SUM(D153:O153) -> (24,000,000) | E158: =D158 -> (24,000,000) | F158: =E158 -> (24,000,000) | G158: (24,000,000) | H158: (24,000,000) | I158: (24,000,000) | J158: (24,000,000) | K158: (24,000,000)
D159: =-IF(requerimiento_caja_minima="SI",D158,0) -> 0 | E159: 0 | F159: 0 | G159: 0 | H159: 0 | I159: 0 | J159: 0 | K159: 0
B162: CHEQUEO DE VALORES DE INSUMOS
B164: Costo de materia prima es superior al precio de venta producto 1
B165: =Costo1>Precio_base1 -> FALSE | C165: =IF(B165=TRUE,"El Costo del insumo es superior al precio de venta ("&FIXED(Precio_base1,1)&").","") -> 
B166: Costo de materia prima es superior al precio de venta producto 2
B167: =Costo2>Precio_base2 -> FALSE | C167: =IF(B167=TRUE,"El Costo del insumo es superior al precio de venta ("&FIXED(Precio_base2,1)&").","") -> 
B168: Costo de materia prima es superior al precio de venta producto 3
B169: =Costo3>Precio_base3 -> FALSE | C169: =IF(B169=TRUE,"El Costo del insumo es superior al precio de venta ("&FIXED(Precio_base3,1)&").","") -> 
B171: Ingresos promedios | C171: =AVERAGE(Mod.ingresos!E44:L44) -> 0 | D171: ="EL MANGEN BRUTO PROMEDIO ES: "&TEXT(C172/C171,"#.##%") -> 
B172: Costos Premedios | C172: =AVERAGE('Mod.ctos&gtos'!E117:L117) -> 0
B174: INVERSIONES
D175: 1 | E175: 2 | F175: 3 | G175: 4 | H175: 5 | I175: 6 | J175: 7 | K175: 8 | L175: 9 | M175: 10 | N175: 11 | O175: 12
B176: Inversiones mensulaes | D176: =SUM(INDEX($C$186:$C$197,D175),INDEX($C$203:$C$214,D175),INDEX($C$220:$C$231,D175),INDEX($C$237:$C$248,D175)) -> 0 | E176: 0 | F176: 0 | G176: 0 | H176: 0 | I176: 0 | J176: 0 | K176: 0 | L176: 0 | M176: 0 | N176: 0 | O176: 0
D178: =D157 -> 2018 | E178: =E157 -> 2019 | F178: 2020 | G178: 2021 | H178: 2022 | I178: 2023 | J178: 2024 | K178: 2025
B179: Inversion Annual | D179: =SUM(D325:D328) -> 0 | E179: =SUM(E325:E328) -> 0 | F179: 0 | G179: 0 | H179: 0 | I179: 0 | J179: 0 | K179: 0
B182: Depreciaciones | E182: Reposicion
E183: SI
E184: NO | H184: ="Distribucion de inversiones - "&Nom_proyecto -> Distribucion de inversiones - Proyecto 1
B185: Terreno | C185: Inversión Mes | H185: TOTAL
B186: =B203 -> Ene | C186: =Mod.Inversiones!D12 -> 0 | E186: Terreno | F186: Annual | H186: =Mod.Inversiones!D11 -> Terreno | I186: =Mod.Inversiones!E11 -> Edificacion | J186: =Mod.Inversiones!F11 -> Maquinaria y Materiales | K186: =Mod.Inversiones!G11 -> Otros
B187: =B204 -> Feb | C187: =Mod.Inversiones!D13 -> 0 | E187: =Mod.Inversiones!I12 -> 2019 | F187: =Mod.Inversiones!J12 -> 0 | H187: =SUM(Mod.Inversiones!D12:D23,Mod.Inversiones!J12:J14) -> 0 | I187: =SUM(Mod.Inversiones!E12:E23,Mod.Inversiones!K12:K14) -> 0 | J187: =SUM(Mod.Inversiones!F12:F23,Mod.Inversiones!L12:L14) -> 0 | K187: =SUM(Mod.Inversiones!G12:G23,Mod.Inversiones!M12:M14) -> 0
B188: Mar | C188: =Mod.Inversiones!D14 -> 0 | E188: =Mod.Inversiones!I13 -> 2020 | F188: =Mod.Inversiones!J13 -> 0
B189: Abr | C189: =Mod.Inversiones!D15 -> 0 | E189: =Mod.Inversiones!I14 -> 2021 | F189: =Mod.Inversiones!J14 -> 0
B190: May | C190: =Mod.Inversiones!D16 -> 0
B191: Jun | C191: =Mod.Inversiones!D17 -> 0 | E191: control
B192: Jul | C192: =Mod.Inversiones!D18 -> 0 | E192: =IF(Mod.Inversiones!G30="si",1,0) -> 0
B193: Ago | C193: =Mod.Inversiones!D19 -> 0 | E193: =IF(Mod.Inversiones!G31="si",1,0) -> 0
B194: Sep | C194: =Mod.Inversiones!D20 -> 0 | E194: =IF(Mod.Inversiones!G32="si",1,0) -> 1
B195: Oct | C195: =Mod.Inversiones!D21 -> 0 | E195: =SUM(E192:E194) -> 1
B196: Nov | C196: =Mod.Inversiones!D22 -> 0
B197: Dic | C197: =Mod.Inversiones!D23 -> 0
B198: TOTAL | C198: =SUM(C186:C197) -> 0
D201: 1 | E201: =D201+1 -> 2 | F201: =E201+1 -> 3 | G201: 4 | H201: 5 | I201: 6 | J201: 7 | K201: 8 | L201: 9 | M201: 10 | N201: 11 | O201: 12 | P201: =O201+12 -> 24 | Q201: =P201+12 -> 36 | R201: 48 | S201: 60 | T201: 72 | U201: 84 | V201: 96 | W201: 108
B202: =Mod.Inversiones!C30 -> Edificacion | C202: Inversión Mes | D202: =INDEX($B$203:$B$214,D201) -> Ene | E202: =INDEX($B$203:$B$214,E201) -> Feb | F202: Mar | G202: Abr | H202: May | I202: Jun | J202: Jul | K202: Ago | L202: Sep | M202: Oct | N202: Nov | O202: Dic | P202: ='Mod.ctos&gtos'!#REF! ->  | Q202: ='Mod.ctos&gtos'!#REF! ->  | R202: ='Mod.ctos&gtos'!#REF! ->  | S202: ='Mod.ctos&gtos'!#REF! ->  | T202: ='Mod.ctos&gtos'!#REF! ->  | U202: ='Mod.ctos&gtos'!#REF! ->  | V202: ='Mod.ctos&gtos'!#REF! ->  | W202: ='Mod.ctos&gtos'!#REF! -> 
B203: =B30 -> Ene | C203: =Mod.Inversiones!E12 -> 0 | D203: =-$C203/(t_edificacion*12) -> 0 | E203: 0 | F203: 0 | G203: 0 | H203: 0 | I203: 0 | J203: 0 | K203: 0 | L203: 0 | M203: 0 | N203: 0 | O203: 0 | P203: =IF(P$201<=t_edificacion*12,$O203*12,-($C203+SUM($D203:O203))) -> 0 | Q203: =IF(Q$201<=t_edificacion*12,$O203*12,-($C203+SUM($D203:P203))) -> 0 | R203: =IF(R$201<=t_edificacion*12,$O203*12,-($C203+SUM($D203:Q203))) -> 0 | S203: =IF(S$201<=t_edificacion*12,$O203*12,-($C203+SUM($D203:R203))) -> 0 | T203: =IF(T$201<=t_edificacion*12,$O203*12,-($C203+SUM($D203:S203))) -> 0 | U203: =IF(U$201<=t_edificacion*12,$O203*12,-($C203+SUM($D203:T203))) -> 0 | V203: =IF(V$201<=t_edificacion*12,$O203*12,-($C203+SUM($D203:U203))) -> 0 | W203: =IF(W$201<=t_edificacion*12,$O203*12,-($C203+SUM($D203:V203))) -> 0 | Y203: =SUM(D203:W203) -> 0
B204: Feb | C204: =Mod.Inversiones!E13 -> 0 | E204: =-$C204/(t_edificacion*12) -> 0 | F204: 0 | G204: 0 | H204: 0 | I204: 0 | J204: 0 | K204: 0 | L204: 0 | M204: 0 | N204: 0 | O204: 0 | P204: =IF(P$201<=t_edificacion*12,$O204*12,-($C204+SUM($D204:O204))) -> 0 | Q204: =IF(Q$201<=t_edificacion*12,$O204*12,-($C204+SUM($D204:P204))) -> 0 | R204: =IF(R$201<=t_edificacion*12,$O204*12,-($C204+SUM($D204:Q204))) -> 0 | S204: =IF(S$201<=t_edificacion*12,$O204*12,-($C204+SUM($D204:R204))) -> 0 | T204: =IF(T$201<=t_edificacion*12,$O204*12,-($C204+SUM($D204:S204))) -> 0 | U204: =IF(U$201<=t_edificacion*12,$O204*12,-($C204+SUM($D204:T204))) -> 0 | V204: =IF(V$201<=t_edificacion*12,$O204*12,-($C204+SUM($D204:U204))) -> 0 | W204: =IF(W$201<=t_edificacion*12,$O204*12,-($C204+SUM($D204:V204))) -> 0 | Y204: =SUM(D204:W204) -> 0
B205: Mar | C205: =Mod.Inversiones!E14 -> 0 | F205: =-$C205/(t_edificacion*12) -> 0 | G205: 0 | H205: 0 | I205: 0 | J205: 0 | K205: 0 | L205: 0 | M205: 0 | N205: 0 | O205: 0 | P205: =IF(P$201<=t_edificacion*12,$O205*12,-($C205+SUM($D205:O205))) -> 0 | Q205: =IF(Q$201<=t_edificacion*12,$O205*12,-($C205+SUM($D205:P205))) -> 0 | R205: =IF(R$201<=t_edificacion*12,$O205*12,-($C205+SUM($D205:Q205))) -> 0 | S205: =IF(S$201<=t_edificacion*12,$O205*12,-($C205+SUM($D205:R205))) -> 0 | T205: =IF(T$201<=t_edificacion*12,$O205*12,-($C205+SUM($D205:S205))) -> 0 | U205: =IF(U$201<=t_edificacion*12,$O205*12,-($C205+SUM($D205:T205))) -> 0 | V205: =IF(V$201<=t_edificacion*12,$O205*12,-($C205+SUM($D205:U205))) -> 0 | W205: =IF(W$201<=t_edificacion*12,$O205*12,-($C205+SUM($D205:V205))) -> 0 | Y205: 0
B206: Abr | C206: =Mod.Inversiones!E15 -> 0 | G206: =-$C206/(t_edificacion*12) -> 0 | H206: 0 | I206: 0 | J206: 0 | K206: 0 | L206: 0 | M206: 0 | N206: 0 | O206: 0 | P206: =IF(P$201<=t_edificacion*12,$O206*12,-($C206+SUM($D206:O206))) -> 0 | Q206: =IF(Q$201<=t_edificacion*12,$O206*12,-($C206+SUM($D206:P206))) -> 0 | R206: =IF(R$201<=t_edificacion*12,$O206*12,-($C206+SUM($D206:Q206))) -> 0 | S206: =IF(S$201<=t_edificacion*12,$O206*12,-($C206+SUM($D206:R206))) -> 0 | T206: =IF(T$201<=t_edificacion*12,$O206*12,-($C206+SUM($D206:S206))) -> 0 | U206: =IF(U$201<=t_edificacion*12,$O206*12,-($C206+SUM($D206:T206))) -> 0 | V206: =IF(V$201<=t_edificacion*12,$O206*12,-($C206+SUM($D206:U206))) -> 0 | W206: =IF(W$201<=t_edificacion*12,$O206*12,-($C206+SUM($D206:V206))) -> 0 | Y206: 0
B207: May | C207: =Mod.Inversiones!E16 -> 0 | H207: =-$C207/(t_edificacion*12) -> 0 | I207: 0 | J207: 0 | K207: 0 | L207: 0 | M207: 0 | N207: 0 | O207: 0 | P207: =IF(P$201<=t_edificacion*12,$O207*12,-($C207+SUM($D207:O207))) -> 0 | Q207: =IF(Q$201<=t_edificacion*12,$O207*12,-($C207+SUM($D207:P207))) -> 0 | R207: =IF(R$201<=t_edificacion*12,$O207*12,-($C207+SUM($D207:Q207))) -> 0 | S207: =IF(S$201<=t_edificacion*12,$O207*12,-($C207+SUM($D207:R207))) -> 0 | T207: =IF(T$201<=t_edificacion*12,$O207*12,-($C207+SUM($D207:S207))) -> 0 | U207: =IF(U$201<=t_edificacion*12,$O207*12,-($C207+SUM($D207:T207))) -> 0 | V207: =IF(V$201<=t_edificacion*12,$O207*12,-($C207+SUM($D207:U207))) -> 0 | W207: =IF(W$201<=t_edificacion*12,$O207*12,-($C207+SUM($D207:V207))) -> 0 | Y207: 0
B208: Jun | C208: =Mod.Inversiones!E17 -> 0 | I208: =-$C208/(t_edificacion*12) -> 0 | J208: 0 | K208: 0 | L208: 0 | M208: 0 | N208: 0 | O208: 0 | P208: =IF(P$201<=t_edificacion*12,$O208*12,-($C208+SUM($D208:O208))) -> 0 | Q208: =IF(Q$201<=t_edificacion*12,$O208*12,-($C208+SUM($D208:P208))) -> 0 | R208: =IF(R$201<=t_edificacion*12,$O208*12,-($C208+SUM($D208:Q208))) -> 0 | S208: =IF(S$201<=t_edificacion*12,$O208*12,-($C208+SUM($D208:R208))) -> 0 | T208: =IF(T$201<=t_edificacion*12,$O208*12,-($C208+SUM($D208:S208))) -> 0 | U208: =IF(U$201<=t_edificacion*12,$O208*12,-($C208+SUM($D208:T208))) -> 0 | V208: =IF(V$201<=t_edificacion*12,$O208*12,-($C208+SUM($D208:U208))) -> 0 | W208: =IF(W$201<=t_edificacion*12,$O208*12,-($C208+SUM($D208:V208))) -> 0 | Y208: 0
B209: Jul | C209: =Mod.Inversiones!E18 -> 0 | J209: =-$C209/(t_edificacion*12) -> 0 | K209: 0 | L209: 0 | M209: 0 | N209: 0 | O209: 0 | P209: =IF(P$201<=t_edificacion*12,$O209*12,-($C209+SUM($D209:O209))) -> 0 | Q209: =IF(Q$201<=t_edificacion*12,$O209*12,-($C209+SUM($D209:P209))) -> 0 | R209: =IF(R$201<=t_edificacion*12,$O209*12,-($C209+SUM($D209:Q209))) -> 0 | S209: =IF(S$201<=t_edificacion*12,$O209*12,-($C209+SUM($D209:R209))) -> 0 | T209: =IF(T$201<=t_edificacion*12,$O209*12,-($C209+SUM($D209:S209))) -> 0 | U209: =IF(U$201<=t_edificacion*12,$O209*12,-($C209+SUM($D209:T209))) -> 0 | V209: =IF(V$201<=t_edificacion*12,$O209*12,-($C209+SUM($D209:U209))) -> 0 | W209: =IF(W$201<=t_edificacion*12,$O209*12,-($C209+SUM($D209:V209))) -> 0 | Y209: 0
B210: Ago | C210: =Mod.Inversiones!E19 -> 0 | K210: =-$C210/(t_edificacion*12) -> 0 | L210: =-$C210/(t_edificacion*12) -> 0 | M210: =-$C210/(t_edificacion*12) -> 0 | N210: =-$C210/(t_edificacion*12) -> 0 | O210: =-$C210/(t_edificacion*12) -> 0 | P210: =IF(P$201<=t_edificacion*12,$O210*12,-($C210+SUM($D210:O210))) -> 0 | Q210: =IF(Q$201<=t_edificacion*12,$O210*12,-($C210+SUM($D210:P210))) -> 0 | R210: =IF(R$201<=t_edificacion*12,$O210*12,-($C210+SUM($D210:Q210))) -> 0 | S210: =IF(S$201<=t_edificacion*12,$O210*12,-($C210+SUM($D210:R210))) -> 0 | T210: =IF(T$201<=t_edificacion*12,$O210*12,-($C210+SUM($D210:S210))) -> 0 | U210: =IF(U$201<=t_edificacion*12,$O210*12,-($C210+SUM($D210:T210))) -> 0 | V210: =IF(V$201<=t_edificacion*12,$O210*12,-($C210+SUM($D210:U210))) -> 0 | W210: =IF(W$201<=t_edificacion*12,$O210*12,-($C210+SUM($D210:V210))) -> 0 | Y210: 0
B211: Sep | C211: =Mod.Inversiones!E20 -> 0 | L211: =-$C211/(t_edificacion*12) -> 0 | M211: =-$C211/(t_edificacion*12) -> 0 | N211: =-$C211/(t_edificacion*12) -> 0 | O211: =-$C211/(t_edificacion*12) -> 0 | P211: =IF(P$201<=t_edificacion*12,$O211*12,-($C211+SUM($D211:O211))) -> 0 | Q211: =IF(Q$201<=t_edificacion*12,$O211*12,-($C211+SUM($D211:P211))) -> 0 | R211: =IF(R$201<=t_edificacion*12,$O211*12,-($C211+SUM($D211:Q211))) -> 0 | S211: =IF(S$201<=t_edificacion*12,$O211*12,-($C211+SUM($D211:R211))) -> 0 | T211: =IF(T$201<=t_edificacion*12,$O211*12,-($C211+SUM($D211:S211))) -> 0 | U211: =IF(U$201<=t_edificacion*12,$O211*12,-($C211+SUM($D211:T211))) -> 0 | V211: =IF(V$201<=t_edificacion*12,$O211*12,-($C211+SUM($D211:U211))) -> 0 | W211: =IF(W$201<=t_edificacion*12,$O211*12,-($C211+SUM($D211:V211))) -> 0 | Y211: 0
B212: Oct | C212: =Mod.Inversiones!E21 -> 0 | M212: =-$C212/(t_edificacion*12) -> 0 | N212: =-$C212/(t_edificacion*12) -> 0 | O212: =-$C212/(t_edificacion*12) -> 0 | P212: =IF(P$201<=t_edificacion*12,$O212*12,-($C212+SUM($D212:O212))) -> 0 | Q212: =IF(Q$201<=t_edificacion*12,$O212*12,-($C212+SUM($D212:P212))) -> 0 | R212: =IF(R$201<=t_edificacion*12,$O212*12,-($C212+SUM($D212:Q212))) -> 0 | S212: =IF(S$201<=t_edificacion*12,$O212*12,-($C212+SUM($D212:R212))) -> 0 | T212: =IF(T$201<=t_edificacion*12,$O212*12,-($C212+SUM($D212:S212))) -> 0 | U212: =IF(U$201<=t_edificacion*12,$O212*12,-($C212+SUM($D212:T212))) -> 0 | V212: =IF(V$201<=t_edificacion*12,$O212*12,-($C212+SUM($D212:U212))) -> 0 | W212: =IF(W$201<=t_edificacion*12,$O212*12,-($C212+SUM($D212:V212))) -> 0 | Y212: 0
B213: Nov | C213: =Mod.Inversiones!E22 -> 0 | N213: =-$C213/(t_edificacion*12) -> 0 | O213: =-$C213/(t_edificacion*12) -> 0 | P213: =IF(P$201<=t_edificacion*12,$O213*12,-($C213+SUM($D213:O213))) -> 0 | Q213: =IF(Q$201<=t_edificacion*12,$O213*12,-($C213+SUM($D213:P213))) -> 0 | R213: =IF(R$201<=t_edificacion*12,$O213*12,-($C213+SUM($D213:Q213))) -> 0 | S213: =IF(S$201<=t_edificacion*12,$O213*12,-($C213+SUM($D213:R213))) -> 0 | T213: =IF(T$201<=t_edificacion*12,$O213*12,-($C213+SUM($D213:S213))) -> 0 | U213: =IF(U$201<=t_edificacion*12,$O213*12,-($C213+SUM($D213:T213))) -> 0 | V213: =IF(V$201<=t_edificacion*12,$O213*12,-($C213+SUM($D213:U213))) -> 0 | W213: =IF(W$201<=t_edificacion*12,$O213*12,-($C213+SUM($D213:V213))) -> 0 | Y213: 0
B214: Dic | C214: =Mod.Inversiones!E23 -> 0 | O214: =-$C214/(t_edificacion*12) -> 0 | P214: =IF(P$201<=t_edificacion*12,$O214*12,-($C214+SUM($D214:O214))) -> 0 | Q214: =IF(Q$201<=t_edificacion*12,$O214*12,-($C214+SUM($D214:P214))) -> 0 | R214: =IF(R$201<=t_edificacion*12,$O214*12,-($C214+SUM($D214:Q214))) -> 0 | S214: =IF(S$201<=t_edificacion*12,$O214*12,-($C214+SUM($D214:R214))) -> 0 | T214: =IF(T$201<=t_edificacion*12,$O214*12,-($C214+SUM($D214:S214))) -> 0 | U214: =IF(U$201<=t_edificacion*12,$O214*12,-($C214+SUM($D214:T214))) -> 0 | V214: =IF(V$201<=t_edificacion*12,$O214*12,-($C214+SUM($D214:U214))) -> 0 | W214: =IF(W$201<=t_edificacion*12,$O214*12,-($C214+SUM($D214:V214))) -> 0 | Y214: 0
B215: TOTAL | C215: =SUM(C203:C214) -> 0 | D215: =SUM(D203:D214) -> 0 | E215: =SUM(E203:E214) -> 0 | F215: 0 | G215: 0 | H215: 0 | I215: 0 | J215: 0 | K215: 0 | L215: 0 | M215: 0 | N215: 0 | O215: 0 | P215: 0 | Q215: 0 | R215: 0 | S215: 0 | T215: 0 | U215: 0 | V215: 0 | W215: 0
D218: 1 | E218: =D218+1 -> 2 | F218: =E218+1 -> 3 | G218: =F218+1 -> 4 | H218: =G218+1 -> 5 | I218: =H218+1 -> 6 | J218: =I218+1 -> 7 | K218: =J218+1 -> 8 | L218: =K218+1 -> 9 | M218: =L218+1 -> 10 | N218: =M218+1 -> 11 | O218: =N218+1 -> 12 | P218: =O218+12 -> 24 | Q218: =P218+12 -> 36 | R218: =Q218+12 -> 48 | S218: =R218+12 -> 60 | T218: =S218+12 -> 72 | U218: =T218+12 -> 84 | V218: =U218+12 -> 96 | W218: =V218+12 -> 108
B219: =Mod.Inversiones!C31 -> Maquinaria y Materiales | C219: Inversión Mes | D219: =INDEX($B$203:$B$214,D218) -> Ene | E219: =INDEX($B$203:$B$214,E218) -> Feb | F219: =INDEX($B$203:$B$214,F218) -> Mar | G219: =INDEX($B$203:$B$214,G218) -> Abr | H219: =INDEX($B$203:$B$214,H218) -> May | I219: =INDEX($B$203:$B$214,I218) -> Jun | J219: =INDEX($B$203:$B$214,J218) -> Jul | K219: =INDEX($B$203:$B$214,K218) -> Ago | L219: =INDEX($B$203:$B$214,L218) -> Sep | M219: =INDEX($B$203:$B$214,M218) -> Oct | N219: =INDEX($B$203:$B$214,N218) -> Nov | O219: =INDEX($B$203:$B$214,O218) -> Dic | P219: ='Mod.ctos&gtos'!#REF! ->  | Q219: ='Mod.ctos&gtos'!#REF! ->  | R219: ='Mod.ctos&gtos'!#REF! ->  | S219: ='Mod.ctos&gtos'!#REF! ->  | T219: ='Mod.ctos&gtos'!#REF! ->  | U219: ='Mod.ctos&gtos'!#REF! ->  | V219: ='Mod.ctos&gtos'!#REF! ->  | W219: ='Mod.ctos&gtos'!#REF! -> 
B220: =B203 -> Ene | C220: =Mod.Inversiones!F12 -> 0 | D220: =-$C220/(t_maquinaria*12) -> 0 | E220: 0 | F220: 0 | G220: 0 | H220: 0 | I220: 0 | J220: 0 | K220: 0 | L220: 0 | M220: 0 | N220: 0 | O220: 0 | P220: =IF(P$201<=t_maquinaria*12,$O220*12,-($C220+SUM($D220:O220))) -> 0 | Q220: =IF(Q$201<=t_maquinaria*12,$O220*12,-($C220+SUM($D220:P220))) -> 0 | R220: =IF(R$201<=t_maquinaria*12,$O220*12,-($C220+SUM($D220:Q220))) -> 0 | S220: =IF(S$201<=t_maquinaria*12,$O220*12,-($C220+SUM($D220:R220))) -> 0 | T220: =IF(T$201<=t_maquinaria*12,$O220*12,-($C220+SUM($D220:S220))) -> 0 | U220: =IF(U$201<=t_maquinaria*12,$O220*12,-($C220+SUM($D220:T220))) -> 0 | V220: =IF(V$201<=t_maquinaria*12,$O220*12,-($C220+SUM($D220:U220))) -> 0 | W220: =IF(W$201<=t_maquinaria*12,$O220*12,-($C220+SUM($D220:V220))) -> 0 | Y220: =SUM(D220:W220) -> 0
B221: =B204 -> Feb | C221: =Mod.Inversiones!F13 -> 0 | E221: =-$C221/(t_maquinaria*12) -> 0 | F221: 0 | G221: 0 | H221: 0 | I221: 0 | J221: 0 | K221: 0 | L221: 0 | M221: 0 | N221: 0 | O221: 0 | P221: =IF(P$201<=t_maquinaria*12,$O221*12,-($C221+SUM($D221:O221))) -> 0 | Q221: =IF(Q$201<=t_maquinaria*12,$O221*12,-($C221+SUM($D221:P221))) -> 0 | R221: =IF(R$201<=t_maquinaria*12,$O221*12,-($C221+SUM($D221:Q221))) -> 0 | S221: =IF(S$201<=t_maquinaria*12,$O221*12,-($C221+SUM($D221:R221))) -> 0 | T221: =IF(T$201<=t_maquinaria*12,$O221*12,-($C221+SUM($D221:S221))) -> 0 | U221: =IF(U$201<=t_maquinaria*12,$O221*12,-($C221+SUM($D221:T221))) -> 0 | V221: =IF(V$201<=t_maquinaria*12,$O221*12,-($C221+SUM($D221:U221))) -> 0 | W221: =IF(W$201<=t_maquinaria*12,$O221*12,-($C221+SUM($D221:V221))) -> 0 | Y221: =SUM(D221:W221) -> 0
B222: Mar | C222: =Mod.Inversiones!F14 -> 0 | F222: =-$C222/(t_maquinaria*12) -> 0 | G222: 0 | H222: 0 | I222: 0 | J222: 0 | K222: 0 | L222: 0 | M222: 0 | N222: 0 | O222: 0 | P222: =IF(P$201<=t_maquinaria*12,$O222*12,-($C222+SUM($D222:O222))) -> 0 | Q222: =IF(Q$201<=t_maquinaria*12,$O222*12,-($C222+SUM($D222:P222))) -> 0 | R222: =IF(R$201<=t_maquinaria*12,$O222*12,-($C222+SUM($D222:Q222))) -> 0 | S222: =IF(S$201<=t_maquinaria*12,$O222*12,-($C222+SUM($D222:R222))) -> 0 | T222: =IF(T$201<=t_maquinaria*12,$O222*12,-($C222+SUM($D222:S222))) -> 0 | U222: =IF(U$201<=t_maquinaria*12,$O222*12,-($C222+SUM($D222:T222))) -> 0 | V222: =IF(V$201<=t_maquinaria*12,$O222*12,-($C222+SUM($D222:U222))) -> 0 | W222: =IF(W$201<=t_maquinaria*12,$O222*12,-($C222+SUM($D222:V222))) -> 0 | Y222: 0
B223: Abr | C223: =Mod.Inversiones!F15 -> 0 | G223: =-$C223/(t_maquinaria*12) -> 0 | H223: 0 | I223: 0 | J223: 0 | K223: 0 | L223: 0 | M223: 0 | N223: 0 | O223: 0 | P223: =IF(P$201<=t_maquinaria*12,$O223*12,-($C223+SUM($D223:O223))) -> 0 | Q223: =IF(Q$201<=t_maquinaria*12,$O223*12,-($C223+SUM($D223:P223))) -> 0 | R223: =IF(R$201<=t_maquinaria*12,$O223*12,-($C223+SUM($D223:Q223))) -> 0 | S223: =IF(S$201<=t_maquinaria*12,$O223*12,-($C223+SUM($D223:R223))) -> 0 | T223: =IF(T$201<=t_maquinaria*12,$O223*12,-($C223+SUM($D223:S223))) -> 0 | U223: =IF(U$201<=t_maquinaria*12,$O223*12,-($C223+SUM($D223:T223))) -> 0 | V223: =IF(V$201<=t_maquinaria*12,$O223*12,-($C223+SUM($D223:U223))) -> 0 | W223: =IF(W$201<=t_maquinaria*12,$O223*12,-($C223+SUM($D223:V223))) -> 0 | Y223: 0
B224: May | C224: =Mod.Inversiones!F16 -> 0 | H224: =-$C224/(t_maquinaria*12) -> 0 | I224: 0 | J224: 0 | K224: 0 | L224: 0 | M224: 0 | N224: 0 | O224: 0 | P224: =IF(P$201<=t_maquinaria*12,$O224*12,-($C224+SUM($D224:O224))) -> 0 | Q224: =IF(Q$201<=t_maquinaria*12,$O224*12,-($C224+SUM($D224:P224))) -> 0 | R224: =IF(R$201<=t_maquinaria*12,$O224*12,-($C224+SUM($D224:Q224))) -> 0 | S224: =IF(S$201<=t_maquinaria*12,$O224*12,-($C224+SUM($D224:R224))) -> 0 | T224: =IF(T$201<=t_maquinaria*12,$O224*12,-($C224+SUM($D224:S224))) -> 0 | U224: =IF(U$201<=t_maquinaria*12,$O224*12,-($C224+SUM($D224:T224))) -> 0 | V224: =IF(V$201<=t_maquinaria*12,$O224*12,-($C224+SUM($D224:U224))) -> 0 | W224: =IF(W$201<=t_maquinaria*12,$O224*12,-($C224+SUM($D224:V224))) -> 0 | Y224: 0
B225: Jun | C225: =Mod.Inversiones!F17 -> 0 | I225: =-$C225/(t_maquinaria*12) -> 0 | J225: 0 | K225: 0 | L225: 0 | M225: 0 | N225: 0 | O225: 0 | P225: =IF(P$201<=t_maquinaria*12,$O225*12,-($C225+SUM($D225:O225))) -> 0 | Q225: =IF(Q$201<=t_maquinaria*12,$O225*12,-($C225+SUM($D225:P225))) -> 0 | R225: =IF(R$201<=t_maquinaria*12,$O225*12,-($C225+SUM($D225:Q225))) -> 0 | S225: =IF(S$201<=t_maquinaria*12,$O225*12,-($C225+SUM($D225:R225))) -> 0 | T225: =IF(T$201<=t_maquinaria*12,$O225*12,-($C225+SUM($D225:S225))) -> 0 | U225: =IF(U$201<=t_maquinaria*12,$O225*12,-($C225+SUM($D225:T225))) -> 0 | V225: =IF(V$201<=t_maquinaria*12,$O225*12,-($C225+SUM($D225:U225))) -> 0 | W225: =IF(W$201<=t_maquinaria*12,$O225*12,-($C225+SUM($D225:V225))) -> 0 | Y225: 0
B226: Jul | C226: =Mod.Inversiones!F18 -> 0 | J226: =-$C226/(t_maquinaria*12) -> 0 | K226: 0 | L226: 0 | M226: 0 | N226: 0 | O226: 0 | P226: =IF(P$201<=t_maquinaria*12,$O226*12,-($C226+SUM($D226:O226))) -> 0 | Q226: =IF(Q$201<=t_maquinaria*12,$O226*12,-($C226+SUM($D226:P226))) -> 0 | R226: =IF(R$201<=t_maquinaria*12,$O226*12,-($C226+SUM($D226:Q226))) -> 0 | S226: =IF(S$201<=t_maquinaria*12,$O226*12,-($C226+SUM($D226:R226))) -> 0 | T226: =IF(T$201<=t_maquinaria*12,$O226*12,-($C226+SUM($D226:S226))) -> 0 | U226: =IF(U$201<=t_maquinaria*12,$O226*12,-($C226+SUM($D226:T226))) -> 0 | V226: =IF(V$201<=t_maquinaria*12,$O226*12,-($C226+SUM($D226:U226))) -> 0 | W226: =IF(W$201<=t_maquinaria*12,$O226*12,-($C226+SUM($D226:V226))) -> 0 | Y226: 0
B227: Ago | C227: =Mod.Inversiones!F19 -> 0 | K227: =-$C227/(t_maquinaria*12) -> 0 | L227: =-$C227/(t_maquinaria*12) -> 0 | M227: =-$C227/(t_maquinaria*12) -> 0 | N227: =-$C227/(t_maquinaria*12) -> 0 | O227: =-$C227/(t_maquinaria*12) -> 0 | P227: =IF(P$201<=t_maquinaria*12,$O227*12,-($C227+SUM($D227:O227))) -> 0 | Q227: =IF(Q$201<=t_maquinaria*12,$O227*12,-($C227+SUM($D227:P227))) -> 0 | R227: =IF(R$201<=t_maquinaria*12,$O227*12,-($C227+SUM($D227:Q227))) -> 0 | S227: =IF(S$201<=t_maquinaria*12,$O227*12,-($C227+SUM($D227:R227))) -> 0 | T227: =IF(T$201<=t_maquinaria*12,$O227*12,-($C227+SUM($D227:S227))) -> 0 | U227: =IF(U$201<=t_maquinaria*12,$O227*12,-($C227+SUM($D227:T227))) -> 0 | V227: =IF(V$201<=t_maquinaria*12,$O227*12,-($C227+SUM($D227:U227))) -> 0 | W227: =IF(W$201<=t_maquinaria*12,$O227*12,-($C227+SUM($D227:V227))) -> 0 | Y227: 0
B228: Sep | C228: =Mod.Inversiones!F20 -> 0 | L228: =-$C228/(t_maquinaria*12) -> 0 | M228: =-$C228/(t_maquinaria*12) -> 0 | N228: =-$C228/(t_maquinaria*12) -> 0 | O228: =-$C228/(t_maquinaria*12) -> 0 | P228: =IF(P$201<=t_maquinaria*12,$O228*12,-($C228+SUM($D228:O228))) -> 0 | Q228: =IF(Q$201<=t_maquinaria*12,$O228*12,-($C228+SUM($D228:P228))) -> 0 | R228: =IF(R$201<=t_maquinaria*12,$O228*12,-($C228+SUM($D228:Q228))) -> 0 | S228: =IF(S$201<=t_maquinaria*12,$O228*12,-($C228+SUM($D228:R228))) -> 0 | T228: =IF(T$201<=t_maquinaria*12,$O228*12,-($C228+SUM($D228:S228))) -> 0 | U228: =IF(U$201<=t_maquinaria*12,$O228*12,-($C228+SUM($D228:T228))) -> 0 | V228: =IF(V$201<=t_maquinaria*12,$O228*12,-($C228+SUM($D228:U228))) -> 0 | W228: =IF(W$201<=t_maquinaria*12,$O228*12,-($C228+SUM($D228:V228))) -> 0 | Y228: 0
B229: Oct | C229: =Mod.Inversiones!F21 -> 0 | M229: =-$C229/(t_maquinaria*12) -> 0 | N229: =-$C229/(t_maquinaria*12) -> 0 | O229: =-$C229/(t_maquinaria*12) -> 0 | P229: =IF(P$201<=t_maquinaria*12,$O229*12,-($C229+SUM($D229:O229))) -> 0 | Q229: =IF(Q$201<=t_maquinaria*12,$O229*12,-($C229+SUM($D229:P229))) -> 0 | R229: =IF(R$201<=t_maquinaria*12,$O229*12,-($C229+SUM($D229:Q229))) -> 0 | S229: =IF(S$201<=t_maquinaria*12,$O229*12,-($C229+SUM($D229:R229))) -> 0 | T229: =IF(T$201<=t_maquinaria*12,$O229*12,-($C229+SUM($D229:S229))) -> 0 | U229: =IF(U$201<=t_maquinaria*12,$O229*12,-($C229+SUM($D229:T229))) -> 0 | V229: =IF(V$201<=t_maquinaria*12,$O229*12,-($C229+SUM($D229:U229))) -> 0 | W229: =IF(W$201<=t_maquinaria*12,$O229*12,-($C229+SUM($D229:V229))) -> 0 | Y229: 0
B230: Nov | C230: =Mod.Inversiones!F22 -> 0 | N230: =-$C230/(t_maquinaria*12) -> 0 | O230: =-$C230/(t_maquinaria*12) -> 0 | P230: =IF(P$201<=t_maquinaria*12,$O230*12,-($C230+SUM($D230:O230))) -> 0 | Q230: =IF(Q$201<=t_maquinaria*12,$O230*12,-($C230+SUM($D230:P230))) -> 0 | R230: =IF(R$201<=t_maquinaria*12,$O230*12,-($C230+SUM($D230:Q230))) -> 0 | S230: =IF(S$201<=t_maquinaria*12,$O230*12,-($C230+SUM($D230:R230))) -> 0 | T230: =IF(T$201<=t_maquinaria*12,$O230*12,-($C230+SUM($D230:S230))) -> 0 | U230: =IF(U$201<=t_maquinaria*12,$O230*12,-($C230+SUM($D230:T230))) -> 0 | V230: =IF(V$201<=t_maquinaria*12,$O230*12,-($C230+SUM($D230:U230))) -> 0 | W230: =IF(W$201<=t_maquinaria*12,$O230*12,-($C230+SUM($D230:V230))) -> 0 | Y230: 0
B231: Dic | C231: =Mod.Inversiones!F23 -> 0 | O231: =-$C231/(t_maquinaria*12) -> 0 | P231: =IF(P$201<=t_maquinaria*12,$O231*12,-($C231+SUM($D231:O231))) -> 0 | Q231: =IF(Q$201<=t_maquinaria*12,$O231*12,-($C231+SUM($D231:P231))) -> 0 | R231: =IF(R$201<=t_maquinaria*12,$O231*12,-($C231+SUM($D231:Q231))) -> 0 | S231: =IF(S$201<=t_maquinaria*12,$O231*12,-($C231+SUM($D231:R231))) -> 0 | T231: =IF(T$201<=t_maquinaria*12,$O231*12,-($C231+SUM($D231:S231))) -> 0 | U231: =IF(U$201<=t_maquinaria*12,$O231*12,-($C231+SUM($D231:T231))) -> 0 | V231: =IF(V$201<=t_maquinaria*12,$O231*12,-($C231+SUM($D231:U231))) -> 0 | W231: =IF(W$201<=t_maquinaria*12,$O231*12,-($C231+SUM($D231:V231))) -> 0 | Y231: 0
B232: TOTAL | C232: =SUM(C220:C231) -> 0 | D232: =SUM(D220:D231) -> 0 | E232: =SUM(E220:E231) -> 0 | F232: 0 | G232: 0 | H232: 0 | I232: 0 | J232: 0 | K232: 0 | L232: 0 | M232: 0 | N232: 0 | O232: 0 | P232: 0 | Q232: 0 | R232: 0 | S232: 0 | T232: 0 | U232: 0 | V232: 0 | W232: 0
D235: 1 | E235: =D235+1 -> 2 | F235: =E235+1 -> 3 | G235: =F235+1 -> 4 | H235: =G235+1 -> 5 | I235: =H235+1 -> 6 | J235: =I235+1 -> 7 | K235: =J235+1 -> 8 | L235: =K235+1 -> 9 | M235: =L235+1 -> 10 | N235: =M235+1 -> 11 | O235: =N235+1 -> 12 | P235: =O235+12 -> 24 | Q235: =P235+12 -> 36 | R235: =Q235+12 -> 48 | S235: =R235+12 -> 60 | T235: =S235+12 -> 72 | U235: =T235+12 -> 84 | V235: =U235+12 -> 96 | W235: =V235+12 -> 108
B236: =Mod.Inversiones!C32 -> Otros | C236: Inversión Mes | D236: =INDEX($B$203:$B$214,D235) -> Ene | E236: =INDEX($B$203:$B$214,E235) -> Feb | F236: =INDEX($B$203:$B$214,F235) -> Mar | G236: =INDEX($B$203:$B$214,G235) -> Abr | H236: =INDEX($B$203:$B$214,H235) -> May | I236: =INDEX($B$203:$B$214,I235) -> Jun | J236: =INDEX($B$203:$B$214,J235) -> Jul | K236: =INDEX($B$203:$B$214,K235) -> Ago | L236: =INDEX($B$203:$B$214,L235) -> Sep | M236: =INDEX($B$203:$B$214,M235) -> Oct | N236: =INDEX($B$203:$B$214,N235) -> Nov | O236: =INDEX($B$203:$B$214,O235) -> Dic | P236: ='Mod.ctos&gtos'!E169 -> 0 | Q236: ='Mod.ctos&gtos'!F169 -> 0 | R236: ='Mod.ctos&gtos'!G169 -> 0 | S236: ='Mod.ctos&gtos'!H169 -> 0 | T236: ='Mod.ctos&gtos'!I169 -> 0 | U236: ='Mod.ctos&gtos'!J169 -> 0 | V236: ='Mod.ctos&gtos'!K169 -> 0 | W236: ='Mod.ctos&gtos'!L169 -> 0
B237: =B207 -> May | C237: =Mod.Inversiones!G12 -> 0 | D237: =-$C237/(t_otros*12) -> 0 | E237: 0 | F237: 0 | G237: 0 | H237: 0 | I237: 0 | J237: 0 | K237: 0 | L237: 0 | M237: 0 | N237: 0 | O237: 0 | P237: =IF(P$201<=t_otros*12,$O237*12,-($C237+SUM($D237:O237))) -> 0 | Q237: =IF(Q$201<=t_otros*12,$O237*12,-($C237+SUM($D237:P237))) -> 0 | R237: =IF(R$201<=t_otros*12,$O237*12,-($C237+SUM($D237:Q237))) -> 0 | S237: =IF(S$201<=t_otros*12,$O237*12,-($C237+SUM($D237:R237))) -> 0 | T237: =IF(T$201<=t_otros*12,$O237*12,-($C237+SUM($D237:S237))) -> 0 | U237: =IF(U$201<=t_otros*12,$O237*12,-($C237+SUM($D237:T237))) -> 0 | V237: =IF(V$201<=t_otros*12,$O237*12,-($C237+SUM($D237:U237))) -> 0 | W237: =IF(W$201<=t_otros*12,$O237*12,-($C237+SUM($D237:V237))) -> 0 | Y237: =SUM(D237:W237) -> 0
B238: =B208 -> Jun | C238: =Mod.Inversiones!G13 -> 0 | E238: =-$C238/(t_otros*12) -> 0 | F238: 0 | G238: 0 | H238: 0 | I238: 0 | J238: 0 | K238: 0 | L238: 0 | M238: 0 | N238: 0 | O238: 0 | P238: =IF(P$201<=t_otros*12,$O238*12,-($C238+SUM($D238:O238))) -> 0 | Q238: =IF(Q$201<=t_otros*12,$O238*12,-($C238+SUM($D238:P238))) -> 0 | R238: =IF(R$201<=t_otros*12,$O238*12,-($C238+SUM($D238:Q238))) -> 0 | S238: =IF(S$201<=t_otros*12,$O238*12,-($C238+SUM($D238:R238))) -> 0 | T238: =IF(T$201<=t_otros*12,$O238*12,-($C238+SUM($D238:S238))) -> 0 | U238: =IF(U$201<=t_otros*12,$O238*12,-($C238+SUM($D238:T238))) -> 0 | V238: =IF(V$201<=t_otros*12,$O238*12,-($C238+SUM($D238:U238))) -> 0 | W238: =IF(W$201<=t_otros*12,$O238*12,-($C238+SUM($D238:V238))) -> 0 | Y238: =SUM(D238:W238) -> 0
B239: Jul | C239: =Mod.Inversiones!G14 -> 0 | F239: =-$C239/(t_otros*12) -> 0 | G239: 0 | H239: 0 | I239: 0 | J239: 0 | K239: 0 | L239: 0 | M239: 0 | N239: 0 | O239: 0 | P239: =IF(P$201<=t_otros*12,$O239*12,-($C239+SUM($D239:O239))) -> 0 | Q239: =IF(Q$201<=t_otros*12,$O239*12,-($C239+SUM($D239:P239))) -> 0 | R239: =IF(R$201<=t_otros*12,$O239*12,-($C239+SUM($D239:Q239))) -> 0 | S239: =IF(S$201<=t_otros*12,$O239*12,-($C239+SUM($D239:R239))) -> 0 | T239: =IF(T$201<=t_otros*12,$O239*12,-($C239+SUM($D239:S239))) -> 0 | U239: =IF(U$201<=t_otros*12,$O239*12,-($C239+SUM($D239:T239))) -> 0 | V239: =IF(V$201<=t_otros*12,$O239*12,-($C239+SUM($D239:U239))) -> 0 | W239: =IF(W$201<=t_otros*12,$O239*12,-($C239+SUM($D239:V239))) -> 0 | Y239: 0
B240: Ago | C240: =Mod.Inversiones!G15 -> 0 | G240: =-$C240/(t_otros*12) -> 0 | H240: 0 | I240: 0 | J240: 0 | K240: 0 | L240: 0 | M240: 0 | N240: 0 | O240: 0 | P240: =IF(P$201<=t_otros*12,$O240*12,-($C240+SUM($D240:O240))) -> 0 | Q240: =IF(Q$201<=t_otros*12,$O240*12,-($C240+SUM($D240:P240))) -> 0 | R240: =IF(R$201<=t_otros*12,$O240*12,-($C240+SUM($D240:Q240))) -> 0 | S240: =IF(S$201<=t_otros*12,$O240*12,-($C240+SUM($D240:R240))) -> 0 | T240: =IF(T$201<=t_otros*12,$O240*12,-($C240+SUM($D240:S240))) -> 0 | U240: =IF(U$201<=t_otros*12,$O240*12,-($C240+SUM($D240:T240))) -> 0 | V240: =IF(V$201<=t_otros*12,$O240*12,-($C240+SUM($D240:U240))) -> 0 | W240: =IF(W$201<=t_otros*12,$O240*12,-($C240+SUM($D240:V240))) -> 0 | Y240: 0
B241: Sep | C241: =Mod.Inversiones!G16 -> 0 | H241: =-$C241/(t_otros*12) -> 0 | I241: 0 | J241: 0 | K241: 0 | L241: 0 | M241: 0 | N241: 0 | O241: 0 | P241: =IF(P$201<=t_otros*12,$O241*12,-($C241+SUM($D241:O241))) -> 0 | Q241: =IF(Q$201<=t_otros*12,$O241*12,-($C241+SUM($D241:P241))) -> 0 | R241: =IF(R$201<=t_otros*12,$O241*12,-($C241+SUM($D241:Q241))) -> 0 | S241: =IF(S$201<=t_otros*12,$O241*12,-($C241+SUM($D241:R241))) -> 0 | T241: =IF(T$201<=t_otros*12,$O241*12,-($C241+SUM($D241:S241))) -> 0 | U241: =IF(U$201<=t_otros*12,$O241*12,-($C241+SUM($D241:T241))) -> 0 | V241: =IF(V$201<=t_otros*12,$O241*12,-($C241+SUM($D241:U241))) -> 0 | W241: =IF(W$201<=t_otros*12,$O241*12,-($C241+SUM($D241:V241))) -> 0 | Y241: 0
B242: Oct | C242: =Mod.Inversiones!G17 -> 0 | I242: =-$C242/(t_otros*12) -> 0 | J242: 0 | K242: 0 | L242: 0 | M242: 0 | N242: 0 | O242: 0 | P242: =IF(P$201<=t_otros*12,$O242*12,-($C242+SUM($D242:O242))) -> 0 | Q242: =IF(Q$201<=t_otros*12,$O242*12,-($C242+SUM($D242:P242))) -> 0 | R242: =IF(R$201<=t_otros*12,$O242*12,-($C242+SUM($D242:Q242))) -> 0 | S242: =IF(S$201<=t_otros*12,$O242*12,-($C242+SUM($D242:R242))) -> 0 | T242: =IF(T$201<=t_otros*12,$O242*12,-($C242+SUM($D242:S242))) -> 0 | U242: =IF(U$201<=t_otros*12,$O242*12,-($C242+SUM($D242:T242))) -> 0 | V242: =IF(V$201<=t_otros*12,$O242*12,-($C242+SUM($D242:U242))) -> 0 | W242: =IF(W$201<=t_otros*12,$O242*12,-($C242+SUM($D242:V242))) -> 0 | Y242: 0
B243: Nov | C243: =Mod.Inversiones!G18 -> 0 | J243: =-$C243/(t_otros*12) -> 0 | K243: 0 | L243: 0 | M243: 0 | N243: 0 | O243: 0 | P243: =IF(P$201<=t_otros*12,$O243*12,-($C243+SUM($D243:O243))) -> 0 | Q243: =IF(Q$201<=t_otros*12,$O243*12,-($C243+SUM($D243:P243))) -> 0 | R243: =IF(R$201<=t_otros*12,$O243*12,-($C243+SUM($D243:Q243))) -> 0 | S243: =IF(S$201<=t_otros*12,$O243*12,-($C243+SUM($D243:R243))) -> 0 | T243: =IF(T$201<=t_otros*12,$O243*12,-($C243+SUM($D243:S243))) -> 0 | U243: =IF(U$201<=t_otros*12,$O243*12,-($C243+SUM($D243:T243))) -> 0 | V243: =IF(V$201<=t_otros*12,$O243*12,-($C243+SUM($D243:U243))) -> 0 | W243: =IF(W$201<=t_otros*12,$O243*12,-($C243+SUM($D243:V243))) -> 0 | Y243: 0
... 289 more rows
